Body Name ,Organisation Code ,Service Label,Service Code,Organisation Unit,Expenditure Category,Expenditure Code,Narrative ,Date,Transaction Number,Net Amount,Supplier Name 
Ealing Council,http://opendatacommunities.org/id/london-borough-council/ealing,REGENERATION AND HOUSING,2,HOUSING  DEMAND,BED & BREAKFAST PAYMENTS,5330,,01/04/2018,40821461,294,REDACTED SENSITIVE SUPPLIER
Ealing Council,http://opendatacommunities.org/id/london-borough-council/ealing,REGENERATION AND HOUSING,2,HOUSING  DEMAND,BED & BREAKFAST PAYMENTS,5330,,01/04/2018,40821465,252,REDACTED SENSITIVE SUPPLIER
Ealing Council,http://opendatacommunities.org/id/london-borough-council/ealing,REGENERATION AND HOUSING,2,HOUSING  DEMAND,BED & BREAKFAST PAYMENTS,5330,,01/04/2018,40821466,546,REDACTED SENSITIVE SUPPLIER
Ealing Council,http://opendatacommunities.org/id/london-borough-council/ealing,REGENERATION AND HOUSING,2,HOUSING  DEMAND,BED & BREAKFAST PAYMENTS,5330,,01/04/2018,40821467,462,REDACTED SENSITIVE SUPPLIER
Ealing Council,http://opendatacommunities.org/id/london-borough-council/ealing,REGENERATION AND HOUSING,2,HOUSING  DEMAND,BED & BREAKFAST PAYMENTS,5330,,01/04/2018,40821468,294,REDACTED SENSITIVE SUPPLIER
Ealing Council,http://opendatacommunities.org/id/london-borough-council/ealing,REGENERATION AND HOUSING,2,HOUSING  DEMAND,BED & BREAKFAST PAYMENTS,5330,,01/04/2018,40821469,252,REDACTED SENSITIVE SUPPLIER
Ealing Council,http://opendatacommunities.org/id/london-borough-council/ealing,REGENERATION AND HOUSING,2,HOUSING  DEMAND,BED & BREAKFAST PAYMENTS,5330,,01/04/2018,40823330,294,REDACTED SENSITIVE SUPPLIER
Ealing Council,http://opendatacommunities.org/id/london-borough-council/ealing,REGENERATION AND HOUSING,2,HOUSING  DEMAND,BED & BREAKFAST PAYMENTS,5330,,01/04/2018,40823331,294,REDACTED SENSITIVE SUPPLIER
Ealing Council,http://opendatacommunities.org/id/london-borough-council/ealing,REGENERATION AND HOUSING,2,HOUSING  DEMAND,BED & BREAKFAST PAYMENTS,5330,,01/04/2018,40823332,294,REDACTED SENSITIVE SUPPLIER
Ealing Council,http://opendatacommunities.org/id/london-borough-council/ealing,REGENERATION AND HOUSING,2,HOUSING  DEMAND,BED & BREAKFAST PAYMENTS,5330,,01/04/2018,40823333,294,REDACTED SENSITIVE SUPPLIER
Ealing Council,http://opendatacommunities.org/id/london-borough-council/ealing,REGENERATION AND HOUSING,2,HOUSING  DEMAND,BED & BREAKFAST PAYMENTS,5330,,01/04/2018,40823334,294,REDACTED SENSITIVE SUPPLIER
Ealing Council,http://opendatacommunities.org/id/london-borough-council/ealing,REGENERATION AND HOUSING,2,HOUSING  DEMAND,BED & BREAKFAST PAYMENTS,5330,,01/04/2018,40823320,294,REDACTED SENSITIVE SUPPLIER
Ealing Council,http://opendatacommunities.org/id/london-borough-council/ealing,REGENERATION AND HOUSING,2,HOUSING  DEMAND,BED & BREAKFAST PAYMENTS,5330,,01/04/2018,40823323,420,REDACTED SENSITIVE SUPPLIER
Ealing Council,http://opendatacommunities.org/id/london-borough-council/ealing,REGENERATION AND HOUSING,2,HOUSING  DEMAND,BED & BREAKFAST PAYMENTS,5330,,01/04/2018,40823325,294,REDACTED SENSITIVE SUPPLIER
Ealing Council,http://opendatacommunities.org/id/london-borough-council/ealing,REGENERATION AND HOUSING,2,HOUSING  DEMAND,BED & BREAKFAST PAYMENTS,5330,,01/04/2018,40823326,294,REDACTED SENSITIVE SUPPLIER
Ealing Council,http://opendatacommunities.org/id/london-borough-council/ealing,REGENERATION AND HOUSING,2,HOUSING  DEMAND,BED & BREAKFAST PAYMENTS,5330,,01/04/2018,40823327,294,REDACTED SENSITIVE SUPPLIER
Ealing Council,http://opendatacommunities.org/id/london-borough-council/ealing,REGENERATION AND HOUSING,2,HOUSING  DEMAND,BED & BREAKFAST PAYMENTS,5330,,01/04/2018,40823328,252,REDACTED SENSITIVE SUPPLIER
Ealing Council,http://opendatacommunities.org/id/london-borough-council/ealing,REGENERATION AND HOUSING,2,HOUSING  DEMAND,BED & BREAKFAST PAYMENTS,5330,,01/04/2018,40823286,294,REDACTED SENSITIVE SUPPLIER
Ealing Council,http://opendatacommunities.org/id/london-borough-council/ealing,REGENERATION AND HOUSING,2,HOUSING  DEMAND,BED & BREAKFAST PAYMENTS,5330,,01/04/2018,40823289,252,REDACTED SENSITIVE SUPPLIER
Ealing Council,http://opendatacommunities.org/id/london-borough-council/ealing,REGENERATION AND HOUSING,2,HOUSING  DEMAND,BED & BREAKFAST PAYMENTS,5330,,01/04/2018,40823292,252,REDACTED SENSITIVE SUPPLIER
Ealing Council,http://opendatacommunities.org/id/london-borough-council/ealing,REGENERATION AND HOUSING,2,HOUSING  DEMAND,BED & BREAKFAST PAYMENTS,5330,,01/04/2018,40823295,252,REDACTED SENSITIVE SUPPLIER
Ealing Council,http://opendatacommunities.org/id/london-borough-council/ealing,REGENERATION AND HOUSING,2,HOUSING  DEMAND,BED & BREAKFAST PAYMENTS,5330,,01/04/2018,40823336,544,REDACTED SENSITIVE SUPPLIER
Ealing Council,http://opendatacommunities.org/id/london-borough-council/ealing,REGENERATION AND HOUSING,2,HOUSING  DEMAND,BED & BREAKFAST PAYMENTS,5330,,01/04/2018,40823319,294,REDACTED SENSITIVE SUPPLIER
Ealing Council,http://opendatacommunities.org/id/london-borough-council/ealing,REGENERATION AND HOUSING,2,HOUSING  DEMAND,BED & BREAKFAST PAYMENTS,5330,,12/08/2018,40822936,294,REDACTED SENSITIVE SUPPLIER
Ealing Council,http://opendatacommunities.org/id/london-borough-council/ealing,REGENERATION AND HOUSING,2,HOUSING  DEMAND,BED & BREAKFAST PAYMENTS,5330,,01/04/2018,40823264,252,REDACTED SENSITIVE SUPPLIER
Ealing Council,http://opendatacommunities.org/id/london-borough-council/ealing,REGENERATION AND HOUSING,2,HOUSING  DEMAND,BED & BREAKFAST PAYMENTS,5330,,01/04/2018,40823269,252,REDACTED SENSITIVE SUPPLIER
Ealing Council,http://opendatacommunities.org/id/london-borough-council/ealing,REGENERATION AND HOUSING,2,HOUSING  DEMAND,BED & BREAKFAST PAYMENTS,5330,,01/04/2018,40823303,252,REDACTED SENSITIVE SUPPLIER
Ealing Council,http://opendatacommunities.org/id/london-borough-council/ealing,REGENERATION AND HOUSING,2,HOUSING  DEMAND,BED & BREAKFAST PAYMENTS,5330,,01/04/2018,40823304,294,REDACTED SENSITIVE SUPPLIER
Ealing Council,http://opendatacommunities.org/id/london-borough-council/ealing,REGENERATION AND HOUSING,2,HOUSING  DEMAND,BED & BREAKFAST PAYMENTS,5330,,01/04/2018,40823283,504,REDACTED SENSITIVE SUPPLIER
Ealing Council,http://opendatacommunities.org/id/london-borough-council/ealing,REGENERATION AND HOUSING,2,HOUSING  DEMAND,BED & BREAKFAST PAYMENTS,5330,,26/08/2018,40822840,294,REDACTED SENSITIVE SUPPLIER
Ealing Council,http://opendatacommunities.org/id/london-borough-council/ealing,REGENERATION AND HOUSING,2,HOUSING  DEMAND,BED & BREAKFAST PAYMENTS,5330,,26/08/2018,40822842,252,REDACTED SENSITIVE SUPPLIER
Ealing Council,http://opendatacommunities.org/id/london-borough-council/ealing,REGENERATION AND HOUSING,2,HOUSING  DEMAND,BED & BREAKFAST PAYMENTS,5330,,26/08/2018,40822844,294,REDACTED SENSITIVE SUPPLIER
Ealing Council,http://opendatacommunities.org/id/london-borough-council/ealing,REGENERATION AND HOUSING,2,HOUSING  DEMAND,BED & BREAKFAST PAYMENTS,5330,,12/08/2018,40822930,294,REDACTED SENSITIVE SUPPLIER
Ealing Council,http://opendatacommunities.org/id/london-borough-council/ealing,REGENERATION AND HOUSING,2,HOUSING  DEMAND,BED & BREAKFAST PAYMENTS,5330,,12/08/2018,40822932,252,REDACTED SENSITIVE SUPPLIER
Ealing Council,http://opendatacommunities.org/id/london-borough-council/ealing,REGENERATION AND HOUSING,2,HOUSING  DEMAND,BED & BREAKFAST PAYMENTS,5330,,12/08/2018,40822934,294,REDACTED SENSITIVE SUPPLIER
Ealing Council,http://opendatacommunities.org/id/london-borough-council/ealing,REGENERATION AND HOUSING,2,HOUSING  DEMAND,BED & BREAKFAST PAYMENTS,5330,,19/08/2018,40822889,294,REDACTED SENSITIVE SUPPLIER
Ealing Council,http://opendatacommunities.org/id/london-borough-council/ealing,REGENERATION AND HOUSING,2,HOUSING  DEMAND,BED & BREAKFAST PAYMENTS,5330,,19/08/2018,40822888,252,REDACTED SENSITIVE SUPPLIER
Ealing Council,http://opendatacommunities.org/id/london-borough-council/ealing,REGENERATION AND HOUSING,2,HOUSING  DEMAND,BED & BREAKFAST PAYMENTS,5330,,19/08/2018,40822887,294,REDACTED SENSITIVE SUPPLIER
Ealing Council,http://opendatacommunities.org/id/london-borough-council/ealing,REGENERATION AND HOUSING,2,HOUSING  DEMAND,BED & BREAKFAST PAYMENTS,5330,,26/08/2018,40822837,294,REDACTED SENSITIVE SUPPLIER
Ealing Council,http://opendatacommunities.org/id/london-borough-council/ealing,REGENERATION AND HOUSING,2,HOUSING  DEMAND,BED & BREAKFAST PAYMENTS,5330,,26/08/2018,40822836,294,REDACTED SENSITIVE SUPPLIER
Ealing Council,http://opendatacommunities.org/id/london-borough-council/ealing,REGENERATION AND HOUSING,2,HOUSING  DEMAND,BED & BREAKFAST PAYMENTS,5330,,26/08/2018,40822834,396,REDACTED SENSITIVE SUPPLIER
Ealing Council,http://opendatacommunities.org/id/london-borough-council/ealing,REGENERATION AND HOUSING,2,HOUSING  DEMAND,BED & BREAKFAST PAYMENTS,5330,,19/08/2018,40822884,294,REDACTED SENSITIVE SUPPLIER
Ealing Council,http://opendatacommunities.org/id/london-borough-council/ealing,REGENERATION AND HOUSING,2,HOUSING  DEMAND,BED & BREAKFAST PAYMENTS,5330,,19/08/2018,40822885,294,REDACTED SENSITIVE SUPPLIER
Ealing Council,http://opendatacommunities.org/id/london-borough-council/ealing,REGENERATION AND HOUSING,2,HOUSING  DEMAND,BED & BREAKFAST PAYMENTS,5330,,19/08/2018,40822886,294,REDACTED SENSITIVE SUPPLIER
Ealing Council,http://opendatacommunities.org/id/london-borough-council/ealing,REGENERATION AND HOUSING,2,HOUSING  DEMAND,BED & BREAKFAST PAYMENTS,5330,,12/08/2018,40822927,294,REDACTED SENSITIVE SUPPLIER
Ealing Council,http://opendatacommunities.org/id/london-borough-council/ealing,REGENERATION AND HOUSING,2,HOUSING  DEMAND,BED & BREAKFAST PAYMENTS,5330,,12/08/2018,40822929,294,REDACTED SENSITIVE SUPPLIER
Ealing Council,http://opendatacommunities.org/id/london-borough-council/ealing,REGENERATION AND HOUSING,2,HOUSING  DEMAND,BED & BREAKFAST PAYMENTS,5330,,12/08/2018,40822925,294,REDACTED SENSITIVE SUPPLIER
Ealing Council,http://opendatacommunities.org/id/london-borough-council/ealing,REGENERATION AND HOUSING,2,HOUSING  DEMAND,BED & BREAKFAST PAYMENTS,5330,,12/08/2018,40822900,462,REDACTED SENSITIVE SUPPLIER
Ealing Council,http://opendatacommunities.org/id/london-borough-council/ealing,REGENERATION AND HOUSING,2,HOUSING  DEMAND,BED & BREAKFAST PAYMENTS,5330,,19/08/2018,40822891,294,REDACTED SENSITIVE SUPPLIER
Ealing Council,http://opendatacommunities.org/id/london-borough-council/ealing,REGENERATION AND HOUSING,2,HOUSING  DEMAND,BED & BREAKFAST PAYMENTS,5330,,26/08/2018,40822849,294,REDACTED SENSITIVE SUPPLIER
Ealing Council,http://opendatacommunities.org/id/london-borough-council/ealing,REGENERATION AND HOUSING,2,HOUSING  DEMAND,BED & BREAKFAST PAYMENTS,5330,,19/08/2018,40822852,252,REDACTED SENSITIVE SUPPLIER
Ealing Council,http://opendatacommunities.org/id/london-borough-council/ealing,REGENERATION AND HOUSING,2,HOUSING  DEMAND,BED & BREAKFAST PAYMENTS,5330,,19/08/2018,40822869,378,REDACTED SENSITIVE SUPPLIER
Ealing Council,http://opendatacommunities.org/id/london-borough-council/ealing,REGENERATION AND HOUSING,2,HOUSING  DEMAND,BED & BREAKFAST PAYMENTS,5330,,19/08/2018,40822872,462,REDACTED SENSITIVE SUPPLIER
Ealing Council,http://opendatacommunities.org/id/london-borough-council/ealing,REGENERATION AND HOUSING,2,HOUSING  DEMAND,BED & BREAKFAST PAYMENTS,5330,,02/09/2018,40821108,420,REDACTED SENSITIVE SUPPLIER
Ealing Council,http://opendatacommunities.org/id/london-borough-council/ealing,REGENERATION AND HOUSING,2,HOUSING  DEMAND,BED & BREAKFAST PAYMENTS,5330,,02/09/2018,40821109,840,REDACTED SENSITIVE SUPPLIER
Ealing Council,http://opendatacommunities.org/id/london-borough-council/ealing,REGENERATION AND HOUSING,2,HOUSING  DEMAND,BED & BREAKFAST PAYMENTS,5330,,26/08/2018,40822813,378,REDACTED SENSITIVE SUPPLIER
Ealing Council,http://opendatacommunities.org/id/london-borough-council/ealing,REGENERATION AND HOUSING,2,HOUSING  DEMAND,BED & BREAKFAST PAYMENTS,5330,,26/08/2018,40822819,462,REDACTED SENSITIVE SUPPLIER
Ealing Council,http://opendatacommunities.org/id/london-borough-council/ealing,REGENERATION AND HOUSING,2,HOUSING  DEMAND,BED & BREAKFAST PAYMENTS,5330,,12/08/2018,40822894,252,REDACTED SENSITIVE SUPPLIER
Ealing Council,http://opendatacommunities.org/id/london-borough-council/ealing,REGENERATION AND HOUSING,2,HOUSING  DEMAND,BED & BREAKFAST PAYMENTS,5330,,12/08/2018,40822897,378,REDACTED SENSITIVE SUPPLIER
Ealing Council,http://opendatacommunities.org/id/london-borough-council/ealing,REGENERATION AND HOUSING,2,HOUSING  DEMAND,BED & BREAKFAST PAYMENTS,5330,,01/04/2018,40823211,252,REDACTED SENSITIVE SUPPLIER
Ealing Council,http://opendatacommunities.org/id/london-borough-council/ealing,REGENERATION AND HOUSING,2,HOUSING  DEMAND,BED & BREAKFAST PAYMENTS,5330,,01/04/2018,40823221,462,REDACTED SENSITIVE SUPPLIER
Ealing Council,http://opendatacommunities.org/id/london-borough-council/ealing,REGENERATION AND HOUSING,2,HOUSING  DEMAND,BED & BREAKFAST PAYMENTS,5330,,01/04/2018,40823223,252,REDACTED SENSITIVE SUPPLIER
Ealing Council,http://opendatacommunities.org/id/london-borough-council/ealing,REGENERATION AND HOUSING,2,HOUSING  DEMAND,BED & BREAKFAST PAYMENTS,5330,,01/04/2018,40823233,252,REDACTED SENSITIVE SUPPLIER
Ealing Council,http://opendatacommunities.org/id/london-borough-council/ealing,REGENERATION AND HOUSING,2,HOUSING  DEMAND,BED & BREAKFAST PAYMENTS,5330,,08/07/2018,40820727,630,REDACTED SENSITIVE SUPPLIER
Ealing Council,http://opendatacommunities.org/id/london-borough-council/ealing,REGENERATION AND HOUSING,2,HOUSING  DEMAND,BED & BREAKFAST PAYMENTS,5330,,08/07/2018,40820728,840,REDACTED SENSITIVE SUPPLIER
Ealing Council,http://opendatacommunities.org/id/london-borough-council/ealing,REGENERATION AND HOUSING,2,HOUSING  DEMAND,BED & BREAKFAST PAYMENTS,5330,,01/04/2018,40823252,462,REDACTED SENSITIVE SUPPLIER
Ealing Council,http://opendatacommunities.org/id/london-borough-council/ealing,REGENERATION AND HOUSING,2,HOUSING  DEMAND,BED & BREAKFAST PAYMENTS,5330,,01/04/2018,40823255,252,REDACTED SENSITIVE SUPPLIER
Ealing Council,http://opendatacommunities.org/id/london-borough-council/ealing,REGENERATION AND HOUSING,2,HOUSING  DEMAND,BED & BREAKFAST PAYMENTS,5330,,01/04/2018,40823256,252,REDACTED SENSITIVE SUPPLIER
Ealing Council,http://opendatacommunities.org/id/london-borough-council/ealing,REGENERATION AND HOUSING,2,HOUSING  DEMAND,BED & BREAKFAST PAYMENTS,5330,,01/04/2018,40823262,252,REDACTED SENSITIVE SUPPLIER
Ealing Council,http://opendatacommunities.org/id/london-borough-council/ealing,REGENERATION AND HOUSING,2,HOUSING  DEMAND,BED & BREAKFAST PAYMENTS,5330,,01/04/2018,40823279,462,REDACTED SENSITIVE SUPPLIER
Ealing Council,http://opendatacommunities.org/id/london-borough-council/ealing,REGENERATION AND HOUSING,2,HOUSING  DEMAND,BED & BREAKFAST PAYMENTS,5330,,01/04/2018,40823282,252,REDACTED SENSITIVE SUPPLIER
Ealing Council,http://opendatacommunities.org/id/london-borough-council/ealing,REGENERATION AND HOUSING,2,HOUSING  DEMAND,RENTS,1200,,05/01/2018,40820581,1773.85,COSECTOR LTD - UNIVERSITY OF LONDON
Ealing Council,http://opendatacommunities.org/id/london-borough-council/ealing,REGENERATION AND HOUSING,2,HOUSING  DEMAND,RENTS,1200,,05/03/2018,40820583,886.92,COSECTOR LTD - UNIVERSITY OF LONDON
Ealing Council,http://opendatacommunities.org/id/london-borough-council/ealing,REGENERATION AND HOUSING,2,HOUSING  DEMAND,RENTS,1200,,12/05/2017,40820587,1452.03,COSECTOR LTD - UNIVERSITY OF LONDON
Ealing Council,http://opendatacommunities.org/id/london-borough-council/ealing,REGENERATION AND HOUSING,2,HOUSING  DEMAND,RENTS,1200,,14/06/2017,40820589,1452.03,COSECTOR LTD - UNIVERSITY OF LONDON
Ealing Council,http://opendatacommunities.org/id/london-borough-council/ealing,REGENERATION AND HOUSING,2,HOUSING  DEMAND,RENTS,1200,,14/06/2017,40820590,1452.03,COSECTOR LTD - UNIVERSITY OF LONDON
Ealing Council,http://opendatacommunities.org/id/london-borough-council/ealing,REGENERATION AND HOUSING,2,HOUSING  DEMAND,RENTS,1200,,12/05/2017,40820598,5121.66,COSECTOR LTD - UNIVERSITY OF LONDON
Ealing Council,http://opendatacommunities.org/id/london-borough-council/ealing,REGENERATION AND HOUSING,2,HOUSING  DEMAND,BED & BREAKFAST PAYMENTS,5330,,02/09/2018,40822781,294,REDACTED SENSITIVE SUPPLIER
Ealing Council,http://opendatacommunities.org/id/london-borough-council/ealing,REGENERATION AND HOUSING,2,HOUSING  DEMAND,BED & BREAKFAST PAYMENTS,5330,,02/09/2018,40822784,294,REDACTED SENSITIVE SUPPLIER
Ealing Council,http://opendatacommunities.org/id/london-borough-council/ealing,REGENERATION AND HOUSING,2,HOUSING  DEMAND,BED & BREAKFAST PAYMENTS,5330,,02/09/2018,40822786,252,REDACTED SENSITIVE SUPPLIER
Ealing Council,http://opendatacommunities.org/id/london-borough-council/ealing,REGENERATION AND HOUSING,2,HOUSING  DEMAND,BED & BREAKFAST PAYMENTS,5330,,02/09/2018,40822789,294,REDACTED SENSITIVE SUPPLIER
Ealing Council,http://opendatacommunities.org/id/london-borough-council/ealing,REGENERATION AND HOUSING,2,HOUSING  DEMAND,BED & BREAKFAST PAYMENTS,5330,,02/09/2018,40822803,294,REDACTED SENSITIVE SUPPLIER
Ealing Council,http://opendatacommunities.org/id/london-borough-council/ealing,REGENERATION AND HOUSING,2,HOUSING  DEMAND,BED & BREAKFAST PAYMENTS,5330,,26/08/2018,40822810,252,REDACTED SENSITIVE SUPPLIER
Ealing Council,http://opendatacommunities.org/id/london-borough-council/ealing,REGENERATION AND HOUSING,2,HOUSING  DEMAND,BED & BREAKFAST PAYMENTS,5330,,02/09/2018,40822642,378,REDACTED SENSITIVE SUPPLIER
Ealing Council,http://opendatacommunities.org/id/london-borough-council/ealing,REGENERATION AND HOUSING,2,HOUSING  DEMAND,BED & BREAKFAST PAYMENTS,5330,,02/09/2018,40822649,462,REDACTED SENSITIVE SUPPLIER
Ealing Council,http://opendatacommunities.org/id/london-borough-council/ealing,REGENERATION AND HOUSING,2,HOUSING  DEMAND,BED & BREAKFAST PAYMENTS,5330,,02/09/2018,40822635,252,REDACTED SENSITIVE SUPPLIER
Ealing Council,http://opendatacommunities.org/id/london-borough-council/ealing,REGENERATION AND HOUSING,2,HOUSING  DEMAND,RENTS,1200,,06/09/2018,40822349,3500,PARADIGM GROUP LIMITED
Ealing Council,http://opendatacommunities.org/id/london-borough-council/ealing,REGENERATION AND HOUSING,2,HOUSING  DEMAND,RENTS,1200,,06/09/2018,40822488,8000,PARADIGM GROUP LIMITED
Ealing Council,http://opendatacommunities.org/id/london-borough-council/ealing,REGENERATION AND HOUSING,2,HOUSING  DEMAND,RENTS,1200,,20/09/2018,40823874,1000,REGIONS LTD - T/A REGIONS ESTATES
Ealing Council,http://opendatacommunities.org/id/london-borough-council/ealing,REGENERATION AND HOUSING,2,HOUSING  DEMAND,VEHICLE HIRE,2010,,18/09/2018,40822956,600,NEW BHARAT COACHES
Ealing Council,http://opendatacommunities.org/id/london-borough-council/ealing,REGENERATION AND HOUSING,2,HOUSING  DEMAND,RENTS,1200,,04/09/2018,40820981,6500,CASTLE RESIDENTIAL HOUSING LTD
Ealing Council,http://opendatacommunities.org/id/london-borough-council/ealing,REGENERATION AND HOUSING,2,HOUSING  DEMAND,RENTS,1200,,17/09/2018,40822311,4837.28,Sundry Supplier - Regeneration & Housing
Ealing Council,http://opendatacommunities.org/id/london-borough-council/ealing,REGENERATION AND HOUSING,2,HOUSING  DEMAND,RENTS,1200,,20/09/2018,40823665,500,REGIONS LTD - T/A REGIONS ESTATES
Ealing Council,http://opendatacommunities.org/id/london-borough-council/ealing,REGENERATION AND HOUSING,2,HOUSING  DEMAND,RENTS,1200,,17/09/2018,40822311,425,Sundry Supplier - Regeneration & Housing
Ealing Council,http://opendatacommunities.org/id/london-borough-council/ealing,REGENERATION AND HOUSING,2,HOUSING  DEMAND,RENTS,1200,,06/09/2018,40822316,4837.28,Sundry Supplier - Regeneration & Housing
Ealing Council,http://opendatacommunities.org/id/london-borough-council/ealing,REGENERATION AND HOUSING,2,HOUSING  DEMAND,RENTS,1200,,02/08/2018,40823627,1500,KPA INVESTMENTS UK LTD T/A MIDDLESEX INVESTMENTS
Ealing Council,http://opendatacommunities.org/id/london-borough-council/ealing,REGENERATION AND HOUSING,2,HOUSING  DEMAND,RENTS,1200,,20/09/2018,40823666,1500,REGIONS LTD - T/A REGIONS ESTATES
Ealing Council,http://opendatacommunities.org/id/london-borough-council/ealing,REGENERATION AND HOUSING,2,HOUSING  DEMAND,RENTS,1200,,20/09/2018,40823668,1500,REGIONS LTD - T/A REGIONS ESTATES
Ealing Council,http://opendatacommunities.org/id/london-borough-council/ealing,REGENERATION AND HOUSING,2,HOUSING  DEMAND,RENTS,1200,,20/09/2018,40823663,1500,REGIONS LTD - T/A REGIONS ESTATES
Ealing Council,http://opendatacommunities.org/id/london-borough-council/ealing,REGENERATION AND HOUSING,2,HOUSING  DEMAND,RENTS,1200,,06/09/2018,40821477,34730.85,GENESIS HOUSING ASSOCIATION LTD T/A GENESIS HOUSING ASSOCIATION
Ealing Council,http://opendatacommunities.org/id/london-borough-council/ealing,REGENERATION AND HOUSING,2,HOUSING  DEMAND,RENTS,1200,,07/09/2018,40821687,46836.89,PARADIGM GROUP LIMITED
Ealing Council,http://opendatacommunities.org/id/london-borough-council/ealing,REGENERATION AND HOUSING,2,HOUSING  DEMAND,RENTS,1200,,17/09/2018,40822739,1685.16,ALTWOOD PROPERTIES LTD
Ealing Council,http://opendatacommunities.org/id/london-borough-council/ealing,REGENERATION AND HOUSING,2,HOUSING  DEMAND,RENTS,1200,,22/08/2018,40819291,1054.62,BISHOP PROPERTY MANAGEMENT LTD
Ealing Council,http://opendatacommunities.org/id/london-borough-council/ealing,REGENERATION AND HOUSING,2,HOUSING  DEMAND,RENTS,1200,,31/07/2018,40819443,40332.55,MEARS HOUSING MANAGEMENT LIMITED
Ealing Council,http://opendatacommunities.org/id/london-borough-council/ealing,REGENERATION AND HOUSING,2,HOUSING  DEMAND,RENTS,1200,,31/07/2018,40819443,3076.44,MEARS HOUSING MANAGEMENT LIMITED
Ealing Council,http://opendatacommunities.org/id/london-borough-council/ealing,REGENERATION AND HOUSING,2,HOUSING  DEMAND,RENTS,1200,,12/09/2018,40821914,6890.86,NETWORK HOMES LIMITED T/A NETWORK STADIUM HOUSING ASSOCIATION LTD
Ealing Council,http://opendatacommunities.org/id/london-borough-council/ealing,REGENERATION AND HOUSING,2,HOUSING  DEMAND,RENTS,1200,,12/09/2018,40821914,700.25,NETWORK HOMES LIMITED T/A NETWORK STADIUM HOUSING ASSOCIATION LTD
Ealing Council,http://opendatacommunities.org/id/london-borough-council/ealing,REGENERATION AND HOUSING,2,HOUSING  DEMAND,RENTS,1200,,12/09/2018,40821915,19431.11,NETWORK HOMES LIMITED T/A NETWORK STADIUM HOUSING ASSOCIATION LTD
Ealing Council,http://opendatacommunities.org/id/london-borough-council/ealing,REGENERATION AND HOUSING,2,HOUSING  DEMAND,RENTS,1200,,12/09/2018,40821915,2790,NETWORK HOMES LIMITED T/A NETWORK STADIUM HOUSING ASSOCIATION LTD
Ealing Council,http://opendatacommunities.org/id/london-borough-council/ealing,REGENERATION AND HOUSING,2,HOUSING  DEMAND,RENTS,1200,,01/09/2018,40820850,6074.76,RHP LETTINGS LTD
Ealing Council,http://opendatacommunities.org/id/london-borough-council/ealing,REGENERATION AND HOUSING,2,HOUSING  DEMAND,RENTS,1200,,12/09/2018,40822171,49501.07,PARADIGM GROUP LIMITED
Ealing Council,http://opendatacommunities.org/id/london-borough-council/ealing,REGENERATION AND HOUSING,2,HOUSING  DEMAND,RENTS,1200,,27/09/2018,40824522,1020.68,BISHOP PROPERTY MANAGEMENT LTD
Ealing Council,http://opendatacommunities.org/id/london-borough-council/ealing,REGENERATION AND HOUSING,2,HOUSING  DEMAND,RENTS,1200,,31/07/2018,40819440,8424.56,MEARS HOUSING MANAGEMENT LIMITED
Ealing Council,http://opendatacommunities.org/id/london-borough-council/ealing,REGENERATION AND HOUSING,2,HOUSING  DEMAND,RENTS,1200,,31/07/2018,40819440,863.66,MEARS HOUSING MANAGEMENT LIMITED
Ealing Council,http://opendatacommunities.org/id/london-borough-council/ealing,REGENERATION AND HOUSING,2,HOUSING  DEMAND,RENTS,1200,,06/09/2018,40821479,2874.01,GENESIS HOUSING ASSOCIATION LTD T/A GENESIS HOUSING ASSOCIATION
Ealing Council,http://opendatacommunities.org/id/london-borough-council/ealing,CORPORATE RESOURCES,4,PROPERTY SERVICES,PROGRAMMED MAINTENANCE,1510,,20/09/2018,40823620,2275,CHARTWELL DOORS LTD
Ealing Council,http://opendatacommunities.org/id/london-borough-council/ealing,CORPORATE RESOURCES,4,PROPERTY SERVICES,PROGRAMMED MAINTENANCE,1510,,29/08/2018,40819909,3860,CHARTWELL DOORS LTD
Ealing Council,http://opendatacommunities.org/id/london-borough-council/ealing,CORPORATE RESOURCES,4,PROPERTY SERVICES,PROGRAMMED MAINTENANCE,1510,,13/09/2018,40822208,1799.5,EVANS AND BROOKS FIRE LTD
Ealing Council,http://opendatacommunities.org/id/london-borough-council/ealing,CORPORATE RESOURCES,4,PROPERTY SERVICES,SPECIALIST TECHNICAL CONTRACTORS,4050,,31/08/2018,40820534,3660,NULOGIC FIRE LIMITED
Ealing Council,http://opendatacommunities.org/id/london-borough-council/ealing,CORPORATE RESOURCES,4,PROPERTY SERVICES,PROGRAMMED MAINTENANCE,1510,,26/09/2018,40824412,13951.05,CAMPBELL & KENNEDY LIMITED
Ealing Council,http://opendatacommunities.org/id/london-borough-council/ealing,CORPORATE RESOURCES,4,PROPERTY SERVICES,PROGRAMMED MAINTENANCE,1510,,31/08/2018,40821117,850.33,LAKER BUILDING MANAGEMENT SOLUTIONS LIMITED
Ealing Council,http://opendatacommunities.org/id/london-borough-council/ealing,CORPORATE RESOURCES,4,PROPERTY SERVICES,PROGRAMMED MAINTENANCE,1510,,18/09/2018,40823177,1309.3,EVANS AND BROOKS FIRE LTD
Ealing Council,http://opendatacommunities.org/id/london-borough-council/ealing,CORPORATE RESOURCES,4,PROPERTY SERVICES,PROGRAMMED MAINTENANCE,1510,,20/09/2018,40823892,14060,CAMPBELL & KENNEDY LIMITED
Ealing Council,http://opendatacommunities.org/id/london-borough-council/ealing,CORPORATE RESOURCES,4,PROPERTY SERVICES,PROGRAMMED MAINTENANCE,1510,,20/09/2018,40823895,3802.5,CAMPBELL & KENNEDY LIMITED
Ealing Council,http://opendatacommunities.org/id/london-borough-council/ealing,CORPORATE RESOURCES,4,PROPERTY SERVICES,PROGRAMMED MAINTENANCE,1510,,20/09/2018,40823898,1395,CAMPBELL & KENNEDY LIMITED
Ealing Council,http://opendatacommunities.org/id/london-borough-council/ealing,CORPORATE RESOURCES,4,PROPERTY SERVICES,PROGRAMMED MAINTENANCE,1510,,14/09/2018,40823566,6472.2,H2O NATIONWIDE LIMITED
Ealing Council,http://opendatacommunities.org/id/london-borough-council/ealing,CORPORATE RESOURCES,4,PROPERTY SERVICES,PROGRAMMED MAINTENANCE,1510,,14/09/2018,40823568,889.49,H2O NATIONWIDE LIMITED
Ealing Council,http://opendatacommunities.org/id/london-borough-council/ealing,CORPORATE RESOURCES,4,PROPERTY SERVICES,PROGRAMMED MAINTENANCE,1510,,14/09/2018,40823570,1516.05,H2O NATIONWIDE LIMITED
Ealing Council,http://opendatacommunities.org/id/london-borough-council/ealing,CORPORATE RESOURCES,4,PROPERTY SERVICES,PROGRAMMED MAINTENANCE,1510,,18/09/2018,40823174,2125,EVANS AND BROOKS FIRE LTD
Ealing Council,http://opendatacommunities.org/id/london-borough-council/ealing,CHILDREN & ADULTS,1,"PLANNING, COMMISSIONING & PARTNERSHIPS",MINOR EQUIP. REPAIR,3380,,20/07/2018,40824271,568.8,POSTURITE (UK) LTD
Ealing Council,http://opendatacommunities.org/id/london-borough-council/ealing,REGENERATION AND HOUSING,2,HOUSING  DEMAND,RENTS,1200,,21/08/2018,40819149,34470.56,REDACTED SENSITIVE SUPPLIER
Ealing Council,http://opendatacommunities.org/id/london-borough-council/ealing,CORPORATE RESOURCES,4,PROPERTY SERVICES,PROGRAMMED MAINTENANCE,1510,,21/09/2018,40824366,850,CAMPBELL & KENNEDY LIMITED
Ealing Council,http://opendatacommunities.org/id/london-borough-council/ealing,CORPORATE RESOURCES,4,FUTURE WORKING PROGRAMME,EXTERNAL TECHNICAL ADVICE,4060,,05/09/2018,40821114,6691.28,ASR CONSTRUCTION UK LIMITED
Ealing Council,http://opendatacommunities.org/id/london-borough-council/ealing,CORPORATE RESOURCES,4,PROPERTY SERVICES,STATION. & CONSUMABLE EQUIP.,3820,,06/09/2018,40821525,270.9,OFFICE DEPOT UK LTD
Ealing Council,http://opendatacommunities.org/id/london-borough-council/ealing,CORPORATE RESOURCES,4,PROPERTY SERVICES,STATION. & CONSUMABLE EQUIP.,3820,,15/09/2018,40822497,398,OFFICE DEPOT UK LTD
Ealing Council,http://opendatacommunities.org/id/london-borough-council/ealing,CORPORATE RESOURCES,4,LOCAL TAX & ACCOUNTS RECEIVABLE,DEBT COLLECTION COST (DCC),2850,,21/06/2018,40819997,317.93,PHOENIX COMMERCIAL COLLECTIONS LTD
Ealing Council,http://opendatacommunities.org/id/london-borough-council/ealing,CORPORATE RESOURCES,4,LOCAL TAX & ACCOUNTS RECEIVABLE,COMP SOFTWARE,3210,,29/08/2018,40820227,956.25,INFORM CPI LTD
Ealing Council,http://opendatacommunities.org/id/london-borough-council/ealing,CORPORATE RESOURCES,4,DEMOCRATIC SERVICES,VEHICLE HIRE,2010,,01/08/2018,40822154,510,S7 CHAUFFEURS LTD
Ealing Council,http://opendatacommunities.org/id/london-borough-council/ealing,CORPORATE RESOURCES,4,DEMOCRATIC SERVICES,REPAIR AND MAINTENANCE,1410,,20/08/2018,40823545,330,Sundry Supplier - Corporate Resources
Ealing Council,http://opendatacommunities.org/id/london-borough-council/ealing,CORPORATE RESOURCES,4,DEMOCRATIC SERVICES,SUBSCRIPTIONS,3600,,26/05/2018,40816784,412,REED ELSEVIER (UK) LTD LEXIS NEXIS
Ealing Council,http://opendatacommunities.org/id/london-borough-council/ealing,CORPORATE RESOURCES,4,DEMOCRATIC SERVICES,POSTAGE,3800,,17/09/2018,40824048,6282.85,ROYAL MAIL GROUP LTD
Ealing Council,http://opendatacommunities.org/id/london-borough-council/ealing,CORPORATE RESOURCES,4,DEMOCRATIC SERVICES,PRINTING,3850,,22/08/2018,40821295,33540.76,FCS LASER MAIL
Ealing Council,http://opendatacommunities.org/id/london-borough-council/ealing,CORPORATE RESOURCES,4,DEMOCRATIC SERVICES,PRINTING,3850,,22/08/2018,40821297,18009.11,FCS LASER MAIL
Ealing Council,http://opendatacommunities.org/id/london-borough-council/ealing,CORPORATE RESOURCES,4,LEGAL SERVICES,LEGAL FEES,2840,,26/06/2018,40822450,500,Sundry Supplier - Corporate Resources
Ealing Council,http://opendatacommunities.org/id/london-borough-council/ealing,CORPORATE RESOURCES,4,LEGAL SERVICES,LEGAL FEES,2840,,17/08/2018,40820496,600,Sundry Supplier - Corporate Resources
Ealing Council,http://opendatacommunities.org/id/london-borough-council/ealing,CORPORATE RESOURCES,4,LEGAL SERVICES,LEGAL FEES,2840,,24/08/2018,40824378,285,Sundry Supplier - Corporate Resources
Ealing Council,http://opendatacommunities.org/id/london-borough-council/ealing,CORPORATE RESOURCES,4,LEGAL SERVICES,LEGAL FEES,2840,,31/07/2018,40820520,292.5,Sundry Supplier - Corporate Resources
Ealing Council,http://opendatacommunities.org/id/london-borough-council/ealing,CORPORATE RESOURCES,4,LEGAL SERVICES,LEGAL FEES,2840,,31/05/2018,40820523,1606.15,Sundry Supplier - Corporate Resources
Ealing Council,http://opendatacommunities.org/id/london-borough-council/ealing,CORPORATE RESOURCES,4,LEGAL SERVICES,MISCELLANEOUS,3720,,03/09/2018,40820654,22257.95,LEGAL SECTION- IMPREST ACCOUNT
Ealing Council,http://opendatacommunities.org/id/london-borough-council/ealing,CORPORATE RESOURCES,4,LEGAL SERVICES,LEGAL FEES,2840,,14/08/2018,40820933,600,Sundry Supplier - Corporate Resources
Ealing Council,http://opendatacommunities.org/id/london-borough-council/ealing,CORPORATE RESOURCES,4,LEGAL SERVICES,LEGAL FEES,2840,,29/08/2018,40821224,350,Sundry Supplier - Corporate Resources
Ealing Council,http://opendatacommunities.org/id/london-borough-council/ealing,CORPORATE RESOURCES,4,LEGAL SERVICES,LEGAL FEES,2840,,30/08/2018,40821225,751.4,Sundry Supplier - Corporate Resources
Ealing Council,http://opendatacommunities.org/id/london-borough-council/ealing,CORPORATE RESOURCES,4,LEGAL SERVICES,LEGAL FEES,2840,,13/08/2018,40821226,350,Sundry Supplier - Corporate Resources
Ealing Council,http://opendatacommunities.org/id/london-borough-council/ealing,CORPORATE RESOURCES,4,LEGAL SERVICES,LEGAL FEES,2840,,30/08/2018,40824555,8675,Sundry Supplier - Corporate Resources
Ealing Council,http://opendatacommunities.org/id/london-borough-council/ealing,CORPORATE RESOURCES,4,LEGAL SERVICES,LEGAL FEES,2840,,07/09/2018,40824556,500,Sundry Supplier - Corporate Resources
Ealing Council,http://opendatacommunities.org/id/london-borough-council/ealing,CORPORATE RESOURCES,4,LEGAL SERVICES,LEGAL FEES,2840,,23/04/2018,22565535,359.66,ALPHABIOLABS
Ealing Council,http://opendatacommunities.org/id/london-borough-council/ealing,CORPORATE RESOURCES,4,LEGAL SERVICES,LEGAL FEES,2840,,22/06/2018,22565536,500,MISS CATHERINE LE QUESNE
Ealing Council,http://opendatacommunities.org/id/london-borough-council/ealing,CORPORATE RESOURCES,4,LEGAL SERVICES,LEGAL FEES,2840,,07/09/2018,22565539,375,MR OLIVER LEWIS
Ealing Council,http://opendatacommunities.org/id/london-borough-council/ealing,CORPORATE RESOURCES,4,LEGAL SERVICES,LEGAL FEES,2840,,31/08/2018,22565540,337.2,LONDON LEGAL SERVICES LIMITED
Ealing Council,http://opendatacommunities.org/id/london-borough-council/ealing,CORPORATE RESOURCES,4,LEGAL SERVICES,LEGAL FEES,2840,,18/06/2018,22565541,275,MS LAUREN SUDING
Ealing Council,http://opendatacommunities.org/id/london-borough-council/ealing,CORPORATE RESOURCES,4,LEGAL SERVICES,LEGAL FEES,2840,,20/03/2018,22565542,297,SUMI RATNAM & CO LTD
Ealing Council,http://opendatacommunities.org/id/london-borough-council/ealing,CORPORATE RESOURCES,4,LEGAL SERVICES,LEGAL FEES,2840,,25/07/2018,22561346,450,IDNA GENETICS LTD T/a ANGLIA DNA SERVICES
Ealing Council,http://opendatacommunities.org/id/london-borough-council/ealing,CORPORATE RESOURCES,4,LEGAL SERVICES,LEGAL FEES,2840,,04/07/2018,22561352,538.2,PARENTING PROFILES LIMITED
Ealing Council,http://opendatacommunities.org/id/london-borough-council/ealing,CORPORATE RESOURCES,4,LEGAL SERVICES,LEGAL FEES,2840,,07/08/2018,22562519,1350,MISS REBECCA DAVIES
Ealing Council,http://opendatacommunities.org/id/london-borough-council/ealing,CORPORATE RESOURCES,4,LEGAL SERVICES,LEGAL FEES,2840,,28/06/2018,22562520,523,ANN COURTNEY
Ealing Council,http://opendatacommunities.org/id/london-borough-council/ealing,CORPORATE RESOURCES,4,LEGAL SERVICES,LEGAL FEES,2840,,16/07/2018,22562522,350,MS LAUREN SUDING
Ealing Council,http://opendatacommunities.org/id/london-borough-council/ealing,CORPORATE RESOURCES,4,LEGAL SERVICES,LEGAL FEES,2840,,30/08/2018,22562523,1110,MR JON HOLBROOK
Ealing Council,http://opendatacommunities.org/id/london-borough-council/ealing,CORPORATE RESOURCES,4,LEGAL SERVICES,LEGAL FEES,2840,,25/06/2018,22562479,300,JAMES SHARPE
Ealing Council,http://opendatacommunities.org/id/london-borough-council/ealing,CORPORATE RESOURCES,4,LEGAL SERVICES,LEGAL FEES,2840,,23/07/2018,22562478,1500,JAMES SHARPE
Ealing Council,http://opendatacommunities.org/id/london-borough-council/ealing,CORPORATE RESOURCES,4,LEGAL SERVICES,LEGAL FEES,2840,,08/07/2018,22561340,375,MISS JENNIFER SWAN
Ealing Council,http://opendatacommunities.org/id/london-borough-council/ealing,CORPORATE RESOURCES,4,LEGAL SERVICES,LEGAL FEES,2840,,08/06/2018,22561341,490,MISS REBECCA DAVIES
Ealing Council,http://opendatacommunities.org/id/london-borough-council/ealing,REGENERATION AND HOUSING,2,HOUSING  DEMAND,BED & BREAKFAST PAYMENTS,5330,,02/09/2018,40822770,432,REDACTED SENSITIVE SUPPLIER
Ealing Council,http://opendatacommunities.org/id/london-borough-council/ealing,REGENERATION AND HOUSING,2,HOUSING  DEMAND,BED & BREAKFAST PAYMENTS,5330,,02/09/2018,40822778,462,REDACTED SENSITIVE SUPPLIER
Ealing Council,http://opendatacommunities.org/id/london-borough-council/ealing,REGENERATION AND HOUSING,2,HOUSING  DEMAND,BED & BREAKFAST PAYMENTS,5330,,02/09/2018,40822779,294,REDACTED SENSITIVE SUPPLIER
Ealing Council,http://opendatacommunities.org/id/london-borough-council/ealing,REGENERATION AND HOUSING,2,HOUSING  DEMAND,BED & BREAKFAST PAYMENTS,5330,,11/02/2018,40823826,294,REDACTED SENSITIVE SUPPLIER
Ealing Council,http://opendatacommunities.org/id/london-borough-council/ealing,REGENERATION AND HOUSING,2,HOUSING  DEMAND,BED & BREAKFAST PAYMENTS,5330,,16/09/2018,40823786,420,REDACTED SENSITIVE SUPPLIER
Ealing Council,http://opendatacommunities.org/id/london-borough-council/ealing,REGENERATION AND HOUSING,2,HOUSING  DEMAND,BED & BREAKFAST PAYMENTS,5330,,16/09/2018,40823787,378,REDACTED SENSITIVE SUPPLIER
Ealing Council,http://opendatacommunities.org/id/london-borough-council/ealing,REGENERATION AND HOUSING,2,HOUSING  DEMAND,BED & BREAKFAST PAYMENTS,5330,,11/02/2018,40823844,294,REDACTED SENSITIVE SUPPLIER
Ealing Council,http://opendatacommunities.org/id/london-borough-council/ealing,REGENERATION AND HOUSING,2,HOUSING  DEMAND,BED & BREAKFAST PAYMENTS,5330,,11/02/2018,40823850,252,REDACTED SENSITIVE SUPPLIER
Ealing Council,http://opendatacommunities.org/id/london-borough-council/ealing,REGENERATION AND HOUSING,2,HOUSING  DEMAND,BED & BREAKFAST PAYMENTS,5330,,11/02/2018,40823858,252,REDACTED SENSITIVE SUPPLIER
Ealing Council,http://opendatacommunities.org/id/london-borough-council/ealing,REGENERATION AND HOUSING,2,HOUSING  DEMAND,BED & BREAKFAST PAYMENTS,5330,,11/02/2018,40823814,294,REDACTED SENSITIVE SUPPLIER
Ealing Council,http://opendatacommunities.org/id/london-borough-council/ealing,REGENERATION AND HOUSING,2,HOUSING  DEMAND,BED & BREAKFAST PAYMENTS,5330,,04/02/2018,40823819,294,REDACTED SENSITIVE SUPPLIER
Ealing Council,http://opendatacommunities.org/id/london-borough-council/ealing,REGENERATION AND HOUSING,2,HOUSING  DEMAND,BED & BREAKFAST PAYMENTS,5330,,11/02/2018,40823830,420,REDACTED SENSITIVE SUPPLIER
Ealing Council,http://opendatacommunities.org/id/london-borough-council/ealing,REGENERATION AND HOUSING,2,HOUSING  DEMAND,BED & BREAKFAST PAYMENTS,5330,,11/02/2018,40823831,294,REDACTED SENSITIVE SUPPLIER
Ealing Council,http://opendatacommunities.org/id/london-borough-council/ealing,REGENERATION AND HOUSING,2,HOUSING  DEMAND,BED & BREAKFAST PAYMENTS,5330,,11/02/2018,40823832,294,REDACTED SENSITIVE SUPPLIER
Ealing Council,http://opendatacommunities.org/id/london-borough-council/ealing,REGENERATION AND HOUSING,2,HOUSING  DEMAND,BED & BREAKFAST PAYMENTS,5330,,11/02/2018,40823834,294,REDACTED SENSITIVE SUPPLIER
Ealing Council,http://opendatacommunities.org/id/london-borough-council/ealing,REGENERATION AND HOUSING,2,HOUSING  DEMAND,BED & BREAKFAST PAYMENTS,5330,,11/02/2018,40823806,252,REDACTED SENSITIVE SUPPLIER
Ealing Council,http://opendatacommunities.org/id/london-borough-council/ealing,REGENERATION AND HOUSING,2,HOUSING  DEMAND,BED & BREAKFAST PAYMENTS,5330,,11/02/2018,40823807,294,REDACTED SENSITIVE SUPPLIER
Ealing Council,http://opendatacommunities.org/id/london-borough-council/ealing,REGENERATION AND HOUSING,2,HOUSING  DEMAND,BED & BREAKFAST PAYMENTS,5330,,11/02/2018,40823808,294,REDACTED SENSITIVE SUPPLIER
Ealing Council,http://opendatacommunities.org/id/london-borough-council/ealing,REGENERATION AND HOUSING,2,HOUSING  DEMAND,BED & BREAKFAST PAYMENTS,5330,,11/02/2018,40823809,294,REDACTED SENSITIVE SUPPLIER
Ealing Council,http://opendatacommunities.org/id/london-borough-council/ealing,REGENERATION AND HOUSING,2,HOUSING  DEMAND,BED & BREAKFAST PAYMENTS,5330,,11/02/2018,40823811,294,REDACTED SENSITIVE SUPPLIER
Ealing Council,http://opendatacommunities.org/id/london-borough-council/ealing,REGENERATION AND HOUSING,2,HOUSING  DEMAND,BED & BREAKFAST PAYMENTS,5330,,11/02/2018,40823812,294,REDACTED SENSITIVE SUPPLIER
Ealing Council,http://opendatacommunities.org/id/london-borough-council/ealing,REGENERATION AND HOUSING,2,HOUSING  DEMAND,BED & BREAKFAST PAYMENTS,5330,,11/02/2018,40823768,252,REDACTED SENSITIVE SUPPLIER
Ealing Council,http://opendatacommunities.org/id/london-borough-council/ealing,REGENERATION AND HOUSING,2,HOUSING  DEMAND,BED & BREAKFAST PAYMENTS,5330,,11/02/2018,40823769,504,REDACTED SENSITIVE SUPPLIER
Ealing Council,http://opendatacommunities.org/id/london-borough-council/ealing,REGENERATION AND HOUSING,2,HOUSING  DEMAND,BED & BREAKFAST PAYMENTS,5330,,11/02/2018,40823772,294,REDACTED SENSITIVE SUPPLIER
Ealing Council,http://opendatacommunities.org/id/london-borough-council/ealing,REGENERATION AND HOUSING,2,HOUSING  DEMAND,BED & BREAKFAST PAYMENTS,5330,,11/02/2018,40823774,252,REDACTED SENSITIVE SUPPLIER
Ealing Council,http://opendatacommunities.org/id/london-borough-council/ealing,REGENERATION AND HOUSING,2,HOUSING  DEMAND,BED & BREAKFAST PAYMENTS,5330,,11/02/2018,40823778,294,REDACTED SENSITIVE SUPPLIER
Ealing Council,http://opendatacommunities.org/id/london-borough-council/ealing,REGENERATION AND HOUSING,2,HOUSING  DEMAND,BED & BREAKFAST PAYMENTS,5330,,11/02/2018,40823775,252,REDACTED SENSITIVE SUPPLIER
Ealing Council,http://opendatacommunities.org/id/london-borough-council/ealing,CORPORATE RESOURCES,4,PROPERTY SERVICES,FUEL COSTS,2020,,02/08/2018,40816170,4455.28,Shell UK Ltd.
Ealing Council,http://opendatacommunities.org/id/london-borough-council/ealing,CORPORATE RESOURCES,4,ICT,RECRUITMENT COSTS,510,,31/08/2018,40820945,5830,@its (search & selection) Ltd
Ealing Council,http://opendatacommunities.org/id/london-borough-council/ealing,CORPORATE RESOURCES,4,CHIEF EXECUTIVES OFFICE,CONFERENCE EXPENSES,3520,,30/07/2018,40819974,595,THE SOCIETY OF LOCAL AUTHORITY CHIEF EXECS AND SNR MANAGERS (SOLACE GROUP) LTD
Ealing Council,http://opendatacommunities.org/id/london-borough-council/ealing,CORPORATE RESOURCES,4,LOCAL TAX & ACCOUNTS RECEIVABLE,POSTAGE,3800,,13/09/2018,40823546,1822.08,ROYAL MAIL GROUP LTD
Ealing Council,http://opendatacommunities.org/id/london-borough-council/ealing,CORPORATE RESOURCES,4,LOCAL TAX & ACCOUNTS RECEIVABLE,PRINTING,3850,,31/08/2018,40821845,2611.36,DSI BILLING SERVICES LTD
Ealing Council,http://opendatacommunities.org/id/london-borough-council/ealing,CORPORATE RESOURCES,4,LOCAL TAX & ACCOUNTS RECEIVABLE,TELEPHONE,3230,,31/08/2018,40822143,300,TELSOLUTIONS LTD
Ealing Council,http://opendatacommunities.org/id/london-borough-council/ealing,CORPORATE RESOURCES,4,LOCAL TAX & ACCOUNTS RECEIVABLE,LEGAL FEES,2840,,10/09/2018,40821681,250,WELBECK SOLICITORS LLP T/A WELBECK LAW LLP
Ealing Council,http://opendatacommunities.org/id/london-borough-council/ealing,CORPORATE RESOURCES,4,LOCAL TAX & ACCOUNTS RECEIVABLE,LEGAL FEES,2840,,11/09/2018,40822396,2942.4,WELBECK SOLICITORS LLP T/A WELBECK LAW LLP
Ealing Council,http://opendatacommunities.org/id/london-borough-council/ealing,CORPORATE RESOURCES,4,LOCAL TAX & ACCOUNTS RECEIVABLE,POSTAGE,3800,,10/09/2018,40822614,1035.65,ROYAL MAIL GROUP LTD
Ealing Council,http://opendatacommunities.org/id/london-borough-council/ealing,CORPORATE RESOURCES,4,LOCAL TAX & ACCOUNTS RECEIVABLE,POSTAGE,3800,,06/09/2018,40822951,3642.82,ROYAL MAIL GROUP LTD
Ealing Council,http://opendatacommunities.org/id/london-borough-council/ealing,CORPORATE RESOURCES,4,LOCAL TAX & ACCOUNTS RECEIVABLE,POSTAGE,3800,,23/08/2018,40819929,1790.42,ROYAL MAIL GROUP LTD
Ealing Council,http://opendatacommunities.org/id/london-borough-council/ealing,CORPORATE RESOURCES,4,HUMAN RESOURCES,RECRUITMENT COSTS,510,,31/08/2018,40820927,4625,PENNA PLC
Ealing Council,http://opendatacommunities.org/id/london-borough-council/ealing,CORPORATE RESOURCES,4,HUMAN RESOURCES,SPECIALIST TECHNICAL CONTRACTORS,4050,,05/09/2018,40821706,4850,REDACTED SENSITIVE SUPPLIER
Ealing Council,http://opendatacommunities.org/id/london-borough-council/ealing,CORPORATE RESOURCES,4,HUMAN RESOURCES,SPECIALIST TECHNICAL CONTRACTORS,4050,,05/09/2018,40821234,1116,PHYSIOWORKS
Ealing Council,http://opendatacommunities.org/id/london-borough-council/ealing,CORPORATE RESOURCES,4,DEMOCRATIC SERVICES,VEHICLE HIRE,2010,,01/09/2018,40821811,585,S7 CHAUFFEURS LTD
Ealing Council,http://opendatacommunities.org/id/london-borough-council/ealing,CORPORATE RESOURCES,4,PROPERTY SERVICES,PROGRAMMED MAINTENANCE,1510,,18/09/2018,40823175,1750,EVANS AND BROOKS FIRE LTD
Ealing Council,http://opendatacommunities.org/id/london-borough-council/ealing,CORPORATE RESOURCES,4,PROPERTY SERVICES,PROGRAMMED MAINTENANCE,1510,,18/09/2018,40823176,2198,EVANS AND BROOKS FIRE LTD
Ealing Council,http://opendatacommunities.org/id/london-borough-council/ealing,CORPORATE RESOURCES,4,PROPERTY SERVICES,PROGRAMMED MAINTENANCE,1510,,10/09/2018,40821747,1998.32,APEX LIFTS & ESCALATOR ENGINEERS LTD
Ealing Council,http://opendatacommunities.org/id/london-borough-council/ealing,CORPORATE RESOURCES,4,PROPERTY SERVICES,PROGRAMMED MAINTENANCE,1510,,31/08/2018,40821124,3455,APEX REFRIGERATION & AIR CONDITIONING LTD
Ealing Council,http://opendatacommunities.org/id/london-borough-council/ealing,CORPORATE RESOURCES,4,PROPERTY SERVICES,PROGRAMMED MAINTENANCE,1510,,31/08/2018,40821128,460,APEX REFRIGERATION & AIR CONDITIONING LTD
Ealing Council,http://opendatacommunities.org/id/london-borough-council/ealing,CORPORATE RESOURCES,4,PROPERTY SERVICES,PROGRAMMED MAINTENANCE,1510,,14/09/2018,40823562,3587.63,H2O NATIONWIDE LIMITED
Ealing Council,http://opendatacommunities.org/id/london-borough-council/ealing,CORPORATE RESOURCES,4,PROPERTY SERVICES,PROGRAMMED MAINTENANCE,1510,,14/09/2018,40823563,3430.8,H2O NATIONWIDE LIMITED
Ealing Council,http://opendatacommunities.org/id/london-borough-council/ealing,CORPORATE RESOURCES,4,PROPERTY SERVICES,PROGRAMMED MAINTENANCE,1510,,14/09/2018,40823565,560.91,H2O NATIONWIDE LIMITED
Ealing Council,http://opendatacommunities.org/id/london-borough-council/ealing,CORPORATE RESOURCES,4,ICT,COMP  HARDWARE - RENTAL,3204,,12/09/2018,40822206,328.88,CDW Limited
Ealing Council,http://opendatacommunities.org/id/london-borough-council/ealing,CORPORATE RESOURCES,4,ICT,LICENCES,2710,,06/09/2018,40821538,8000,NORTHGATE PUBLIC SERVICES (UK) LTD
Ealing Council,http://opendatacommunities.org/id/london-borough-council/ealing,CORPORATE RESOURCES,4,ICT,COMP OUTSOURCED SERVICES,3220,,10/09/2018,40821724,4000,MICROLAND LTD
Ealing Council,http://opendatacommunities.org/id/london-borough-council/ealing,CORPORATE RESOURCES,4,ICT,SERVICES CONTRACTS AGENCY INTERIM CONSULTANTS ,2970,,29/08/2018,40820054,450,SERVELEC SYNERGY LIMITED
Ealing Council,http://opendatacommunities.org/id/london-borough-council/ealing,CORPORATE RESOURCES,4,ICT,SERVICES CONTRACTS AGENCY INTERIM CONSULTANTS ,2970,,31/08/2018,40820915,2750,INTERQUEST GROUP (UK) LTD T/A IQ PUBLIC SECTOR
Ealing Council,http://opendatacommunities.org/id/london-borough-council/ealing,CORPORATE RESOURCES,4,ICT,COMP OUTSOURCED SERVICES,3220,,10/09/2018,40821725,1170.75,MICROLAND LTD
Ealing Council,http://opendatacommunities.org/id/london-borough-council/ealing,CORPORATE RESOURCES,4,ICT,SERVICES CONTRACTS AGENCY INTERIM CONSULTANTS ,2970,,12/09/2018,40821935,1375,INTERQUEST GROUP (UK) LTD T/A IQ PUBLIC SECTOR
Ealing Council,http://opendatacommunities.org/id/london-borough-council/ealing,CORPORATE RESOURCES,4,ICT,COMP OUTSOURCED SERVICES,3220,,08/07/2017,40819584,1943.15,VIRGIN MEDIA BUSINESS LTD
Ealing Council,http://opendatacommunities.org/id/london-borough-council/ealing,CORPORATE RESOURCES,4,ICT,COMP OUTSOURCED SERVICES,3220,,08/10/2017,40819585,1370.75,VIRGIN MEDIA BUSINESS LTD
Ealing Council,http://opendatacommunities.org/id/london-borough-council/ealing,CORPORATE RESOURCES,4,ICT,COMP OUTSOURCED SERVICES,3220,,08/01/2018,40819586,1370.75,VIRGIN MEDIA BUSINESS LTD
Ealing Council,http://opendatacommunities.org/id/london-borough-council/ealing,CORPORATE RESOURCES,4,ICT,COMP OUTSOURCED SERVICES,3220,,08/04/2018,40819590,1370.75,VIRGIN MEDIA BUSINESS LTD
Ealing Council,http://opendatacommunities.org/id/london-borough-council/ealing,CORPORATE RESOURCES,4,ICT,LICENCES,2710,,06/09/2018,40821498,1615,LONDON GRID FOR LEARNING TRUST
Ealing Council,http://opendatacommunities.org/id/london-borough-council/ealing,CORPORATE RESOURCES,4,ICT,LICENCES,2710,,29/06/2018,40821743,907.36,Sundry Supplier - Corporate Resources
Ealing Council,http://opendatacommunities.org/id/london-borough-council/ealing,CORPORATE RESOURCES,4,ICT,LICENCES,2710,,14/09/2018,40822469,2107.28,LONDON GRID FOR LEARNING TRUST
Ealing Council,http://opendatacommunities.org/id/london-borough-council/ealing,CORPORATE RESOURCES,4,ICT,LICENCES,2710,,04/09/2018,40822952,350,SCC PLC
Ealing Council,http://opendatacommunities.org/id/london-borough-council/ealing,CORPORATE RESOURCES,4,ICT,LICENCES,2710,,31/07/2018,40820462,73848,NETCALL TELECOM LTD
Ealing Council,http://opendatacommunities.org/id/london-borough-council/ealing,CORPORATE RESOURCES,4,ICT,LICENCES,2710,,24/08/2018,40820664,6565,SCC PLC
Ealing Council,http://opendatacommunities.org/id/london-borough-council/ealing,CORPORATE RESOURCES,4,ICT,COMP SOFTWARE,3210,,10/09/2018,40821722,64541.41,MICROLAND LTD
Ealing Council,http://opendatacommunities.org/id/london-borough-council/ealing,CORPORATE RESOURCES,4,ICT,COMP SOFTWARE,3210,,10/09/2018,40821730,31852,MICROLAND LTD
Ealing Council,http://opendatacommunities.org/id/london-borough-council/ealing,CORPORATE RESOURCES,4,ICT,COMP SOFTWARE,3210,,10/09/2018,40821738,46486.56,LONDON GRID FOR LEARNING TRUST
Ealing Council,http://opendatacommunities.org/id/london-borough-council/ealing,CORPORATE RESOURCES,4,ICT,COMP OUTSOURCED SERVICES,3220,,06/09/2018,40821394,19194,@its (search & selection) Ltd
Ealing Council,http://opendatacommunities.org/id/london-borough-council/ealing,CORPORATE RESOURCES,4,HUMAN RESOURCES,PAYMENTS TO CONTRACTORS,4000,,07/08/2018,40821439,583.5,Sundry Supplier - Corporate Resources
Ealing Council,http://opendatacommunities.org/id/london-borough-council/ealing,CORPORATE RESOURCES,4,LEGAL SERVICES,LEGAL FEES,2840,,29/08/2018,40821222,350,THOMPSONS SOLICITORS
Ealing Council,http://opendatacommunities.org/id/london-borough-council/ealing,CORPORATE RESOURCES,4,LEGAL SERVICES,LEGAL FEES,2840,,07/08/2018,40823970,17250,Sundry Supplier - Corporate Resources
Ealing Council,http://opendatacommunities.org/id/london-borough-council/ealing,CORPORATE RESOURCES,4,LEGAL SERVICES,LEGAL FEES,2840,,21/08/2018,40824153,35000,Sundry Supplier - Corporate Resources
Ealing Council,http://opendatacommunities.org/id/london-borough-council/ealing,CORPORATE RESOURCES,4,LEGAL SERVICES,LEGAL FEES,2840,,14/09/2018,40824394,300,MISS EMMA GODFREY
Ealing Council,http://opendatacommunities.org/id/london-borough-council/ealing,CORPORATE RESOURCES,4,LEGAL SERVICES,LEGAL FEES,2840,,11/09/2018,40824397,445,MS SARAH SALMON
Ealing Council,http://opendatacommunities.org/id/london-borough-council/ealing,CORPORATE RESOURCES,4,LEGAL SERVICES,LEGAL FEES,2840,,29/08/2018,40824403,8748.2,DAC BEACHCROFT
Ealing Council,http://opendatacommunities.org/id/london-borough-council/ealing,CORPORATE RESOURCES,4,LEGAL SERVICES,LEGAL FEES,2840,,29/08/2018,40824403,-1000,DAC BEACHCROFT
Ealing Council,http://opendatacommunities.org/id/london-borough-council/ealing,CORPORATE RESOURCES,4,LEGAL SERVICES,LEGAL FEES,2840,,14/09/2018,40824405,2079,PJ BINGHAM & CO LTD
Ealing Council,http://opendatacommunities.org/id/london-borough-council/ealing,CORPORATE RESOURCES,4,LEGAL SERVICES,LEGAL FEES,2840,,31/07/2018,40821942,1617,LEWIS SILKIN
Ealing Council,http://opendatacommunities.org/id/london-borough-council/ealing,CORPORATE RESOURCES,4,LEGAL SERVICES,LEGAL FEES,2840,,07/09/2018,40821944,1000,MATHEW MCDERMOTT
Ealing Council,http://opendatacommunities.org/id/london-borough-council/ealing,CORPORATE RESOURCES,4,LEGAL SERVICES,LEGAL FEES,2840,,10/08/2018,40822049,19000,Sundry Supplier - Corporate Resources
Ealing Council,http://opendatacommunities.org/id/london-borough-council/ealing,CHIEF EXECUTIVE DIRECTORATE,5,STRATEGY & ENGAGEMENT,PRINTING,3850,,31/08/2018,40820833,1497,GEMINI PRINT SOUTHERN LTD
Ealing Council,http://opendatacommunities.org/id/london-borough-council/ealing,CORPORATE RESOURCES,4,LEGAL SERVICES,LEGAL FEES,2840,,02/08/2018,22561342,450,MR ED LAMB
Ealing Council,http://opendatacommunities.org/id/london-borough-council/ealing,CORPORATE RESOURCES,4,LEGAL SERVICES,LEGAL FEES,2840,,02/08/2018,22561343,1023,SARAH HUNWICK
Ealing Council,http://opendatacommunities.org/id/london-borough-council/ealing,CORPORATE RESOURCES,4,LEGAL SERVICES,LEGAL FEES,2840,,17/07/2018,22562484,550,MISS JENNIFER SWAN
Ealing Council,http://opendatacommunities.org/id/london-borough-council/ealing,CORPORATE RESOURCES,4,LEGAL SERVICES,LEGAL FEES,2840,,29/05/2018,22562485,400,CHRISTI SCARBOROUGH
Ealing Council,http://opendatacommunities.org/id/london-borough-council/ealing,CORPORATE RESOURCES,4,LEGAL SERVICES,LEGAL FEES,2840,,21/08/2018,22562486,412.5,MR UMMAR FAROOQ AHMAD
Ealing Council,http://opendatacommunities.org/id/london-borough-council/ealing,CORPORATE RESOURCES,4,LEGAL SERVICES,LEGAL FEES,2840,,03/08/2018,22562487,625,MR JAMES DOVE
Ealing Council,http://opendatacommunities.org/id/london-borough-council/ealing,CORPORATE RESOURCES,4,LEGAL SERVICES,LEGAL FEES,2840,,11/04/2018,22562488,274.66,CELLMARK
Ealing Council,http://opendatacommunities.org/id/london-borough-council/ealing,CORPORATE RESOURCES,4,LEGAL SERVICES,LEGAL FEES,2840,,15/08/2018,22562493,2891,CORE ASSETS EXPERT SERVICES LTD T/a CARTER BROWN EXPERT SERVICES
Ealing Council,http://opendatacommunities.org/id/london-borough-council/ealing,CORPORATE RESOURCES,4,LEGAL SERVICES,LEGAL FEES,2840,,08/08/2018,22565545,490,MR ED LAMB
Ealing Council,http://opendatacommunities.org/id/london-borough-council/ealing,CORPORATE RESOURCES,4,LEGAL SERVICES,LEGAL FEES,2840,,02/08/2018,22565546,375,MR TOM RESTALL
Ealing Council,http://opendatacommunities.org/id/london-borough-council/ealing,CORPORATE RESOURCES,4,LEGAL SERVICES,LEGAL FEES,2840,,30/08/2018,22565547,750,SARAH HUNWICK
Ealing Council,http://opendatacommunities.org/id/london-borough-council/ealing,CORPORATE RESOURCES,4,LEGAL SERVICES,LEGAL FEES,2840,,30/08/2018,22565548,1082,MR TOM RESTALL
Ealing Council,http://opendatacommunities.org/id/london-borough-council/ealing,CORPORATE RESOURCES,4,LEGAL SERVICES,LEGAL FEES,2840,,15/05/2018,22562482,600,MS LAUREN SUDING
Ealing Council,http://opendatacommunities.org/id/london-borough-council/ealing,CORPORATE RESOURCES,4,LEGAL SERVICES,LEGAL FEES,2840,,09/07/2018,22562483,1073,MS ELIZABETH STEVENS
Ealing Council,http://opendatacommunities.org/id/london-borough-council/ealing,CHILDREN & ADULTS,1,PUBLIC HEALTH DRUGS AND ALCOHOL,PAYMENTS TO CONTRACTORS,4000,,23/08/2018,40819747,5000,Sundry Supplier - Children and Adults
Ealing Council,http://opendatacommunities.org/id/london-borough-council/ealing,CAPITAL SCHEMES,K,SCHOOLS SERVICE,CAPITAL - CONTRACT PAYMENTS,7200,,22/08/2018,40819693,78241.29,LENGARD LIMITED
Ealing Council,http://opendatacommunities.org/id/london-borough-council/ealing,REGENERATION AND HOUSING,2,PROPERTY & REGENERATION,RECRUITMENT COSTS,510,,12/09/2018,40822111,7400,EALING COMMUNITY & VOLUNTARY SERVICE
Ealing Council,http://opendatacommunities.org/id/london-borough-council/ealing,REGENERATION AND HOUSING,2,PROPERTY & REGENERATION,SPECIALIST TECHNICAL CONTRACTORS,4050,,20/09/2018,40823670,34173,ENERGENCE LTD
Ealing Council,http://opendatacommunities.org/id/london-borough-council/ealing,REGENERATION AND HOUSING,2,PROPERTY & REGENERATION,FEES & CHARGES (NON VATABLE),8211,,16/08/2018,40821353,462,Sundry Supplier - Regeneration & Housing
Ealing Council,http://opendatacommunities.org/id/london-borough-council/ealing,REGENERATION AND HOUSING,2,PROPERTY & REGENERATION,VEHICLE HIRE,2010,,21/09/2018,40823707,320,THE IMPACT GROUP LIMITED
Ealing Council,http://opendatacommunities.org/id/london-borough-council/ealing,REGENERATION AND HOUSING,2,PROPERTY & REGENERATION,DATA ARCHIVING,3840,,31/05/2018,40824187,1662.4,RESOLUTION DATA MANAGEMENT LTD
Ealing Council,http://opendatacommunities.org/id/london-borough-council/ealing,REGENERATION AND HOUSING,2,PROPERTY & REGENERATION,DATA ARCHIVING,3840,,31/08/2018,40824191,1578.4,RESOLUTION DATA MANAGEMENT LTD
Ealing Council,http://opendatacommunities.org/id/london-borough-council/ealing,REGENERATION AND HOUSING,2,PROPERTY & REGENERATION,DATA ARCHIVING,3840,,01/06/2018,40824273,900,RESOLUTION DATA MANAGEMENT LTD
Ealing Council,http://opendatacommunities.org/id/london-borough-council/ealing,REGENERATION AND HOUSING,2,PROPERTY & REGENERATION,SPECIALIST TECHNICAL CONTRACTORS,4050,,05/09/2018,40824385,3443.4,VALUATION OFFICE AGENCY T/A/ DVS PROPERTY SERVICES
Ealing Council,http://opendatacommunities.org/id/london-borough-council/ealing,REGENERATION AND HOUSING,2,PROPERTY & REGENERATION,EXTERNAL TECHNICAL ADVICE,4060,,27/09/2018,40824406,6373.3,GERALD EVE LLP
Ealing Council,http://opendatacommunities.org/id/london-borough-council/ealing,REGENERATION AND HOUSING,2,PROPERTY & REGENERATION,SPECIALIST TECHNICAL CONTRACTORS,4050,,10/09/2018,40821654,1559,ENERGENCE LTD
Ealing Council,http://opendatacommunities.org/id/london-borough-council/ealing,REGENERATION AND HOUSING,2,PROPERTY & REGENERATION,SPECIALIST TECHNICAL CONTRACTORS,4050,,10/09/2018,40821655,3729,ENERGENCE LTD
Ealing Council,http://opendatacommunities.org/id/london-borough-council/ealing,REGENERATION AND HOUSING,2,PROPERTY & REGENERATION,SPECIALIST TECHNICAL CONTRACTORS,4050,,10/09/2018,40821656,844,ENERGENCE LTD
Ealing Council,http://opendatacommunities.org/id/london-borough-council/ealing,REGENERATION AND HOUSING,2,PROPERTY & REGENERATION,SPECIALIST TECHNICAL CONTRACTORS,4050,,10/09/2018,40821658,7139,ENERGENCE LTD
Ealing Council,http://opendatacommunities.org/id/london-borough-council/ealing,REGENERATION AND HOUSING,2,TRANSPORT,EXTERNAL TECHNICAL ADVICE,4060,,03/09/2018,40820715,2704,CYCLE TRAINING UK LTD
Ealing Council,http://opendatacommunities.org/id/london-borough-council/ealing,REGENERATION AND HOUSING,2,TRANSPORT,EXTERNAL TECHNICAL ADVICE,4060,,03/09/2018,40820759,1920,CYCLE TRAINING UK LTD
Ealing Council,http://opendatacommunities.org/id/london-borough-council/ealing,REGENERATION AND HOUSING,2,TRANSPORT,EXTERNAL TECHNICAL ADVICE,4060,,17/09/2018,40822604,916.51,CYCLE TRAINING UK LTD
Ealing Council,http://opendatacommunities.org/id/london-borough-council/ealing,REGENERATION AND HOUSING,2,TRANSPORT,EXTERNAL TECHNICAL ADVICE,4060,,19/09/2018,40823716,5502.5,CYCLE TRAINING UK LTD
Ealing Council,http://opendatacommunities.org/id/london-borough-council/ealing,REGENERATION AND HOUSING,2,TRANSPORT,REPAIR AND MAINTENANCE,1410,,25/09/2018,40824250,333.34,THE BIKE SHOP (GREENFORD)
Ealing Council,http://opendatacommunities.org/id/london-borough-council/ealing,REGENERATION AND HOUSING,2,TRANSPORT,EQUIPMENT RENTAL,3335,,21/09/2018,40822532,2451,ELECTRIC PEDALS EXPERIENCE LTD
Ealing Council,http://opendatacommunities.org/id/london-borough-council/ealing,REGENERATION AND HOUSING,2,TRANSPORT,CONFERENCE EXPENSES,3520,,18/08/2018,40822539,250,Sundry Supplier - Regeneration & Housing
Ealing Council,http://opendatacommunities.org/id/london-borough-council/ealing,REGENERATION AND HOUSING,2,TRANSPORT,EQUIPMENT RENTAL,3335,,30/06/2018,40824408,435,QIK LOO
Ealing Council,http://opendatacommunities.org/id/london-borough-council/ealing,REGENERATION AND HOUSING,2,TRANSPORT,EXTERNAL TECHNICAL ADVICE,4060,,13/09/2018,40823298,11963.89,SOUTHERN ELECTRIC CONTRACTING LTD
Ealing Council,http://opendatacommunities.org/id/london-borough-council/ealing,REGENERATION AND HOUSING,2,TRANSPORT,EXTERNAL TECHNICAL ADVICE,4060,,21/06/2018,40820936,449,FOR2FEET LIMITED
Ealing Council,http://opendatacommunities.org/id/london-borough-council/ealing,REGENERATION AND HOUSING,2,TRANSPORT,EXTERNAL TECHNICAL ADVICE,4060,,10/07/2018,40820937,449,FOR2FEET LIMITED
Ealing Council,http://opendatacommunities.org/id/london-borough-council/ealing,CHIEF EXECUTIVE DIRECTORATE,5,STRATEGY & ENGAGEMENT,PAYMENTS TO CLIENTS,4340,,06/09/2018,40821458,5439.5,Sundry Supplier - Chief Executives
Ealing Council,http://opendatacommunities.org/id/london-borough-council/ealing,CHIEF EXECUTIVE DIRECTORATE,5,STRATEGY & ENGAGEMENT,PAYMENTS TO CLIENTS,4340,,21/09/2018,40823693,750,AGE UK EALING
Ealing Council,http://opendatacommunities.org/id/london-borough-council/ealing,CHIEF EXECUTIVE DIRECTORATE,5,STRATEGY & ENGAGEMENT,PAYMENTS TO CLIENTS,4340,,17/09/2018,40823894,300,ACTON EALING WHISTLERS FOOTBALL CLUB
Ealing Council,http://opendatacommunities.org/id/london-borough-council/ealing,CHIEF EXECUTIVE DIRECTORATE,5,STRATEGY & ENGAGEMENT,PAYMENTS TO CLIENTS,4340,,24/09/2018,40823938,1500,ISLAND TRIANGLE RESIDENTS ASS
Ealing Council,http://opendatacommunities.org/id/london-borough-council/ealing,CHIEF EXECUTIVE DIRECTORATE,5,STRATEGY & ENGAGEMENT,PAYMENTS TO CLIENTS,4340,,24/09/2018,40823939,1500,ISLAND TRIANGLE RESIDENTS ASS
Ealing Council,http://opendatacommunities.org/id/london-borough-council/ealing,CHIEF EXECUTIVE DIRECTORATE,5,STRATEGY & ENGAGEMENT,PAYMENTS TO CLIENTS,4340,,10/09/2018,40821714,1200,SPORTS AND LEISURE MANAGEMENT LTD
Ealing Council,http://opendatacommunities.org/id/london-borough-council/ealing,CHIEF EXECUTIVE DIRECTORATE,5,STRATEGY & ENGAGEMENT,COMP OUTSOURCED SERVICES,3220,,31/08/2018,40820931,3540,GATENBY SANDERSON LIMITED
Ealing Council,http://opendatacommunities.org/id/london-borough-council/ealing,CHIEF EXECUTIVE DIRECTORATE,5,STRATEGY & ENGAGEMENT,COMP OUTSOURCED SERVICES,3220,,31/08/2018,40822389,55500,IMPOWER CONSULTING LTD
Ealing Council,http://opendatacommunities.org/id/london-borough-council/ealing,CHIEF EXECUTIVE DIRECTORATE,5,STRATEGY & ENGAGEMENT,COMP OUTSOURCED SERVICES,3220,,07/09/2018,40821588,2832,GATENBY SANDERSON LIMITED
Ealing Council,http://opendatacommunities.org/id/london-borough-council/ealing,CHIEF EXECUTIVE DIRECTORATE,5,STRATEGY & ENGAGEMENT,COMP OUTSOURCED SERVICES,3220,,14/09/2018,40823341,293525,ERNST & YOUNG LLP
Ealing Council,http://opendatacommunities.org/id/london-borough-council/ealing,CHIEF EXECUTIVE DIRECTORATE,5,STRATEGY & ENGAGEMENT,COMP OUTSOURCED SERVICES,3220,,31/08/2018,40821241,580,CRAY VALLEY COMMUNICATIONS LTD
Ealing Council,http://opendatacommunities.org/id/london-borough-council/ealing,CHIEF EXECUTIVE DIRECTORATE,5,STRATEGY & ENGAGEMENT,SERVICES CONTRACTS AGENCY INTERIM CONSULTANTS ,2970,,31/08/2018,40820944,8000,@its (search & selection) Ltd
Ealing Council,http://opendatacommunities.org/id/london-borough-council/ealing,CHIEF EXECUTIVE DIRECTORATE,5,STRATEGY & ENGAGEMENT,COMP OUTSOURCED SERVICES,3220,,11/09/2018,40821798,1416,GATENBY SANDERSON LIMITED
Ealing Council,http://opendatacommunities.org/id/london-borough-council/ealing,CHIEF EXECUTIVE DIRECTORATE,5,West London Alliance,TRAINING,80,,04/07/2018,40820756,350,Sundry Supplier - Chief Executives
Ealing Council,http://opendatacommunities.org/id/london-borough-council/ealing,CHIEF EXECUTIVE DIRECTORATE,5,West London Alliance,MANAGEMENT CHARGES,2600,,10/09/2018,40821833,2484.17,V4 SERVICES LIMITED
Ealing Council,http://opendatacommunities.org/id/london-borough-council/ealing,CHIEF EXECUTIVE DIRECTORATE,5,West London Alliance,MANAGEMENT CHARGES,2600,,23/08/2018,40820743,7452.51,V4 SERVICES LIMITED
Ealing Council,http://opendatacommunities.org/id/london-borough-council/ealing,CHILDREN & ADULTS,1,SCHOOLS PFI,LEGAL FEES,2840,,31/08/2018,40821601,9355,DEVONSHIRES SOLICITORS
Ealing Council,http://opendatacommunities.org/id/london-borough-council/ealing,CHILDREN & ADULTS,1,SCHOOLS PFI,PAYMENTS TO CONTRACTORS,4000,,07/09/2018,40821688,7693.01,SEAFORT EALING LIMITED
Ealing Council,http://opendatacommunities.org/id/london-borough-council/ealing,CHILDREN & ADULTS,1,SCHOOLS PFI,PAYMENTS TO CONTRACTORS,4000,,07/09/2018,40821689,332529.55,SEAFORT EALING LIMITED
Ealing Council,http://opendatacommunities.org/id/london-borough-council/ealing,CHILDREN & ADULTS,1,SCHOOLS PFI,PAYMENTS TO CONTRACTORS,4000,,07/09/2018,40821690,229168.55,SEAFORT EALING LIMITED
Ealing Council,http://opendatacommunities.org/id/london-borough-council/ealing,CHILDREN & ADULTS,1,SCHOOLS PFI,PAYMENTS TO CONTRACTORS,4000,,07/09/2018,40821691,102320.3,SEAFORT EALING LIMITED
Ealing Council,http://opendatacommunities.org/id/london-borough-council/ealing,CAPITAL SCHEMES,K,ENVIRONMENT & LEISURE,CAPITAL - CIS TAX DEDUCTIONS,7250,,23/08/2018,40819635,4000,CENTURIAN SURFACING LTD - T/A CENTURIAN SERVICES
Ealing Council,http://opendatacommunities.org/id/london-borough-council/ealing,CAPITAL SCHEMES,K,ENVIRONMENT & LEISURE,CAPITAL - CIS TAX DEDUCTIONS,7250,,23/08/2018,40819635,15000,CENTURIAN SURFACING LTD - T/A CENTURIAN SERVICES
Ealing Council,http://opendatacommunities.org/id/london-borough-council/ealing,CAPITAL SCHEMES,K,ENVIRONMENT & LEISURE,CAPITAL - CONTRACT PAYMENTS,7200,,15/08/2018,40819184,808,STREETMASTER PRODUCTS (SOUTH WALES) LTD
Ealing Council,http://opendatacommunities.org/id/london-borough-council/ealing,CAPITAL SCHEMES,K,SCHOOLS SERVICE,CAPITAL - CONTRACT PAYMENTS,7200,,03/09/2018,40821536,1960,T MOHAN & CO LTD
Ealing Council,http://opendatacommunities.org/id/london-borough-council/ealing,REGENERATION AND HOUSING,2,COMMUNITY SAFETY,PAYMENTS TO CONTRACTORS,4000,,20/09/2018,40823730,7333,GOLDEN OPPORTUNITY SKILLS and DEVELOPMENT (GOSAD)
Ealing Council,http://opendatacommunities.org/id/london-borough-council/ealing,REGENERATION AND HOUSING,2,COMMUNITY SAFETY,PAYMENTS TO CONTRACTORS,4000,,17/09/2018,40822753,11066,SOUTHALL COMMUNITY ALLIANCE
Ealing Council,http://opendatacommunities.org/id/london-borough-council/ealing,REGENERATION AND HOUSING,2,COMMUNITY SAFETY,PAYMENTS TO CONTRACTORS,4000,,18/09/2018,40823051,16500,EALING COMMUNITY & VOLUNTARY SERVICE
Ealing Council,http://opendatacommunities.org/id/london-borough-council/ealing,REGENERATION AND HOUSING,2,COMMUNITY SAFETY,PAYMENTS TO CONTRACTORS,4000,,05/09/2018,40821267,2535,UKCT SUPPORT SERVICES LTD
Ealing Council,http://opendatacommunities.org/id/london-borough-council/ealing,REGENERATION AND HOUSING,2,COMMUNITY SAFETY,PAYMENTS TO CONTRACTORS,4000,,05/09/2018,40821269,305.3,MR K P SMITH
Ealing Council,http://opendatacommunities.org/id/london-borough-council/ealing,REGENERATION AND HOUSING,2,COMMUNITY SAFETY,PAYMENTS TO CONTRACTORS,4000,,24/09/2018,40824082,22500,SOMALI ADVICE AND DEVELOPMENT CENTRE
Ealing Council,http://opendatacommunities.org/id/london-borough-council/ealing,REGENERATION AND HOUSING,2,PROPERTY & REGENERATION,PAYMENTS TO CONTRACTORS,4000,,29/08/2018,40819965,81069.72,LAMBERT SMITH HAMPTON
Ealing Council,http://opendatacommunities.org/id/london-borough-council/ealing,CHIEF EXECUTIVE DIRECTORATE,5,West London Alliance,SERVICES CONTRACTS AGENCY INTERIM CONSULTANTS ,2970,,14/09/2018,40822699,14768,PETER BRETT ASSOCIATES LLP
Ealing Council,http://opendatacommunities.org/id/london-borough-council/ealing,CHIEF EXECUTIVE DIRECTORATE,5,West London Alliance,PAYMENTS TO CONTRACTORS,4000,,31/08/2018,40821285,2050,CAPITA BUSINESS SERVICES LTD
Ealing Council,http://opendatacommunities.org/id/london-borough-council/ealing,CHIEF EXECUTIVE DIRECTORATE,5,West London Alliance,SERVICES CONTRACTS AGENCY INTERIM CONSULTANTS ,2970,,05/09/2018,40821266,4000,SYSTRA LTD
Ealing Council,http://opendatacommunities.org/id/london-borough-council/ealing,CAPITAL SCHEMES,K,CORPORATE RESOURCES,CAPITAL - CONTRACT PAYMENTS,7200,,14/09/2018,40822472,4032.92,VERTIV INFRASTRUCTURE LIMITED
Ealing Council,http://opendatacommunities.org/id/london-borough-council/ealing,CAPITAL SCHEMES,K,CORPORATE RESOURCES,CAPITAL - CONTRACT PAYMENTS,7200,,20/09/2018,40824057,1175.56,EDMUNDSON ELECTRICAL LTD-T/A BENNETT & FOUNTAIN
Ealing Council,http://opendatacommunities.org/id/london-borough-council/ealing,CHILDREN & ADULTS,1,"PLANNING, COMMISSIONING & PARTNERSHIPS",CIS REPAIRS AND MAINTENANCE,1411,,23/08/2018,40823054,360,CENTURIAN SURFACING LTD - T/A CENTURIAN SERVICES
Ealing Council,http://opendatacommunities.org/id/london-borough-council/ealing,CHILDREN & ADULTS,1,"PLANNING, COMMISSIONING & PARTNERSHIPS",CIS REPAIRS AND MAINTENANCE,1411,,23/08/2018,40823054,1161,CENTURIAN SURFACING LTD - T/A CENTURIAN SERVICES
Ealing Council,http://opendatacommunities.org/id/london-borough-council/ealing,CHIEF EXECUTIVE DIRECTORATE,5,STRATEGY & ENGAGEMENT,PRINTING,3850,,31/08/2018,40820834,297,GEMINI PRINT SOUTHERN LTD
Ealing Council,http://opendatacommunities.org/id/london-borough-council/ealing,CHIEF EXECUTIVE DIRECTORATE,5,STRATEGY & ENGAGEMENT,PRINTING,3850,,31/08/2018,40820835,1282,GEMINI PRINT SOUTHERN LTD
Ealing Council,http://opendatacommunities.org/id/london-borough-council/ealing,CHIEF EXECUTIVE DIRECTORATE,5,STRATEGY & ENGAGEMENT,PRINTING,3850,,31/08/2018,40820836,845,GEMINI PRINT SOUTHERN LTD
Ealing Council,http://opendatacommunities.org/id/london-borough-council/ealing,CHIEF EXECUTIVE DIRECTORATE,5,STRATEGY & ENGAGEMENT,PRINTING,3850,,03/09/2018,40820851,650,GIDDEN PLACE LIMITED
Ealing Council,http://opendatacommunities.org/id/london-borough-council/ealing,CHIEF EXECUTIVE DIRECTORATE,5,STRATEGY & ENGAGEMENT,PRINTING,3850,,10/09/2018,40821889,250,GIDDEN PLACE LIMITED
Ealing Council,http://opendatacommunities.org/id/london-borough-council/ealing,CHIEF EXECUTIVE DIRECTORATE,5,STRATEGY & ENGAGEMENT,COURIER DELIVERY SERVICES,2700,,07/09/2018,40821682,281.81,LONDON LETTERBOX MARKETING
Ealing Council,http://opendatacommunities.org/id/london-borough-council/ealing,CHIEF EXECUTIVE DIRECTORATE,5,STRATEGY & ENGAGEMENT,PRINTING,3850,,26/09/2018,40824344,672,GEMINI PRINT SOUTHERN LTD
Ealing Council,http://opendatacommunities.org/id/london-borough-council/ealing,CHIEF EXECUTIVE DIRECTORATE,5,STRATEGY & ENGAGEMENT,PRINTING,3850,,27/09/2018,40824560,654,BOI CREATIVE LTD
Ealing Council,http://opendatacommunities.org/id/london-borough-council/ealing,CHIEF EXECUTIVE DIRECTORATE,5,STRATEGY & ENGAGEMENT,PRINTING,3850,,13/09/2018,40822305,569.08,GREENFORD PRINTING CO LTD
Ealing Council,http://opendatacommunities.org/id/london-borough-council/ealing,CHIEF EXECUTIVE DIRECTORATE,5,STRATEGY & ENGAGEMENT,PRINTING,3850,,19/09/2018,40823215,752,LONGSHAWS DESIGN & PRINT LIMITED
Ealing Council,http://opendatacommunities.org/id/london-borough-council/ealing,CHIEF EXECUTIVE DIRECTORATE,5,STRATEGY & ENGAGEMENT,ADVERTISING,2690,,14/09/2018,40822382,3138,BAY MEDIA LTD
Ealing Council,http://opendatacommunities.org/id/london-borough-council/ealing,CHIEF EXECUTIVE DIRECTORATE,5,STRATEGY & ENGAGEMENT,PRINTING,3850,,17/08/2018,40822702,675,RUISLIP PRESS T/A EVOLVE PRINT SOLUTIONS
Ealing Council,http://opendatacommunities.org/id/london-borough-council/ealing,CHIEF EXECUTIVE DIRECTORATE,5,STRATEGY & ENGAGEMENT,PRINTING,3850,,26/09/2018,40824267,1400,IAN STUART PAPE
Ealing Council,http://opendatacommunities.org/id/london-borough-council/ealing,CHIEF EXECUTIVE DIRECTORATE,5,STRATEGY & ENGAGEMENT,PRINTING,3850,,24/09/2018,40824264,909.2,REDACTED SENSITIVE SUPPLIER
Ealing Council,http://opendatacommunities.org/id/london-borough-council/ealing,CHIEF EXECUTIVE DIRECTORATE,5,STRATEGY & ENGAGEMENT,PRINTING,3850,,24/09/2018,40824203,370,RUISLIP PRESS T/A EVOLVE PRINT SOLUTIONS
Ealing Council,http://opendatacommunities.org/id/london-borough-council/ealing,CHIEF EXECUTIVE DIRECTORATE,5,STRATEGY & ENGAGEMENT,PRINTING,3850,,14/09/2018,40822549,427.72,REDACTED SENSITIVE SUPPLIER
Ealing Council,http://opendatacommunities.org/id/london-borough-council/ealing,CHIEF EXECUTIVE DIRECTORATE,5,STRATEGY & ENGAGEMENT,PRINTING,3850,,19/09/2018,40823212,760,LONGSHAWS DESIGN & PRINT LIMITED
Ealing Council,http://opendatacommunities.org/id/london-borough-council/ealing,CHIEF EXECUTIVE DIRECTORATE,5,STRATEGY & ENGAGEMENT,PRINTING,3850,,19/09/2018,40823213,580,LONGSHAWS DESIGN & PRINT LIMITED
Ealing Council,http://opendatacommunities.org/id/london-borough-council/ealing,CHIEF EXECUTIVE DIRECTORATE,5,STRATEGY & ENGAGEMENT,COURIER DELIVERY SERVICES,2700,,07/09/2018,40821683,300.46,LONDON LETTERBOX MARKETING
Ealing Council,http://opendatacommunities.org/id/london-borough-council/ealing,CHIEF EXECUTIVE DIRECTORATE,5,STRATEGY & ENGAGEMENT,COURIER DELIVERY SERVICES,2700,,07/09/2018,40821684,361.66,LONDON LETTERBOX MARKETING
Ealing Council,http://opendatacommunities.org/id/london-borough-council/ealing,CHIEF EXECUTIVE DIRECTORATE,5,STRATEGY & ENGAGEMENT,COURIER DELIVERY SERVICES,2700,,07/09/2018,40821685,319.93,LONDON LETTERBOX MARKETING
Ealing Council,http://opendatacommunities.org/id/london-borough-council/ealing,CHIEF EXECUTIVE DIRECTORATE,5,STRATEGY & ENGAGEMENT,POSTAGE,3800,,03/09/2018,40821131,761.78,ROYAL MAIL GROUP LTD
Ealing Council,http://opendatacommunities.org/id/london-borough-council/ealing,CHIEF EXECUTIVE DIRECTORATE,5,STRATEGY & ENGAGEMENT,PRINTING,3850,,14/09/2018,40822468,646,BOI CREATIVE LTD
Ealing Council,http://opendatacommunities.org/id/london-borough-council/ealing,CHIEF EXECUTIVE DIRECTORATE,5,STRATEGY & ENGAGEMENT,LICENCES,2710,,31/08/2018,40821135,1087,CLARITUM LIMITED
Ealing Council,http://opendatacommunities.org/id/london-borough-council/ealing,CHIEF EXECUTIVE DIRECTORATE,5,West London Alliance,RECRUITMENT COSTS,510,,13/09/2018,40822424,4983,PENNA PLC
Ealing Council,http://opendatacommunities.org/id/london-borough-council/ealing,CHIEF EXECUTIVE DIRECTORATE,5,West London Alliance,RECRUITMENT COSTS,510,,26/07/2018,40821010,4983,PENNA PLC
Ealing Council,http://opendatacommunities.org/id/london-borough-council/ealing,CHIEF EXECUTIVE DIRECTORATE,5,West London Alliance,RECRUITMENT COSTS,510,,05/09/2018,40821141,14458.5,PENNA PLC
Ealing Council,http://opendatacommunities.org/id/london-borough-council/ealing,CHILDREN & ADULTS,1,PLANNING & RESOURCE DEV,REPAIR AND MAINTENANCE,1410,,31/08/2018,40820881,5905.94,HARRISON CATERING SERVICES LTD
Ealing Council,http://opendatacommunities.org/id/london-borough-council/ealing,REGENERATION AND HOUSING,2,HOUSING  DEMAND,RENTS,1200,,05/09/2018,40821500,7501.5,COUNTY PRIVATE CLIENT LTD T/A COUNTY RENTS
Ealing Council,http://opendatacommunities.org/id/london-borough-council/ealing,REGENERATION AND HOUSING,2,HOUSING  DEMAND,RENTS,1200,,06/09/2018,40821511,2977.2,ASK ESTATES LIMITED
Ealing Council,http://opendatacommunities.org/id/london-borough-council/ealing,REGENERATION AND HOUSING,2,HOUSING  DEMAND,RENTS,1200,,07/09/2018,40821520,1826.03,MR RAM LUBHAYA PULLHA
Ealing Council,http://opendatacommunities.org/id/london-borough-council/ealing,REGENERATION AND HOUSING,2,HOUSING  DEMAND,RENTS,1200,,17/09/2018,40822567,2724.9,TANVIR GAUHER
Ealing Council,http://opendatacommunities.org/id/london-borough-council/ealing,REGENERATION AND HOUSING,2,HOUSING  DEMAND,RENTS,1200,,14/09/2018,40822377,1405,MR RABI CHATILA
Ealing Council,http://opendatacommunities.org/id/london-borough-council/ealing,REGENERATION AND HOUSING,2,HOUSING  DEMAND,RENTS,1200,,15/09/2018,40822354,1406.16,LONGSTAR ESTATES LTD
Ealing Council,http://opendatacommunities.org/id/london-borough-council/ealing,REGENERATION AND HOUSING,2,HOUSING  DEMAND,RENTS,1200,,20/09/2018,40823674,33113.27,GT STAR HOMES LTD
Ealing Council,http://opendatacommunities.org/id/london-borough-council/ealing,REGENERATION AND HOUSING,2,HOUSING  DEMAND,RENTS,1200,,25/09/2018,40824168,1640.52,CHATSWORTH MANAGEMENT
Ealing Council,http://opendatacommunities.org/id/london-borough-council/ealing,REGENERATION AND HOUSING,2,HOUSING  DEMAND,RENTS,1200,,25/09/2018,40824185,1857.21,RELIANCE RESIDENTIAL LTD
Ealing Council,http://opendatacommunities.org/id/london-borough-council/ealing,REGENERATION AND HOUSING,2,HOUSING  DEMAND,RENTS,1200,,12/09/2018,40823339,2098.39,PARADIGM GROUP LIMITED
Ealing Council,http://opendatacommunities.org/id/london-borough-council/ealing,REGENERATION AND HOUSING,2,HOUSING  DEMAND,RENTS,1200,,12/09/2018,40823329,4233.05,PARADIGM GROUP LIMITED
Ealing Council,http://opendatacommunities.org/id/london-borough-council/ealing,REGENERATION AND HOUSING,2,HOUSING  DEMAND,RENTS,1200,,31/07/2018,40819455,2153.88,MEARS HOUSING MANAGEMENT LIMITED
Ealing Council,http://opendatacommunities.org/id/london-borough-council/ealing,REGENERATION AND HOUSING,2,HOUSING  DEMAND,RENTS,1200,,31/07/2018,40819455,398.66,MEARS HOUSING MANAGEMENT LIMITED
Ealing Council,http://opendatacommunities.org/id/london-borough-council/ealing,REGENERATION AND HOUSING,2,HOUSING  DEMAND,RENTS,1200,,01/09/2018,40821584,15976.78,ORCHARD & SHIPMAN GROUP PLC
Ealing Council,http://opendatacommunities.org/id/london-borough-council/ealing,REGENERATION AND HOUSING,2,HOUSING  DEMAND,RENTS,1200,,01/09/2018,40821584,2790,ORCHARD & SHIPMAN GROUP PLC
Ealing Council,http://opendatacommunities.org/id/london-borough-council/ealing,REGENERATION AND HOUSING,2,HOUSING  DEMAND,RENTS,1200,,12/09/2018,40821936,870.17,DDS ESTATE AGENTS LTD
Ealing Council,http://opendatacommunities.org/id/london-borough-council/ealing,REGENERATION AND HOUSING,2,HOUSING  DEMAND,RENTS,1200,,25/09/2018,40824206,39144.94,IN HOME PROPERTY MANAGEMENT LTD
Ealing Council,http://opendatacommunities.org/id/london-borough-council/ealing,REGENERATION AND HOUSING,2,HOUSING  DEMAND,RENTS,1200,,02/08/2018,40821412,10730.52,Denhan Property Services Ltd T/A Denham International Ltd
Ealing Council,http://opendatacommunities.org/id/london-borough-council/ealing,REGENERATION AND HOUSING,2,HOUSING  DEMAND,RENTS,1200,,06/09/2018,40821428,1488.61,MRS MARYAM GOLBAKHSH
Ealing Council,http://opendatacommunities.org/id/london-borough-council/ealing,REGENERATION AND HOUSING,2,HOUSING  DEMAND,RENTS,1200,,28/09/2018,40824571,1920.45,S RENU LTD
Ealing Council,http://opendatacommunities.org/id/london-borough-council/ealing,REGENERATION AND HOUSING,2,HOUSING  DEMAND,RENTS,1200,,24/09/2018,40824129,1406.16,MR FAROOQ AZAM & MRS ZAHIDA WARRIACH
Ealing Council,http://opendatacommunities.org/id/london-borough-council/ealing,REGENERATION AND HOUSING,2,HOUSING  DEMAND,RENTS,1200,,17/09/2018,40824517,3055.41,LONGSTAR ESTATES LTD
Ealing Council,http://opendatacommunities.org/id/london-borough-council/ealing,REGENERATION AND HOUSING,2,HOUSING  DEMAND,RENTS,1200,,20/09/2018,40823441,32557.28,PSL LEASING LIMITED
Ealing Council,http://opendatacommunities.org/id/london-borough-council/ealing,REGENERATION AND HOUSING,2,HOUSING  DEMAND,RENTS,1200,,01/09/2018,40821214,4933.2,EDGE SQUAD LTD
Ealing Council,http://opendatacommunities.org/id/london-borough-council/ealing,REGENERATION AND HOUSING,2,HOUSING  DEMAND,RENTS,1200,,05/09/2018,40821215,37258.84,SUNWIN PROPERTIES LTD - T/A HOMELINK
Ealing Council,http://opendatacommunities.org/id/london-borough-council/ealing,REGENERATION AND HOUSING,2,HOUSING  DEMAND,RENTS,1200,,01/09/2018,40821246,2729.1,IN HOME PROPERTY MANAGEMENT LTD
Ealing Council,http://opendatacommunities.org/id/london-borough-council/ealing,REGENERATION AND HOUSING,2,HOUSING  DEMAND,RENTS,1200,,22/08/2018,40821247,37882.2,IN HOME PROPERTY MANAGEMENT LTD
Ealing Council,http://opendatacommunities.org/id/london-borough-council/ealing,REGENERATION AND HOUSING,2,HOUSING  DEMAND,RENTS,1200,,05/09/2018,40821278,53764.32,HOMELINK ESTATE AGENTS LTD
Ealing Council,http://opendatacommunities.org/id/london-borough-council/ealing,REGENERATION AND HOUSING,2,HOUSING  DEMAND,RENTS,1200,,28/08/2018,40821402,1626,SMART MOVE (ESTATE AGENTS UK) LIMITED
Ealing Council,http://opendatacommunities.org/id/london-borough-council/ealing,REGENERATION AND HOUSING,2,HOUSING  DEMAND,RENTS,1200,,05/09/2018,40821182,331161.54,MIDDLESEX HOUSING LTD
Ealing Council,http://opendatacommunities.org/id/london-borough-council/ealing,REGENERATION AND HOUSING,2,HOUSING  DEMAND,RENTS,1200,,19/09/2018,40823381,1857.52,MR ENOKI RAJ DALI
Ealing Council,http://opendatacommunities.org/id/london-borough-council/ealing,REGENERATION AND HOUSING,2,HOUSING  DEMAND,RENTS,1200,,19/09/2018,40823415,1023.9,STAINES DEVELOPMENTS NO2 LIMITED
Ealing Council,http://opendatacommunities.org/id/london-borough-council/ealing,REGENERATION AND HOUSING,2,HOUSING  DEMAND,RENTS,1200,,20/09/2018,40823423,6383.57,ABDUL-MAJEED SALMASI
Ealing Council,http://opendatacommunities.org/id/london-borough-council/ealing,REGENERATION AND HOUSING,2,HOUSING  DEMAND,RENTS,1200,,20/09/2018,40823438,66991.68,PSL LEASING LIMITED
Ealing Council,http://opendatacommunities.org/id/london-borough-council/ealing,REGENERATION AND HOUSING,2,HOUSING  DEMAND,RENTS,1200,,01/09/2018,40821213,2722.8,EDGE PROPERTY LTD
Ealing Council,http://opendatacommunities.org/id/london-borough-council/ealing,REGENERATION AND HOUSING,2,HOUSING  DEMAND,RENTS,1200,,10/09/2018,40821816,1712.1,MR JASBIR KHURL & MRS SUKHDEEP KHURL
Ealing Council,http://opendatacommunities.org/id/london-borough-council/ealing,REGENERATION AND HOUSING,2,HOUSING  DEMAND,RENTS,1200,,10/09/2018,40821817,1769.17,MR JASBIR KHURL & MRS SUKHDEEP KHURL
Ealing Council,http://opendatacommunities.org/id/london-borough-council/ealing,REGENERATION AND HOUSING,2,HOUSING  DEMAND,RENTS,1200,,11/09/2018,40821900,2046,HOUSING SOLUTIONS (GB) LTD
Ealing Council,http://opendatacommunities.org/id/london-borough-council/ealing,REGENERATION AND HOUSING,2,HOUSING  DEMAND,RENTS,1200,,12/09/2018,40821933,1186.68,DDS ESTATE AGENTS LTD
Ealing Council,http://opendatacommunities.org/id/london-borough-council/ealing,REGENERATION AND HOUSING,2,HOUSING  DEMAND,RENTS,1200,,12/09/2018,40821934,1538.22,DDS ESTATE AGENTS LTD
Ealing Council,http://opendatacommunities.org/id/london-borough-council/ealing,REGENERATION AND HOUSING,2,HOUSING  DEMAND,RENTS,1200,,11/09/2018,40821956,1538.22,SHETAL KASAN
Ealing Council,http://opendatacommunities.org/id/london-borough-council/ealing,REGENERATION AND HOUSING,2,HOUSING  DEMAND,RENTS,1200,,04/09/2018,40820964,3076.44,HENLEYS ESTATE AGENTS LTD
Ealing Council,http://opendatacommunities.org/id/london-borough-council/ealing,REGENERATION AND HOUSING,2,HOUSING  DEMAND,RENTS,1200,,05/09/2018,40820968,7078.44,PSL LEASING LIMITED
Ealing Council,http://opendatacommunities.org/id/london-borough-council/ealing,CORPORATE RESOURCES,4,ICT,COMP  HARDWARE - RENTAL,3204,,07/09/2018,40821696,443.46,CDW Limited
Ealing Council,http://opendatacommunities.org/id/london-borough-council/ealing,CORPORATE RESOURCES,4,ICT,SURVEYS & CONSULTATION,2500,,06/09/2018,40821631,430,LONDON GRID FOR LEARNING TRUST
Ealing Council,http://opendatacommunities.org/id/london-borough-council/ealing,CORPORATE RESOURCES,4,ICT,COMP  HARDWARE - RENTAL,3204,,07/09/2018,40821698,12702.25,CDW Limited
Ealing Council,http://opendatacommunities.org/id/london-borough-council/ealing,CORPORATE RESOURCES,4,ICT,COMP  HARDWARE - RENTAL,3204,,06/09/2018,40823551,1585.5,SCC PLC
Ealing Council,http://opendatacommunities.org/id/london-borough-council/ealing,CORPORATE RESOURCES,4,ICT,COMP  HARDWARE - RENTAL,3204,,20/09/2018,40823676,786,CDW Limited
Ealing Council,http://opendatacommunities.org/id/london-borough-council/ealing,CORPORATE RESOURCES,4,ICT,COMP  HARDWARE - RENTAL,3204,,10/09/2018,40821727,3220,MICROLAND LTD
Ealing Council,http://opendatacommunities.org/id/london-borough-council/ealing,CORPORATE RESOURCES,4,ICT,COMP SOFTWARE,3210,,20/09/2018,40823678,1346.24,CDW Limited
Ealing Council,http://opendatacommunities.org/id/london-borough-council/ealing,CORPORATE RESOURCES,4,ICT,COMP  HARDWARE - RENTAL,3204,,20/09/2018,40823677,4599.31,CDW Limited
Ealing Council,http://opendatacommunities.org/id/london-borough-council/ealing,CORPORATE RESOURCES,4,ICT,TELEPHONE,3230,,01/09/2018,40821369,343.83,DAISY COMMUNICATIONS LTD
Ealing Council,http://opendatacommunities.org/id/london-borough-council/ealing,CORPORATE RESOURCES,4,ICT,COMP  HARDWARE - RENTAL,3204,,19/09/2018,40823445,3092.8,CDW Limited
Ealing Council,http://opendatacommunities.org/id/london-borough-council/ealing,CORPORATE RESOURCES,4,ICT,TELEPHONE,3230,,30/06/2018,40823909,10801.65,BRITISH TELECOM
Ealing Council,http://opendatacommunities.org/id/london-borough-council/ealing,CORPORATE RESOURCES,4,ICT,TELEPHONE,3230,,30/07/2018,40822556,5396.17,BRITISH TELECOM
Ealing Council,http://opendatacommunities.org/id/london-borough-council/ealing,CORPORATE RESOURCES,4,ICT,COMP SOFTWARE,3210,,18/09/2018,40823156,-1181.9,CDW Limited
Ealing Council,http://opendatacommunities.org/id/london-borough-council/ealing,CORPORATE RESOURCES,4,ICT,COMP SOFTWARE,3210,,18/09/2018,40823158,-3338.62,CDW Limited
Ealing Council,http://opendatacommunities.org/id/london-borough-council/ealing,CORPORATE RESOURCES,4,CORPORATE FINANCE,RECRUITMENT COSTS,510,,05/09/2018,40821142,10584,PENNA PLC
Ealing Council,http://opendatacommunities.org/id/london-borough-council/ealing,CORPORATE RESOURCES,4,CORPORATE FINANCE,MINOR EQUIP PURCHASE,3320,,23/08/2018,40819816,275.2,REDACTED SENSITIVE SUPPLIER
Ealing Council,http://opendatacommunities.org/id/london-borough-council/ealing,CORPORATE RESOURCES,4,CORPORATE FINANCE,TRAINING,80,,27/09/2018,40824436,2020,CIPFA
Ealing Council,http://opendatacommunities.org/id/london-borough-council/ealing,CORPORATE RESOURCES,4,CORPORATE FINANCE,MINOR EQUIP PURCHASE,3320,,08/08/2018,40817064,250.24,REDACTED SENSITIVE SUPPLIER
Ealing Council,http://opendatacommunities.org/id/london-borough-council/ealing,CORPORATE RESOURCES,4,CORPORATE FINANCE,MISC. INCOME - NON VATABLE,8340,,12/10/2017,40823250,422.63,MANOR WHEELS
Ealing Council,http://opendatacommunities.org/id/london-borough-council/ealing,CHIEF EXECUTIVE DIRECTORATE,5,West London Alliance,COMP OUTSOURCED SERVICES,3220,,13/12/2017,40821389,6500,CARE ANALYTICS (UK)  LTD
Ealing Council,http://opendatacommunities.org/id/london-borough-council/ealing,CHIEF EXECUTIVE DIRECTORATE,5,West London Alliance,COMP OUTSOURCED SERVICES,3220,,13/12/2017,40821390,17500,CARE ANALYTICS (UK)  LTD
Ealing Council,http://opendatacommunities.org/id/london-borough-council/ealing,CHILDREN & ADULTS,1,SCHOOLS PFI,PAYMENTS TO CONTRACTORS,4000,,03/09/2018,40820522,403996,FUTURE EALING (PHASE 1) LIMITED
Ealing Council,http://opendatacommunities.org/id/london-borough-council/ealing,CHILDREN & ADULTS,1,SCHOOLS SERVICE DIRECTORATE,PAYMENTS TO CONTRACTORS,4000,,31/07/2018,40818722,15000,RAINMAKER SOLUTIONS LTD
Ealing Council,http://opendatacommunities.org/id/london-borough-council/ealing,CHILDREN & ADULTS,1,SCHOOLS SERVICE DIRECTORATE,PAYMENTS TO CONTRACTORS,4000,,31/07/2018,40818723,35826,RAINMAKER SOLUTIONS LTD
Ealing Council,http://opendatacommunities.org/id/london-borough-council/ealing,CHILDREN & ADULTS,1,SCHOOLS SERVICE DIRECTORATE,PAYMENTS TO CONTRACTORS,4000,,31/07/2018,40816670,15375,RAINMAKER SOLUTIONS LTD
Ealing Council,http://opendatacommunities.org/id/london-borough-council/ealing,CHILDREN & ADULTS,1,SCHOOLS SERVICE DIRECTORATE,PAYMENTS TO CONTRACTORS,4000,,09/08/2018,40819248,14625,RAINMAKER SOLUTIONS LTD
Ealing Council,http://opendatacommunities.org/id/london-borough-council/ealing,CHILDREN & ADULTS,1,STRATEGIC COMMISSIONING,GRANTS,5010,,25/09/2018,40824190,3100,THE NATIONAL AUTISTIC SOCIETY
Ealing Council,http://opendatacommunities.org/id/london-borough-council/ealing,CHILDREN & ADULTS,1,STRATEGIC COMMISSIONING,GRANTS,5010,,25/09/2018,40824192,12112.5,NEIGHBOURLY CARE SOUTHALL
Ealing Council,http://opendatacommunities.org/id/london-borough-council/ealing,CHILDREN & ADULTS,1,STRATEGIC COMMISSIONING,GRANTS,5010,,25/09/2018,40824194,72500,NEIGHBOURLY CARE SOUTHALL
Ealing Council,http://opendatacommunities.org/id/london-borough-council/ealing,CHILDREN & ADULTS,1,STRATEGIC COMMISSIONING,GRANTS,5010,,25/09/2018,40824195,15000,SOUTHALL COMMUNITY ALLIANCE
Ealing Council,http://opendatacommunities.org/id/london-borough-council/ealing,CHILDREN & ADULTS,1,STRATEGIC COMMISSIONING,GRANTS,5010,,25/09/2018,40824198,30000,SOUTHALL DAY CENTRE
Ealing Council,http://opendatacommunities.org/id/london-borough-council/ealing,CHILDREN & ADULTS,1,STRATEGIC COMMISSIONING,GRANTS,5010,,25/09/2018,40824219,10000,REDACTED SENSITIVE SUPPLIER
Ealing Council,http://opendatacommunities.org/id/london-borough-council/ealing,CHILDREN & ADULTS,1,STRATEGIC COMMISSIONING,GRANTS,5010,,25/09/2018,40824176,56250,EALING MENCAP
Ealing Council,http://opendatacommunities.org/id/london-borough-council/ealing,CHILDREN & ADULTS,1,STRATEGIC COMMISSIONING,GRANTS,5010,,25/09/2018,40824178,1900,EALING MENCAP
Ealing Council,http://opendatacommunities.org/id/london-borough-council/ealing,CHILDREN & ADULTS,1,STRATEGIC COMMISSIONING,GRANTS,5010,,25/09/2018,40824180,40126.5,EALING MENCAP
Ealing Council,http://opendatacommunities.org/id/london-borough-council/ealing,CHILDREN & ADULTS,1,STRATEGIC COMMISSIONING,GRANTS,5010,,25/09/2018,40824220,20000,REDACTED SENSITIVE SUPPLIER
Ealing Council,http://opendatacommunities.org/id/london-borough-council/ealing,CHILDREN & ADULTS,1,STRATEGIC COMMISSIONING,GRANTS,5010,,25/09/2018,40824222,12500,REDACTED SENSITIVE SUPPLIER
Ealing Council,http://opendatacommunities.org/id/london-borough-council/ealing,CHILDREN & ADULTS,1,STRATEGIC COMMISSIONING,GRANTS,5010,,25/09/2018,40824156,34853.25,THE ASIAN HEALTH AGENCY
Ealing Council,http://opendatacommunities.org/id/london-borough-council/ealing,CHILDREN & ADULTS,1,STRATEGIC COMMISSIONING,GRANTS,5010,,25/09/2018,40824170,40000,COMMUNITY ACTIVITIES PROJECT EALING (CAPE)
Ealing Council,http://opendatacommunities.org/id/london-borough-council/ealing,CHILDREN & ADULTS,1,STRATEGIC COMMISSIONING,GRANTS,5010,,25/09/2018,40824173,93009.25,DEMENTIA CONCERN
Ealing Council,http://opendatacommunities.org/id/london-borough-council/ealing,CHILDREN & ADULTS,1,STRATEGIC COMMISSIONING,GRANTS,5010,,25/09/2018,40824175,37500,EALING ABBEY COUNSELLING SERV
Ealing Council,http://opendatacommunities.org/id/london-borough-council/ealing,REGENERATION AND HOUSING,2,PROPERTY & REGENERATION,TRAINING,80,,11/09/2018,40823633,1263.71,WEST THAMES COLLEGE
Ealing Council,http://opendatacommunities.org/id/london-borough-council/ealing,CHILDREN & ADULTS,1,"PLANNING, COMMISSIONING & PARTNERSHIPS",ACTIVITIES,4196,,18/09/2018,40823038,1640,BBA MEDIA
Ealing Council,http://opendatacommunities.org/id/london-borough-council/ealing,CHILDREN & ADULTS,1,"PLANNING, COMMISSIONING & PARTNERSHIPS",ACTIVITIES,4196,,13/08/2018,40817729,2475,ON THE LEVEL PRODUCTIONS LTD
Ealing Council,http://opendatacommunities.org/id/london-borough-council/ealing,REGENERATION AND HOUSING,2,HOUSING  DEMAND,RENTS,1200,,05/09/2018,22561373,-2287.5,Sundry Supplier - Regeneration & Housing
Ealing Council,http://opendatacommunities.org/id/london-borough-council/ealing,REGENERATION AND HOUSING,2,HOUSING  DEMAND,RENTS,1200,,17/09/2018,40822579,550,Sundry Supplier - Regeneration & Housing
Ealing Council,http://opendatacommunities.org/id/london-borough-council/ealing,REGENERATION AND HOUSING,2,HOUSING  DEMAND,RENTS,1200,,05/09/2018,40823109,1200,Sundry Supplier - Regeneration & Housing
Ealing Council,http://opendatacommunities.org/id/london-borough-council/ealing,REGENERATION AND HOUSING,2,HOUSING  DEMAND,RENTS,1200,,13/09/2018,40824552,1415,REDACTED SENSITIVE SUPPLIER
Ealing Council,http://opendatacommunities.org/id/london-borough-council/ealing,REGENERATION AND HOUSING,2,HOUSING  DEMAND,RENTS,1200,,07/02/2018,40823569,1500,REDACTED SENSITIVE SUPPLIER
Ealing Council,http://opendatacommunities.org/id/london-borough-council/ealing,REGENERATION AND HOUSING,2,HOUSING  DEMAND,RENTS,1200,,28/08/2018,40823567,750,REDACTED SENSITIVE SUPPLIER
Ealing Council,http://opendatacommunities.org/id/london-borough-council/ealing,REGENERATION AND HOUSING,2,HOUSING  DEMAND,RENTS,1200,,31/08/2018,40820839,1000,Sundry Supplier - Regeneration & Housing
Ealing Council,http://opendatacommunities.org/id/london-borough-council/ealing,REGENERATION AND HOUSING,2,HOUSING  DEMAND,RENTS,1200,,31/08/2018,40820841,1250,CITYDEAL PROPERTIES LTD
Ealing Council,http://opendatacommunities.org/id/london-borough-council/ealing,CORPORATE RESOURCES,4,PROPERTY SERVICES,TRAINING,80,,07/09/2018,40821729,250,PREMIER PEOPLE SOLUTIONS LTD T/A PREMIER PARTNERSHIP
Ealing Council,http://opendatacommunities.org/id/london-borough-council/ealing,CORPORATE RESOURCES,4,PROPERTY SERVICES,ELECTRICITY,1120,,13/09/2018,40822376,590,KENT COUNTY COUNCIL (KCC UTILITY BILLS ONLY)
Ealing Council,http://opendatacommunities.org/id/london-borough-council/ealing,CORPORATE RESOURCES,4,PROPERTY SERVICES,GEN REP.- MECHANICAL,1540,,31/08/2018,40821126,3909,APEX REFRIGERATION & AIR CONDITIONING LTD
Ealing Council,http://opendatacommunities.org/id/london-borough-council/ealing,CORPORATE RESOURCES,4,PROPERTY SERVICES,GEN REP.- MECHANICAL,1540,,31/08/2018,40821127,269,APEX REFRIGERATION & AIR CONDITIONING LTD
Ealing Council,http://opendatacommunities.org/id/london-borough-council/ealing,CORPORATE RESOURCES,4,PROPERTY SERVICES,GEN REP.- MECHANICAL,1540,,14/09/2018,40823559,645,H2O NATIONWIDE LIMITED
Ealing Council,http://opendatacommunities.org/id/london-borough-council/ealing,CORPORATE RESOURCES,4,PROPERTY SERVICES,GEN. REP.- ELECTRICAL,1530,,21/09/2018,40823743,4237.14,EVANS AND BROOKS FIRE LTD
Ealing Council,http://opendatacommunities.org/id/london-borough-council/ealing,CORPORATE RESOURCES,4,PROPERTY SERVICES,GEN. REP.- ELECTRICAL,1530,,20/09/2018,40823889,616.04,CAMPBELL & KENNEDY LIMITED
Ealing Council,http://opendatacommunities.org/id/london-borough-council/ealing,CORPORATE RESOURCES,4,PROPERTY SERVICES,GEN. REP.- ELECTRICAL,1530,,13/09/2018,40822209,2934.84,EVANS AND BROOKS FIRE LTD
Ealing Council,http://opendatacommunities.org/id/london-borough-council/ealing,CORPORATE RESOURCES,4,PROPERTY SERVICES,GEN REP.- MECHANICAL,1540,,28/08/2018,40820410,370.64,APEX LIFTS & ESCALATOR ENGINEERS LTD
Ealing Council,http://opendatacommunities.org/id/london-borough-council/ealing,CORPORATE RESOURCES,4,PROPERTY SERVICES,GEN REP.- MECHANICAL,1540,,28/08/2018,40820414,277.98,APEX LIFTS & ESCALATOR ENGINEERS LTD
Ealing Council,http://opendatacommunities.org/id/london-borough-council/ealing,CORPORATE RESOURCES,4,PROPERTY SERVICES,MINOR EQUIP PURCHASE,3320,,30/08/2018,40820790,285,REDACTED SENSITIVE SUPPLIER
Ealing Council,http://opendatacommunities.org/id/london-borough-council/ealing,CORPORATE RESOURCES,4,PROPERTY SERVICES,CIS REPAIRS AND MAINTENANCE,1411,,06/09/2018,40821648,385,GOLDEN SERVICES PLUS LIMITED
Ealing Council,http://opendatacommunities.org/id/london-borough-council/ealing,CORPORATE RESOURCES,4,PROPERTY SERVICES,WATER,1140,,20/07/2018,40822053,1600.24,CASTLE WATER LIMITED
Ealing Council,http://opendatacommunities.org/id/london-borough-council/ealing,CORPORATE RESOURCES,4,PROPERTY SERVICES,WATER,1140,,17/08/2018,40822061,1600.24,CASTLE WATER LIMITED
Ealing Council,http://opendatacommunities.org/id/london-borough-council/ealing,CORPORATE RESOURCES,4,FUTURE WORKING PROGRAMME,EXTERNAL TECHNICAL ADVICE,4060,,10/09/2018,40821818,23500,V4 SERVICES LIMITED
Ealing Council,http://opendatacommunities.org/id/london-borough-council/ealing,CORPORATE RESOURCES,4,AUDIT & INVESTIGATIONS,SUB CONTRACTORS,4030,,10/09/2018,40822527,35416.66,PRICEWATERHOUSECOOPERS
Ealing Council,http://opendatacommunities.org/id/london-borough-council/ealing,CORPORATE RESOURCES,4,CORPORATE RESOURCES DIRECTORATE,SPECIALIST TECHNICAL CONTRACTORS,4050,,01/09/2018,40822374,1322.04,REDACTED SENSITIVE SUPPLIER
Ealing Council,http://opendatacommunities.org/id/london-borough-council/ealing,CORPORATE RESOURCES,4,HUMAN RESOURCES,DATA ARCHIVING,3840,,31/08/2018,40821265,11144.39,RESTORE PLC
Ealing Council,http://opendatacommunities.org/id/london-borough-council/ealing,CHIEF EXECUTIVE DIRECTORATE,5,STRATEGY & ENGAGEMENT,PRINTING,3850,,25/09/2018,40824210,8803.8,YORK MAILING LTD
Ealing Council,http://opendatacommunities.org/id/london-borough-council/ealing,HOUSING BENEFITS,8,HOUSING BENEFITS,BACS,5316,,05/09/2018,22561363,-964.15,Sundry - Housing Benefit Payments
Ealing Council,http://opendatacommunities.org/id/london-borough-council/ealing,HOUSING BENEFITS,8,HOUSING BENEFITS,BACS,5316,,05/09/2018,22561356,-475.45,Sundry - Housing Benefit Payments
Ealing Council,http://opendatacommunities.org/id/london-borough-council/ealing,HOUSING BENEFITS,8,HOUSING BENEFITS,BACS,5316,,05/09/2018,22561357,-2483.21,Sundry - Housing Benefit Payments
Ealing Council,http://opendatacommunities.org/id/london-borough-council/ealing,HOUSING BENEFITS,8,HOUSING BENEFITS,BACS,5316,,05/09/2018,22561355,-475.45,Sundry - Housing Benefit Payments
Ealing Council,http://opendatacommunities.org/id/london-borough-council/ealing,HOUSING BENEFITS,8,HOUSING BENEFITS,BACS,5316,,05/09/2018,22561361,-430.02,Sundry - Housing Benefit Payments
Ealing Council,http://opendatacommunities.org/id/london-borough-council/ealing,HOUSING BENEFITS,8,HOUSING BENEFITS,BACS,5316,,05/09/2018,22561362,-514.16,Sundry - Housing Benefit Payments
Ealing Council,http://opendatacommunities.org/id/london-borough-council/ealing,HOUSING BENEFITS,8,HOUSING BENEFITS,BACS,5316,,05/09/2018,22561364,-1123.16,Sundry - Housing Benefit Payments
Ealing Council,http://opendatacommunities.org/id/london-borough-council/ealing,HOUSING BENEFITS,8,HOUSING BENEFITS,BACS,5316,,05/09/2018,22561353,-324.97,Sundry - Housing Benefit Payments
Ealing Council,http://opendatacommunities.org/id/london-borough-council/ealing,HOUSING BENEFITS,8,HOUSING BENEFITS,BACS,5316,,05/09/2018,22561369,-2801.32,Sundry - Housing Benefit Payments
Ealing Council,http://opendatacommunities.org/id/london-borough-council/ealing,HOUSING BENEFITS,8,HOUSING BENEFITS,BACS,5316,,05/09/2018,22561371,-380,Sundry - Housing Benefit Payments
Ealing Council,http://opendatacommunities.org/id/london-borough-council/ealing,HOUSING BENEFITS,8,HOUSING BENEFITS,BACS,5316,,05/09/2018,22561370,-385.76,Sundry - Housing Benefit Payments
Ealing Council,http://opendatacommunities.org/id/london-borough-council/ealing,HOUSING BENEFITS,8,HOUSING BENEFITS,BACS,5316,,05/09/2018,22561367,-1216.28,Sundry - Housing Benefit Payments
Ealing Council,http://opendatacommunities.org/id/london-borough-council/ealing,HOUSING BENEFITS,8,HOUSING BENEFITS,BACS,5316,,05/09/2018,22561359,-41989.81,Sundry - Housing Benefit Payments
Ealing Council,http://opendatacommunities.org/id/london-borough-council/ealing,HOUSING BENEFITS,8,HOUSING BENEFITS,BACS,5316,,05/09/2018,22561354,-2724.31,Sundry - Housing Benefit Payments
Ealing Council,http://opendatacommunities.org/id/london-borough-council/ealing,COUNCIL WIDE OTHER,9,COUNCIL WIDE,PAYMENTS TO CONTRACTORS,4000,,18/09/2018,40823084,20656.62,GVA GRIMLEY LLP
Ealing Council,http://opendatacommunities.org/id/london-borough-council/ealing,REGENERATION AND HOUSING,2,HOUSING  DEMAND,RENTS,1200,,07/09/2018,40821586,56491.64,CASTLELINE LTD
Ealing Council,http://opendatacommunities.org/id/london-borough-council/ealing,REGENERATION AND HOUSING,2,HOUSING  DEMAND,RENTS,1200,,09/09/2018,40821651,9982,PSL LEASING LIMITED
Ealing Council,http://opendatacommunities.org/id/london-borough-council/ealing,REGENERATION AND HOUSING,2,HOUSING  DEMAND,RENTS,1200,,25/09/2018,40824299,5625,iPROPERTIES LTD
Ealing Council,http://opendatacommunities.org/id/london-borough-council/ealing,REGENERATION AND HOUSING,2,HOUSING  DEMAND,RENTS,1200,,28/09/2018,40824365,3120,HOUNSLOW ESTATES LIMITED
Ealing Council,http://opendatacommunities.org/id/london-borough-council/ealing,REGENERATION AND HOUSING,2,HOUSING  DEMAND,RENTS,1200,,04/09/2018,40821679,69548.94,ALTWOOD PROPERTIES LTD
Ealing Council,http://opendatacommunities.org/id/london-borough-council/ealing,REGENERATION AND HOUSING,2,HOUSING  DEMAND,RENTS,1200,,06/09/2018,40822629,37043.38,EALING HOUSING LIMITED
Ealing Council,http://opendatacommunities.org/id/london-borough-council/ealing,REGENERATION AND HOUSING,2,HOUSING  DEMAND,RENTS,1200,,05/09/2018,40821212,64407,MIDDLESEX HOUSING LTD
Ealing Council,http://opendatacommunities.org/id/london-borough-council/ealing,REGENERATION AND HOUSING,2,HOUSING  DEMAND,RENTS,1200,,05/09/2018,40821275,20028,HOMELINK ESTATE AGENTS LTD
Ealing Council,http://opendatacommunities.org/id/london-borough-council/ealing,REGENERATION AND HOUSING,2,HOUSING  DEMAND,RENTS,1200,,31/08/2018,40821399,10974,LIBERTY HOUSING CIC
Ealing Council,http://opendatacommunities.org/id/london-borough-council/ealing,REGENERATION AND HOUSING,2,HOUSING  DEMAND,RENTS,1200,,27/09/2018,40824543,63428,BISHOP PROPERTY MANAGEMENT LTD
Ealing Council,http://opendatacommunities.org/id/london-borough-council/ealing,REGENERATION AND HOUSING,2,HOUSING  DEMAND,RENTS,1200,,07/09/2018,40823290,36126,MIDDLESEX HOUSING LTD
Ealing Council,http://opendatacommunities.org/id/london-borough-council/ealing,REGENERATION AND HOUSING,2,HOUSING  DEMAND,RENTS,1200,,31/08/2018,40821777,67517,LETTING INTERNATIONAL LIMITED
Ealing Council,http://opendatacommunities.org/id/london-borough-council/ealing,REGENERATION AND HOUSING,2,HOUSING  DEMAND,RENTS,1200,,06/09/2018,40821837,1395,SUNWIN PROPERTIES LTD - T/A HOMELINK
Ealing Council,http://opendatacommunities.org/id/london-borough-council/ealing,REGENERATION AND HOUSING,2,HOUSING  DEMAND,RENTS,1200,,07/09/2018,40821839,630,SUNWIN PROPERTIES LTD - T/A HOMELINK
Ealing Council,http://opendatacommunities.org/id/london-borough-council/ealing,REGENERATION AND HOUSING,2,HOUSING  DEMAND,RENTS,1200,,05/09/2018,40821162,3224,HOUNSLOW ESTATES LIMITED
Ealing Council,http://opendatacommunities.org/id/london-borough-council/ealing,REGENERATION AND HOUSING,2,HOUSING  DEMAND,RENTS,1200,,19/09/2018,40823407,1612,AARAV PROPERTIES LTD
Ealing Council,http://opendatacommunities.org/id/london-borough-council/ealing,REGENERATION AND HOUSING,2,HOUSING  DEMAND,RENTS,1200,,19/09/2018,40823418,11850,STAINES DEVELOPMENTS NO2 LIMITED
Ealing Council,http://opendatacommunities.org/id/london-borough-council/ealing,REGENERATION AND HOUSING,2,HOUSING  DEMAND,RENTS,1200,,03/09/2018,40820905,16926,SAI PROPERTY DEV LTD T/A THE  PROPERTY BANK
Ealing Council,http://opendatacommunities.org/id/london-borough-council/ealing,REGENERATION AND HOUSING,2,HOUSING  DEMAND,RENTS,1200,,31/08/2018,40820940,24304,APEX HOUSING SOLUTIONS LTD
Ealing Council,http://opendatacommunities.org/id/london-borough-council/ealing,REGENERATION AND HOUSING,2,HOUSING  DEMAND,RENTS,1200,,29/08/2018,40820960,3844,INTUITIVE HEIGHTS LIMITED
Ealing Council,http://opendatacommunities.org/id/london-borough-council/ealing,REGENERATION AND HOUSING,2,HOUSING  DEMAND,RENTS,1200,,29/08/2018,40820963,1385,VESTURE MANAGEMENT LTD - T/A VESTURE LONDON
Ealing Council,http://opendatacommunities.org/id/london-borough-council/ealing,REGENERATION AND HOUSING,2,HOUSING  DEMAND,RENTS,1200,,10/09/2018,40821769,14768,REGIONS LTD - T/A REGIONS ESTATES
Ealing Council,http://opendatacommunities.org/id/london-borough-council/ealing,REGENERATION AND HOUSING,2,HOUSING  DEMAND,RENTS,1200,,06/09/2018,40821771,15195,EURO HOUSING UK LTD
Ealing Council,http://opendatacommunities.org/id/london-borough-council/ealing,REGENERATION AND HOUSING,2,HOUSING  DEMAND,RENTS,1200,,01/09/2018,40820815,3999,RENT CONNECT HOUSING LTD T/A RENT CONNECT
Ealing Council,http://opendatacommunities.org/id/london-borough-council/ealing,REGENERATION AND HOUSING,2,HOUSING  DEMAND,RENTS,1200,,31/08/2018,40820817,6913,ASSET GROVE LETTINGS LTD
Ealing Council,http://opendatacommunities.org/id/london-borough-council/ealing,REGENERATION AND HOUSING,2,HOUSING  DEMAND,RENTS,1200,,04/09/2018,40820854,1798,MR KA MOHAMED T/A Prestige Guaranteed Rentals
Ealing Council,http://opendatacommunities.org/id/london-borough-council/ealing,REGENERATION AND HOUSING,2,HOUSING  DEMAND,RENTS,1200,,04/09/2018,40820870,63096,BISHOP PROPERTY MANAGEMENT LTD
Ealing Council,http://opendatacommunities.org/id/london-borough-council/ealing,REGENERATION AND HOUSING,2,HOUSING  DEMAND,RENTS,1200,,12/09/2018,40822114,1953,CASTLE RESIDENTIAL HOUSING LTD
Ealing Council,http://opendatacommunities.org/id/london-borough-council/ealing,REGENERATION AND HOUSING,2,HOUSING  DEMAND,RENTS,1200,,01/09/2018,40821006,10633,MIDOS MANAGEMENT COMPANY LTD
Ealing Council,http://opendatacommunities.org/id/london-borough-council/ealing,REGENERATION AND HOUSING,2,HOUSING  DEMAND,RENTS,1200,,03/09/2018,40820704,5812.5,iPROPERTIES LTD
Ealing Council,http://opendatacommunities.org/id/london-borough-council/ealing,REGENERATION AND HOUSING,2,HOUSING  DEMAND,RENTS,1200,,01/09/2018,40820709,1457,REDACTED SENSITIVE SUPPLIER
Ealing Council,http://opendatacommunities.org/id/london-borough-council/ealing,REGENERATION AND HOUSING,2,HOUSING  DEMAND,RENTS,1200,,02/08/2018,40820720,3575,LINK ESTATES LIMITED
Ealing Council,http://opendatacommunities.org/id/london-borough-council/ealing,REGENERATION AND HOUSING,2,HOUSING  DEMAND,RENTS,1200,,31/08/2018,40820726,1705,ZFA LTD
Ealing Council,http://opendatacommunities.org/id/london-borough-council/ealing,REGENERATION AND HOUSING,2,HOUSING  DEMAND,RENTS,1200,,03/09/2018,40820742,5251.71,REDACTED SENSITIVE SUPPLIER
Ealing Council,http://opendatacommunities.org/id/london-borough-council/ealing,REGENERATION AND HOUSING,2,HOUSING  DEMAND,RENTS,1200,,04/09/2018,40820766,22683.01,SSB INVESTMENTS T/A EMPIRE ESTATES
Ealing Council,http://opendatacommunities.org/id/london-borough-council/ealing,REGENERATION AND HOUSING,2,HOUSING  DEMAND,RENTS,1200,,03/09/2018,40821138,41602,ASHBURN RENTALS LTD
Ealing Council,http://opendatacommunities.org/id/london-borough-council/ealing,REGENERATION AND HOUSING,2,HOUSING  DEMAND,RENTS,1200,,21/08/2018,40819253,1674,GB HOTEL
Ealing Council,http://opendatacommunities.org/id/london-borough-council/ealing,REGENERATION AND HOUSING,2,HOUSING  DEMAND,RENTS,1200,,21/08/2018,40819261,1620,GB HOTEL
Ealing Council,http://opendatacommunities.org/id/london-borough-council/ealing,REGENERATION AND HOUSING,2,HOUSING  DEMAND,RENTS,1200,,21/08/2018,40819262,1674,GB HOTEL
Ealing Council,http://opendatacommunities.org/id/london-borough-council/ealing,REGENERATION AND HOUSING,2,HOUSING  DEMAND,RENTS,1200,,21/08/2018,40819263,1620,GB HOTEL
Ealing Council,http://opendatacommunities.org/id/london-borough-council/ealing,REGENERATION AND HOUSING,2,HOUSING  DEMAND,RENTS,1200,,03/09/2018,40820703,72712,BISHOP PROPERTY MANAGEMENT LTD
Ealing Council,http://opendatacommunities.org/id/london-borough-council/ealing,CORPORATE RESOURCES,4,PROPERTY SERVICES,MATERIALS -  CLEANING,3311,,06/09/2018,40821530,1031.1,GREENHAM TRADING LTD
Ealing Council,http://opendatacommunities.org/id/london-borough-council/ealing,CHILDREN & ADULTS,1,EARLY YEARS CHILDCARE & SAFE,CHILDCARE PROVISION,4690,,24/09/2018,22578163,1065.6,REDACTED SENSITIVE SUPPLIER
Ealing Council,http://opendatacommunities.org/id/london-borough-council/ealing,REGENERATION AND HOUSING,2,HOUSING  DEMAND,RENTS,1200,,10/09/2018,40821770,47608.46,REGIONS LTD - T/A REGIONS ESTATES
Ealing Council,http://opendatacommunities.org/id/london-borough-council/ealing,REGENERATION AND HOUSING,2,HOUSING  DEMAND,RENTS,1200,,06/09/2018,40821772,43152.64,EURO HOUSING UK LTD
Ealing Council,http://opendatacommunities.org/id/london-borough-council/ealing,REGENERATION AND HOUSING,2,HOUSING  DEMAND,RENTS,1200,,06/09/2018,40821773,24212.55,EURO HOUSING UK LTD
Ealing Council,http://opendatacommunities.org/id/london-borough-council/ealing,REGENERATION AND HOUSING,2,HOUSING  DEMAND,RENTS,1200,,10/09/2018,40824371,2852.3,LONGSTAR ESTATES LTD
Ealing Council,http://opendatacommunities.org/id/london-borough-council/ealing,REGENERATION AND HOUSING,2,HOUSING  DEMAND,RENTS,1200,,12/09/2018,40822175,1607.66,MR RAZWAN AZAM & MS SEKINA BIBI
Ealing Council,http://opendatacommunities.org/id/london-borough-council/ealing,REGENERATION AND HOUSING,2,HOUSING  DEMAND,RENTS,1200,,04/09/2018,40820906,1242.3,SAI PROPERTY DEV LTD T/A THE  PROPERTY BANK
Ealing Council,http://opendatacommunities.org/id/london-borough-council/ealing,REGENERATION AND HOUSING,2,HOUSING  DEMAND,RENTS,1200,,31/08/2018,40820911,2791.8,MR ZIAD ABOU-HAMZEH
Ealing Council,http://opendatacommunities.org/id/london-borough-council/ealing,REGENERATION AND HOUSING,2,HOUSING  DEMAND,RENTS,1200,,01/10/2018,40820882,1406.16,SOMAL SALE & LETTING LTD
Ealing Council,http://opendatacommunities.org/id/london-borough-council/ealing,REGENERATION AND HOUSING,2,HOUSING  DEMAND,RENTS,1200,,04/09/2018,40820948,2094.3,RS HOMES LTD T/A STONES PROPERTY
Ealing Council,http://opendatacommunities.org/id/london-borough-council/ealing,REGENERATION AND HOUSING,2,HOUSING  DEMAND,RENTS,1200,,04/09/2018,40820949,1272.55,POSSIBLE LETTING AGENCY LTD
Ealing Council,http://opendatacommunities.org/id/london-borough-council/ealing,REGENERATION AND HOUSING,2,HOUSING  DEMAND,RENTS,1200,,04/09/2018,40820860,1317.5,MR AMRATLAL PATEL
Ealing Council,http://opendatacommunities.org/id/london-borough-council/ealing,REGENERATION AND HOUSING,2,HOUSING  DEMAND,RENTS,1200,,04/09/2018,40820868,7357.85,KEYTONS ESTATES LIMITED
Ealing Council,http://opendatacommunities.org/id/london-borough-council/ealing,REGENERATION AND HOUSING,2,HOUSING  DEMAND,RENTS,1200,,12/09/2018,40822116,101026.22,CASTLE RESIDENTIAL HOUSING LTD
Ealing Council,http://opendatacommunities.org/id/london-borough-council/ealing,REGENERATION AND HOUSING,2,HOUSING  DEMAND,RENTS,1200,,12/09/2018,40822119,2402.81,WEST ONE PROPERTIES MANAGEMENT LTD
Ealing Council,http://opendatacommunities.org/id/london-borough-council/ealing,REGENERATION AND HOUSING,2,HOUSING  DEMAND,RENTS,1200,,11/09/2018,40822121,939.6,MR AMIT AULUCK
Ealing Council,http://opendatacommunities.org/id/london-borough-council/ealing,REGENERATION AND HOUSING,2,HOUSING  DEMAND,RENTS,1200,,20/09/2018,40822155,1769.17,MR RAJINDERPAL SINGH PANDHARE
Ealing Council,http://opendatacommunities.org/id/london-borough-council/ealing,REGENERATION AND HOUSING,2,HOUSING  DEMAND,RENTS,1200,,03/09/2018,40820814,1538.22,LOUIS KANG-MASCARENHAS
Ealing Council,http://opendatacommunities.org/id/london-borough-council/ealing,REGENERATION AND HOUSING,2,HOUSING  DEMAND,RENTS,1200,,23/08/2018,40820818,25078.2,DISTRICT HOMES CIC
Ealing Council,http://opendatacommunities.org/id/london-borough-council/ealing,REGENERATION AND HOUSING,2,HOUSING  DEMAND,RENTS,1200,,03/09/2018,40820823,1406.16,MR RUPESH MANSUKH PANKHANIA & DIWALIBEN MANSUKH PANKHANIA
Ealing Council,http://opendatacommunities.org/id/london-borough-council/ealing,REGENERATION AND HOUSING,2,HOUSING  DEMAND,RENTS,1200,,22/08/2018,40820842,1491.3,MR ANURAG AGRAWAL
Ealing Council,http://opendatacommunities.org/id/london-borough-council/ealing,REGENERATION AND HOUSING,2,HOUSING  DEMAND,RENTS,1200,,31/08/2018,40820849,1488,RHP LETTINGS LTD
Ealing Council,http://opendatacommunities.org/id/london-borough-council/ealing,REGENERATION AND HOUSING,2,HOUSING  DEMAND,RENTS,1200,,04/09/2018,40820853,4602.9,MR KA MOHAMED T/A Prestige Guaranteed Rentals
Ealing Council,http://opendatacommunities.org/id/london-borough-council/ealing,REGENERATION AND HOUSING,2,HOUSING  DEMAND,RENTS,1200,,15/09/2018,40822355,2046,LONGSTAR ESTATES LTD
Ealing Council,http://opendatacommunities.org/id/london-borough-council/ealing,REGENERATION AND HOUSING,2,HOUSING  DEMAND,RENTS,1200,,15/09/2018,40822357,1406.16,LONGSTAR ESTATES LTD
Ealing Council,http://opendatacommunities.org/id/london-borough-council/ealing,REGENERATION AND HOUSING,2,HOUSING  DEMAND,RENTS,1200,,15/09/2018,40822358,1406.16,LONGSTAR ESTATES LTD
Ealing Council,http://opendatacommunities.org/id/london-borough-council/ealing,REGENERATION AND HOUSING,2,HOUSING  DEMAND,RENTS,1200,,17/09/2018,40822652,-500,BISHOP PROPERTY MANAGEMENT LTD
Ealing Council,http://opendatacommunities.org/id/london-borough-council/ealing,REGENERATION AND HOUSING,2,HOUSING  DEMAND,RENTS,1200,,18/09/2018,40824091,1406.16,NAQIBULLAH ISMAT
Ealing Council,http://opendatacommunities.org/id/london-borough-council/ealing,REGENERATION AND HOUSING,2,HOUSING  DEMAND,RENTS,1200,,16/09/2018,40824103,2340.5,CHILTERN PROPERTY LTD
Ealing Council,http://opendatacommunities.org/id/london-borough-council/ealing,REGENERATION AND HOUSING,2,HOUSING  DEMAND,RENTS,1200,,01/09/2018,40820515,10183.03,A&S PROPERTY LETTING AND MANAGEMENT LTD
Ealing Council,http://opendatacommunities.org/id/london-borough-council/ealing,REGENERATION AND HOUSING,2,HOUSING  DEMAND,RENTS,1200,,03/09/2018,40820707,7349.7,iPROPERTIES LTD
Ealing Council,http://opendatacommunities.org/id/london-borough-council/ealing,REGENERATION AND HOUSING,2,HOUSING  DEMAND,RENTS,1200,,24/08/2018,40820745,1587.6,CHATSWORTH MANAGEMENT
Ealing Council,http://opendatacommunities.org/id/london-borough-council/ealing,REGENERATION AND HOUSING,2,HOUSING  DEMAND,RENTS,1200,,04/09/2018,40820765,13035.3,SSB INVESTMENTS T/A EMPIRE ESTATES
Ealing Council,http://opendatacommunities.org/id/london-borough-council/ealing,REGENERATION AND HOUSING,2,HOUSING  DEMAND,RENTS,1200,,30/08/2018,40820767,3679.08,BROADWAY LIVING
Ealing Council,http://opendatacommunities.org/id/london-borough-council/ealing,REGENERATION AND HOUSING,2,HOUSING  DEMAND,RENTS,1200,,18/09/2018,40823278,8650.24,MR SANJAI KOHLI
Ealing Council,http://opendatacommunities.org/id/london-borough-council/ealing,REGENERATION AND HOUSING,2,HOUSING  DEMAND,RENTS,1200,,27/08/2018,40819817,1519.2,MISS L KAFSHDUZI AMIN
Ealing Council,http://opendatacommunities.org/id/london-borough-council/ealing,REGENERATION AND HOUSING,2,HOUSING  DEMAND,RENTS,1200,,28/08/2018,40819830,2030.7,REDACTED SENSITIVE SUPPLIER
Ealing Council,http://opendatacommunities.org/id/london-borough-council/ealing,REGENERATION AND HOUSING,2,HOUSING  DEMAND,RENTS,1200,,28/08/2018,40819888,1360.8,MR FAROOQ AZAM & MRS ZAHIDA WARRIACH
Ealing Council,http://opendatacommunities.org/id/london-borough-council/ealing,REGENERATION AND HOUSING,2,HOUSING  DEMAND,RENTS,1200,,22/08/2018,40820339,43781.62,PSL LEASING LIMITED
Ealing Council,http://opendatacommunities.org/id/london-borough-council/ealing,REGENERATION AND HOUSING,2,HOUSING  DEMAND,RENTS,1200,,22/08/2018,40820340,31079.01,PSL LEASING LIMITED
Ealing Council,http://opendatacommunities.org/id/london-borough-council/ealing,REGENERATION AND HOUSING,2,HOUSING  DEMAND,RENTS,1200,,01/09/2018,40820621,1231.5,JUBILEE PROPERTY MANAGEMENT LTD
Ealing Council,http://opendatacommunities.org/id/london-borough-council/ealing,REGENERATION AND HOUSING,2,HOUSING  DEMAND,RENTS,1200,,19/09/2018,40823202,2938.8,SAMIR JAKUPOVIC
Ealing Council,http://opendatacommunities.org/id/london-borough-council/ealing,REGENERATION AND HOUSING,2,HOUSING  DEMAND,RENTS,1200,,06/09/2018,40823206,10384.37,Denhan Property Services Ltd T/A Denham International Ltd
Ealing Council,http://opendatacommunities.org/id/london-borough-council/ealing,REGENERATION AND HOUSING,2,HOUSING  DEMAND,RENTS,1200,,23/08/2018,40819399,1797.3,RELIANCE RESIDENTIAL LTD
Ealing Council,http://opendatacommunities.org/id/london-borough-council/ealing,HOUSING BENEFITS,8,HOUSING BENEFITS,BACS,5316,,05/09/2018,22561360,-3144.43,Sundry - Housing Benefit Payments
Ealing Council,http://opendatacommunities.org/id/london-borough-council/ealing,HOUSING BENEFITS,8,HOUSING BENEFITS,BACS,5316,,05/09/2018,22561365,-578.04,Sundry - Housing Benefit Payments
Ealing Council,http://opendatacommunities.org/id/london-borough-council/ealing,HOUSING BENEFITS,8,HOUSING BENEFITS,BACS,5316,,05/09/2018,22561366,-2466.98,Sundry - Housing Benefit Payments
Ealing Council,http://opendatacommunities.org/id/london-borough-council/ealing,CAPITAL SCHEMES,K,SCHOOLS SERVICE,CAPITAL - CONTRACT PAYMENTS,7200,,31/08/2018,40821480,181884.24,BSW HEATING LIMITED
Ealing Council,http://opendatacommunities.org/id/london-borough-council/ealing,CAPITAL SCHEMES,K,SCHOOLS SERVICE,CAPITAL - CONTRACT PAYMENTS,7200,,05/09/2018,40821481,64167.75,GS JAMES Mechanical Services Ltd
Ealing Council,http://opendatacommunities.org/id/london-borough-council/ealing,CAPITAL SCHEMES,K,SCHOOLS SERVICE,CAPITAL - CONTRACT PAYMENTS,7200,,05/09/2018,40821483,78036.8,GS JAMES Mechanical Services Ltd
Ealing Council,http://opendatacommunities.org/id/london-borough-council/ealing,CAPITAL SCHEMES,K,SCHOOLS SERVICE,CAPITAL - CONTRACT PAYMENTS,7200,,31/08/2018,40821484,181878.36,SDG Electrical & Mechanical Limited
Ealing Council,http://opendatacommunities.org/id/london-borough-council/ealing,CAPITAL SCHEMES,K,SCHOOLS SERVICE,CAPITAL - CONTRACT PAYMENTS,7200,,12/09/2018,40822465,2035.17,VSRW Limited
Ealing Council,http://opendatacommunities.org/id/london-borough-council/ealing,CAPITAL SCHEMES,K,SCHOOLS SERVICE,CAPITAL - CONTRACT PAYMENTS,7200,,17/09/2018,40822485,28299.8,WG WIGGINTON LIMITED
Ealing Council,http://opendatacommunities.org/id/london-borough-council/ealing,CAPITAL SCHEMES,K,SCHOOLS SERVICE,CAPITAL - CONTRACT PAYMENTS,7200,,17/09/2018,40824239,1147.4,VSRW Limited
Ealing Council,http://opendatacommunities.org/id/london-borough-council/ealing,CAPITAL SCHEMES,K,SCHOOLS SERVICE,CAPITAL - CONTRACT PAYMENTS,7200,,31/08/2018,40821132,128268.21,SDG Electrical & Mechanical Limited
Ealing Council,http://opendatacommunities.org/id/london-borough-council/ealing,CAPITAL SCHEMES,K,SCHOOLS SERVICE,CAPITAL - CONTRACT PAYMENTS,7200,,12/09/2018,40823392,8874.45,JERRAM FALKUS CONSTRUCTION LIMITED
Ealing Council,http://opendatacommunities.org/id/london-borough-council/ealing,CAPITAL SCHEMES,K,SCHOOLS SERVICE,CAPITAL - CONTRACT PAYMENTS,7200,,27/09/2018,40824544,180814.83,LENGARD LIMITED
Ealing Council,http://opendatacommunities.org/id/london-borough-council/ealing,CAPITAL SCHEMES,K,SCHOOLS SERVICE,CAPITAL - CONTRACT PAYMENTS,7200,,19/09/2018,40823350,2191.5,ASR CONSTRUCTION UK LIMITED
Ealing Council,http://opendatacommunities.org/id/london-borough-council/ealing,CAPITAL SCHEMES,K,SCHOOLS SERVICE,CAPITAL - CONTRACT PAYMENTS,7200,,12/09/2018,40823402,83801.43,BTU (INSTALLATION & MAINTENANCE) LTD
Ealing Council,http://opendatacommunities.org/id/london-borough-council/ealing,CAPITAL SCHEMES,K,SCHOOLS SERVICE,CAPITAL - CIS TAX DEDUCTIONS,7250,,23/08/2018,40819636,9721.16,CENTURIAN SURFACING LTD - T/A CENTURIAN SERVICES
Ealing Council,http://opendatacommunities.org/id/london-borough-council/ealing,CAPITAL SCHEMES,K,SCHOOLS SERVICE,CAPITAL - CONTRACT PAYMENTS,7200,,13/09/2018,40822160,47881.04,WG WIGGINTON LIMITED
Ealing Council,http://opendatacommunities.org/id/london-borough-council/ealing,CAPITAL SCHEMES,K,SCHOOLS SERVICE,CAPITAL - CONTRACT PAYMENTS,7200,,17/09/2018,40824430,2470.4,VSRW Limited
Ealing Council,http://opendatacommunities.org/id/london-borough-council/ealing,CAPITAL SCHEMES,K,SCHOOLS SERVICE,CAPITAL - CONTRACT PAYMENTS,7200,,24/09/2018,40824507,3855.98,WG WIGGINTON LIMITED
Ealing Council,http://opendatacommunities.org/id/london-borough-council/ealing,CAPITAL SCHEMES,K,SCHOOLS SERVICE,CAPITAL - CONTRACT PAYMENTS,7200,,18/09/2018,40824549,64336.42,MULALLEY & CO LIMITED
Ealing Council,http://opendatacommunities.org/id/london-borough-council/ealing,CAPITAL SCHEMES,K,SCHOOLS SERVICE,CAPITAL - CONTRACT PAYMENTS,7200,,17/09/2018,40824238,1386.84,VSRW Limited
Ealing Council,http://opendatacommunities.org/id/london-borough-council/ealing,CAPITAL SCHEMES,K,SCHOOLS SERVICE,CAPITAL - CONTRACT PAYMENTS,7200,,25/07/2018,40818956,670,T MOHAN & CO LTD
Ealing Council,http://opendatacommunities.org/id/london-borough-council/ealing,CAPITAL SCHEMES,K,SCHOOLS SERVICE,CAPITAL - CONTRACT PAYMENTS,7200,,19/09/2018,40824232,14199.16,T&D BARRS PLUMBING & HEATING Ltd
Ealing Council,http://opendatacommunities.org/id/london-borough-council/ealing,CAPITAL SCHEMES,K,SCHOOLS SERVICE,CAPITAL - CONTRACT PAYMENTS,7200,,17/09/2018,40823789,41852.82,CUTTLE CONSTRUCTION LTD
Ealing Council,http://opendatacommunities.org/id/london-borough-council/ealing,CAPITAL SCHEMES,K,SCHOOLS SERVICE,CAPITAL - CONTRACT PAYMENTS,7200,,19/08/2018,40823881,22726.76,WG WIGGINTON LIMITED
Ealing Council,http://opendatacommunities.org/id/london-borough-council/ealing,CAPITAL SCHEMES,K,SCHOOLS SERVICE,CAPITAL - CONTRACT PAYMENTS,7200,,24/08/2018,40824054,69787.95,G&D HIGGINS MECHANICAL SERVICES LTD
Ealing Council,http://opendatacommunities.org/id/london-borough-council/ealing,CAPITAL SCHEMES,K,SCHOOLS SERVICE,CAPITAL - CIS TAX DEDUCTIONS,7250,,23/08/2018,40819636,10800,CENTURIAN SURFACING LTD - T/A CENTURIAN SERVICES
Ealing Council,http://opendatacommunities.org/id/london-borough-council/ealing,CAPITAL SCHEMES,K,SCHOOLS SERVICE,CAPITAL - CONTRACT PAYMENTS,7200,,23/09/2018,40824037,1323,ASR CONSTRUCTION UK LIMITED
Ealing Council,http://opendatacommunities.org/id/london-borough-council/ealing,CAPITAL SCHEMES,K,SCHOOLS SERVICE,CAPITAL - CONTRACT PAYMENTS,7200,,08/09/2018,40821670,21121.37,H CAROLAN CONSTRUCTION
Ealing Council,http://opendatacommunities.org/id/london-borough-council/ealing,CAPITAL SCHEMES,K,SCHOOLS SERVICE,CAPITAL - CONTRACT PAYMENTS,7200,,04/09/2018,40823006,145801.62,BORRAS CONSTRUCTION LTD
Ealing Council,http://opendatacommunities.org/id/london-borough-council/ealing,CAPITAL SCHEMES,K,SCHOOLS SERVICE,CAPITAL - CONTRACT PAYMENTS,7200,,18/09/2018,40823088,124669.67,G&D HIGGINS MECHANICAL SERVICES LTD
Ealing Council,http://opendatacommunities.org/id/london-borough-council/ealing,CAPITAL SCHEMES,K,SCHOOLS SERVICE,CAPITAL - CONTRACT PAYMENTS,7200,,19/09/2018,40823164,148019.53,BORRAS CONSTRUCTION LTD
Ealing Council,http://opendatacommunities.org/id/london-borough-council/ealing,CAPITAL SCHEMES,K,SCHOOLS SERVICE,CAPITAL - CONTRACT PAYMENTS,7200,,12/09/2018,40822433,9573.18,G&D HIGGINS MECHANICAL SERVICES LTD
Ealing Council,http://opendatacommunities.org/id/london-borough-council/ealing,CAPITAL SCHEMES,K,SCHOOLS SERVICE,CAPITAL - CONTRACT PAYMENTS,7200,,17/09/2018,40822528,270,AYERST ENVIRONMENTAL LIMITED
Ealing Council,http://opendatacommunities.org/id/london-borough-council/ealing,CAPITAL SCHEMES,K,SCHOOLS SERVICE,CAPITAL - CONTRACT PAYMENTS,7200,,14/09/2018,40822361,1250,Sundry Supplier - Children and Adults
Ealing Council,http://opendatacommunities.org/id/london-borough-council/ealing,CAPITAL SCHEMES,K,SCHOOLS SERVICE,CAPITAL - CONTRACT PAYMENTS,7200,,09/09/2018,40821528,1424.72,WG WIGGINTON LIMITED
Ealing Council,http://opendatacommunities.org/id/london-borough-council/ealing,CAPITAL SCHEMES,K,SCHOOLS SERVICE,CAPITAL - CONTRACT PAYMENTS,7200,,24/08/2018,40821540,4800,RHM BUILDING INFRASTRUCTURE SERVICES LTD
Ealing Council,http://opendatacommunities.org/id/london-borough-council/ealing,CHILDREN & ADULTS,1,PLANNING & RESOURCE DEV,COMP SOFTWARE,3210,,04/07/2018,40822543,2098.8,Sundry Supplier - Corporate Resources
Ealing Council,http://opendatacommunities.org/id/london-borough-council/ealing,REGENERATION AND HOUSING,2,HOUSING  DEMAND,RENTS,1200,,23/08/2018,40819411,2982.6,MR MADHUKANT & MRS NEETABEN PATEL
Ealing Council,http://opendatacommunities.org/id/london-borough-council/ealing,REGENERATION AND HOUSING,2,HOUSING  DEMAND,RENTS,1200,,25/08/2018,40819726,1406.16,MR ROODRANUND SINGH BUSAWAH
Ealing Council,http://opendatacommunities.org/id/london-borough-council/ealing,REGENERATION AND HOUSING,2,HOUSING  DEMAND,RENTS,1200,,25/03/2018,40819728,1858.5,S RENU LTD
Ealing Council,http://opendatacommunities.org/id/london-borough-council/ealing,REGENERATION AND HOUSING,2,HOUSING  DEMAND,RENTS,1200,,18/09/2018,40823112,2432.88,AUSTIN D`ARCY
Ealing Council,http://opendatacommunities.org/id/london-borough-council/ealing,REGENERATION AND HOUSING,2,HOUSING  DEMAND,RENTS,1200,,18/09/2018,40823125,2921.13,MR ZIAD ABOU-HAMZEH
Ealing Council,http://opendatacommunities.org/id/london-borough-council/ealing,REGENERATION AND HOUSING,2,HOUSING  DEMAND,RENTS,1200,,18/09/2018,40823018,17293.02,EALING HOUSING LIMITED
Ealing Council,http://opendatacommunities.org/id/london-borough-council/ealing,REGENERATION AND HOUSING,2,HOUSING  DEMAND,RENTS,1200,,18/09/2018,40823130,1395.9,CHASSIS PROPERTIES LTD
Ealing Council,http://opendatacommunities.org/id/london-borough-council/ealing,REGENERATION AND HOUSING,2,HOUSING  DEMAND,RENTS,1200,,22/08/2018,40819322,1127.1,MR HESHAM ESSA
Ealing Council,http://opendatacommunities.org/id/london-borough-council/ealing,REGENERATION AND HOUSING,2,HOUSING  DEMAND,RENTS,1200,,19/09/2018,40823201,2844,SAMIR JAKUPOVIC
Ealing Council,http://opendatacommunities.org/id/london-borough-council/ealing,REGENERATION AND HOUSING,2,HOUSING  DEMAND,RENTS,1200,,23/09/2018,40824035,2448.48,MRS LORRAINE SMITH & MR JASON SMITH
Ealing Council,http://opendatacommunities.org/id/london-borough-council/ealing,REGENERATION AND HOUSING,2,HOUSING  DEMAND,RENTS,1200,,10/09/2018,40821737,3921.42,MRS SURINDER KAUR KALYAN
Ealing Council,http://opendatacommunities.org/id/london-borough-council/ealing,REGENERATION AND HOUSING,2,HOUSING  DEMAND,RENTS,1200,,10/09/2018,40821739,4052.13,MRS SURINDER KAUR KALYAN
Ealing Council,http://opendatacommunities.org/id/london-borough-council/ealing,REGENERATION AND HOUSING,2,HOUSING  DEMAND,RENTS,1200,,10/09/2018,40821742,6326.92,LANGHAMS PARTNERSHIP LTD T/A LANGHAMS ESTATE AGENTS
Ealing Council,http://opendatacommunities.org/id/london-borough-council/ealing,REGENERATION AND HOUSING,2,HOUSING  DEMAND,RENTS,1200,,14/09/2018,40823077,977.43,INTUITIVE HEIGHTS LIMITED
Ealing Council,http://opendatacommunities.org/id/london-borough-council/ealing,REGENERATION AND HOUSING,2,HOUSING  DEMAND,RENTS,1200,,14/09/2018,40823096,35474.54,VESTURE MANAGEMENT LTD - T/A VESTURE LONDON
Ealing Council,http://opendatacommunities.org/id/london-borough-council/ealing,REGENERATION AND HOUSING,2,HOUSING  DEMAND,RENTS,1200,,17/09/2018,40822603,1406.16,MRS KALVINDER PHULL & MR KUNDAN SINGH PUHLL
Ealing Council,http://opendatacommunities.org/id/london-borough-council/ealing,REGENERATION AND HOUSING,2,HOUSING  DEMAND,RENTS,1200,,17/09/2018,40822664,1607.66,CELLCO (UK) LTD T/A SPEED MANAGEMENT
Ealing Council,http://opendatacommunities.org/id/london-borough-council/ealing,REGENERATION AND HOUSING,2,HOUSING  DEMAND,RENTS,1200,,17/09/2018,40822667,1442.43,CELLCO (UK) LTD T/A SPEED MANAGEMENT
Ealing Council,http://opendatacommunities.org/id/london-borough-council/ealing,REGENERATION AND HOUSING,2,HOUSING  DEMAND,RENTS,1200,,17/09/2018,40822741,8750.06,ALTWOOD PROPERTIES LTD
Ealing Council,http://opendatacommunities.org/id/london-borough-council/ealing,REGENERATION AND HOUSING,2,HOUSING  DEMAND,RENTS,1200,,17/09/2018,40822745,104926.27,ALTWOOD PROPERTIES LTD
Ealing Council,http://opendatacommunities.org/id/london-borough-council/ealing,REGENERATION AND HOUSING,2,HOUSING  DEMAND,RENTS,1200,,24/09/2018,40824068,1541.01,MR PARMOD CHOPRA & MRS VEENA CHOPRA
Ealing Council,http://opendatacommunities.org/id/london-borough-council/ealing,REGENERATION AND HOUSING,2,HOUSING  DEMAND,RENTS,1200,,09/09/2018,40821650,3716.59,JAIN ESTATES LTD
Ealing Council,http://opendatacommunities.org/id/london-borough-council/ealing,REGENERATION AND HOUSING,2,HOUSING  DEMAND,RENTS,1200,,25/09/2018,40824240,1538.22,MR PARDEEP KUMAR
Ealing Council,http://opendatacommunities.org/id/london-borough-council/ealing,REGENERATION AND HOUSING,2,HOUSING  DEMAND,RENTS,1200,,26/09/2018,40824245,1711.68,MR SHABAN UKA
Ealing Council,http://opendatacommunities.org/id/london-borough-council/ealing,REGENERATION AND HOUSING,2,HOUSING  DEMAND,RENTS,1200,,26/09/2018,40824289,1488.6,LOUIS KANG-MASCARENHAS
Ealing Council,http://opendatacommunities.org/id/london-borough-council/ealing,REGENERATION AND HOUSING,2,HOUSING  DEMAND,RENTS,1200,,25/09/2018,40824343,1406.16,MR ROODRANUND SINGH BUSAWAH
Ealing Council,http://opendatacommunities.org/id/london-borough-council/ealing,REGENERATION AND HOUSING,2,HOUSING  DEMAND,RENTS,1200,,25/09/2018,40824300,7594.69,iPROPERTIES LTD
Ealing Council,http://opendatacommunities.org/id/london-borough-council/ealing,REGENERATION AND HOUSING,2,HOUSING  DEMAND,RENTS,1200,,17/09/2018,40823910,9080.46,RAJESH SAPRA
Ealing Council,http://opendatacommunities.org/id/london-borough-council/ealing,REGENERATION AND HOUSING,2,HOUSING  DEMAND,RENTS,1200,,21/09/2018,40823913,333333.67,MIDDLESEX HOUSING LTD
Ealing Council,http://opendatacommunities.org/id/london-borough-council/ealing,REGENERATION AND HOUSING,2,HOUSING  DEMAND,RENTS,1200,,10/09/2018,40823914,37116.3,SUNWIN PROPERTIES LTD - T/A HOMELINK
Ealing Council,http://opendatacommunities.org/id/london-borough-council/ealing,REGENERATION AND HOUSING,2,HOUSING  DEMAND,RENTS,1200,,31/05/2018,40821606,1836,HARRISONS HOMES UK LIMITED
Ealing Council,http://opendatacommunities.org/id/london-borough-council/ealing,REGENERATION AND HOUSING,2,HOUSING  DEMAND,RENTS,1200,,06/09/2018,40821622,1815.98,MR RAGY ZAKI-FAHMY
Ealing Council,http://opendatacommunities.org/id/london-borough-council/ealing,REGENERATION AND HOUSING,2,HOUSING  DEMAND,RENTS,1200,,03/09/2018,40820719,5250,NORWOOD GREEN DEVELOPMENTS
Ealing Council,http://opendatacommunities.org/id/london-borough-council/ealing,REGENERATION AND HOUSING,2,HOUSING  DEMAND,RENTS,1200,,17/09/2018,40822473,1164.67,MR HESHAM ESSA
Ealing Council,http://opendatacommunities.org/id/london-borough-council/ealing,REGENERATION AND HOUSING,2,HOUSING  DEMAND,RENTS,1200,,13/09/2018,40822492,5544,MRS OROBOLA AKINSEYE & DR T O AKINSEYE
Ealing Council,http://opendatacommunities.org/id/london-borough-council/ealing,REGENERATION AND HOUSING,2,HOUSING  DEMAND,RENTS,1200,,07/09/2018,40821600,101602.34,CASTLELINE LTD
Ealing Council,http://opendatacommunities.org/id/london-borough-council/ealing,REGENERATION AND HOUSING,2,HOUSING  DEMAND,RENTS,1200,,14/09/2018,40822506,1797.3,PROPERTY ENERGY RATING SERVICES LTD
Ealing Council,http://opendatacommunities.org/id/london-borough-council/ealing,REGENERATION AND HOUSING,2,HOUSING  DEMAND,RENTS,1200,,17/09/2018,40822508,1052.45,WENTWORTH HOUSING LTD TA/ WENTWORTH ESTATES
Ealing Council,http://opendatacommunities.org/id/london-borough-council/ealing,REGENERATION AND HOUSING,2,HOUSING  DEMAND,RENTS,1200,,17/09/2018,40823785,70593.56,EALING HOUSING LIMITED
Ealing Council,http://opendatacommunities.org/id/london-borough-council/ealing,REGENERATION AND HOUSING,2,HOUSING  DEMAND,RENTS,1200,,07/09/2018,40821592,90224.26,CASTLELINE LTD
Ealing Council,http://opendatacommunities.org/id/london-borough-council/ealing,REGENERATION AND HOUSING,2,HOUSING  DEMAND,RENTS,1200,,14/09/2018,40822456,159997.63,BISHOP PROPERTY MANAGEMENT LTD
Ealing Council,http://opendatacommunities.org/id/london-borough-council/ealing,REGENERATION AND HOUSING,2,HOUSING  DEMAND,RENTS,1200,,14/09/2018,40822459,54654.49,BISHOP PROPERTY MANAGEMENT LTD
Ealing Council,http://opendatacommunities.org/id/london-borough-council/ealing,REGENERATION AND HOUSING,2,HOUSING  DEMAND,RENTS,1200,,14/09/2018,40822461,3318.24,KPA INVESTMENTS UK LTD T/A MIDDLESEX INVESTMENTS
Ealing Council,http://opendatacommunities.org/id/london-borough-council/ealing,CORPORATE RESOURCES,4,PROPERTY SERVICES,REPAIR AND MAINTENANCE,1410,,31/08/2018,40821259,14085,R.O.D. DRAINTECH LIMITED
Ealing Council,http://opendatacommunities.org/id/london-borough-council/ealing,CORPORATE RESOURCES,4,PROPERTY SERVICES,GEN. REP. - FABRIC,1520,,26/09/2018,40824288,255,T MOHAN & CO LTD
Ealing Council,http://opendatacommunities.org/id/london-borough-council/ealing,CORPORATE RESOURCES,4,PROPERTY SERVICES,REPAIR AND MAINTENANCE,1410,,22/08/2018,40822298,-2853.46,KINNARPS UK LTD
Ealing Council,http://opendatacommunities.org/id/london-borough-council/ealing,CORPORATE RESOURCES,4,PROPERTY SERVICES,GEN REP.- MECHANICAL,1540,,31/08/2018,40821122,388,APEX REFRIGERATION & AIR CONDITIONING LTD
Ealing Council,http://opendatacommunities.org/id/london-borough-council/ealing,CORPORATE RESOURCES,4,PROPERTY SERVICES,GEN. REP.- ELECTRICAL,1530,,20/09/2018,40823891,1445.26,CAMPBELL & KENNEDY LIMITED
Ealing Council,http://opendatacommunities.org/id/london-borough-council/ealing,CORPORATE RESOURCES,4,PROPERTY SERVICES,REPAIR AND MAINTENANCE,1410,,13/09/2018,40822340,1550,GLOBAL IMPORT & DISTRIBUTION CO LTD T/A GLOBAL WATERPROOFING
Ealing Council,http://opendatacommunities.org/id/london-borough-council/ealing,CORPORATE RESOURCES,4,PROPERTY SERVICES,GEN. REP. - FABRIC,1520,,13/09/2018,40822169,-293,T MOHAN & CO LTD
Ealing Council,http://opendatacommunities.org/id/london-borough-council/ealing,CORPORATE RESOURCES,4,PROPERTY SERVICES,REPAIR AND MAINTENANCE,1410,,18/09/2018,40823144,333.7,IRONMONGERY DIRECT LTD
Ealing Council,http://opendatacommunities.org/id/london-borough-council/ealing,CORPORATE RESOURCES,4,PROPERTY SERVICES,REPAIR AND MAINTENANCE,1410,,10/09/2018,40823917,2074,AT YOUR SERVICE EVENT STAFFING LTD T/A SHERPA
Ealing Council,http://opendatacommunities.org/id/london-borough-council/ealing,CORPORATE RESOURCES,4,PROPERTY SERVICES,GEN. REP. - FABRIC,1520,,25/09/2018,40824157,377,T MOHAN & CO LTD
Ealing Council,http://opendatacommunities.org/id/london-borough-council/ealing,CORPORATE RESOURCES,4,PROPERTY SERVICES,GEN. REP.- ELECTRICAL,1530,,18/09/2018,40824339,406.2,EDMUNDSON ELECTRICAL LTD-T/A BENNETT & FOUNTAIN
Ealing Council,http://opendatacommunities.org/id/london-borough-council/ealing,CORPORATE RESOURCES,4,PROPERTY SERVICES,GEN. REP.- ELECTRICAL,1530,,13/09/2018,40823145,273.9,EDMUNDSON ELECTRICAL LTD-T/A BENNETT & FOUNTAIN
Ealing Council,http://opendatacommunities.org/id/london-borough-council/ealing,CORPORATE RESOURCES,4,PROPERTY SERVICES,GEN. REP. - FABRIC,1520,,18/09/2018,40822709,293,T MOHAN & CO LTD
Ealing Council,http://opendatacommunities.org/id/london-borough-council/ealing,CORPORATE RESOURCES,4,PROPERTY SERVICES,GEN REP.- MECHANICAL,1540,,31/08/2018,40820827,8285,COURT CATERING EQUIPMENT LTD
Ealing Council,http://opendatacommunities.org/id/london-borough-council/ealing,CORPORATE RESOURCES,4,PROPERTY SERVICES,GEN REP.- MECHANICAL,1540,,31/08/2018,40820828,7004,COURT CATERING EQUIPMENT LTD
Ealing Council,http://opendatacommunities.org/id/london-borough-council/ealing,CORPORATE RESOURCES,4,PROPERTY SERVICES,GEN REP.- MECHANICAL,1540,,31/08/2018,40820829,8109,COURT CATERING EQUIPMENT LTD
Ealing Council,http://opendatacommunities.org/id/london-borough-council/ealing,CORPORATE RESOURCES,4,PROPERTY SERVICES,GEN REP.- MECHANICAL,1540,,31/08/2018,40820830,7147,COURT CATERING EQUIPMENT LTD
Ealing Council,http://opendatacommunities.org/id/london-borough-council/ealing,CORPORATE RESOURCES,4,PROPERTY SERVICES,GEN REP.- MECHANICAL,1540,,31/08/2018,40820831,7079,COURT CATERING EQUIPMENT LTD
Ealing Council,http://opendatacommunities.org/id/london-borough-council/ealing,CORPORATE RESOURCES,4,PROPERTY SERVICES,GEN. REP.- ELECTRICAL,1530,,10/09/2018,40821663,538,EVANS AND BROOKS FIRE LTD
Ealing Council,http://opendatacommunities.org/id/london-borough-council/ealing,CORPORATE RESOURCES,4,PROPERTY SERVICES,GEN. REP. - FABRIC,1520,,29/08/2018,40821377,468.07,CHARTWELL DOORS LTD
Ealing Council,http://opendatacommunities.org/id/london-borough-council/ealing,CORPORATE RESOURCES,4,PROPERTY SERVICES,GEN. REP.- ELECTRICAL,1530,,23/03/2018,40820653,250,Smith of Derby Ltd
Ealing Council,http://opendatacommunities.org/id/london-borough-council/ealing,CORPORATE RESOURCES,4,PROPERTY SERVICES,CIS REPAIRS AND MAINTENANCE,1411,,25/09/2018,40824161,271.96,GOLDEN SERVICES PLUS LIMITED
Ealing Council,http://opendatacommunities.org/id/london-borough-council/ealing,CORPORATE RESOURCES,4,PROPERTY SERVICES,GEN. REP. - FABRIC,1520,,12/09/2018,40821937,1044,T MOHAN & CO LTD
Ealing Council,http://opendatacommunities.org/id/london-borough-council/ealing,CORPORATE RESOURCES,4,PROPERTY SERVICES,GEN. REP. - FABRIC,1520,,18/09/2018,40822740,334,T MOHAN & CO LTD
Ealing Council,http://opendatacommunities.org/id/london-borough-council/ealing,CORPORATE RESOURCES,4,PROPERTY SERVICES,GEN. REP. - FABRIC,1520,,20/08/2018,40819144,450,PINDORIA ASSOCIATES LTD
Ealing Council,http://opendatacommunities.org/id/london-borough-council/ealing,CORPORATE RESOURCES,4,PROPERTY SERVICES,GEN. REP.- ELECTRICAL,1530,,10/09/2018,40821662,806.76,EVANS AND BROOKS FIRE LTD
Ealing Council,http://opendatacommunities.org/id/london-borough-council/ealing,CORPORATE RESOURCES,4,PROPERTY SERVICES,GEN. REP. - FABRIC,1520,,31/08/2018,40821782,1280,R.O.D. DRAINTECH LIMITED
Ealing Council,http://opendatacommunities.org/id/london-borough-council/ealing,CORPORATE RESOURCES,4,PROPERTY SERVICES,GEN. REP.- ELECTRICAL,1530,,10/09/2018,40821814,1786.81,EVANS AND BROOKS FIRE LTD
Ealing Council,http://opendatacommunities.org/id/london-borough-council/ealing,CORPORATE RESOURCES,4,PROPERTY SERVICES,GEN REP.- MECHANICAL,1540,,03/09/2018,40820646,2438.27,TYCO INTEGRATED SYSTEMS LTD
Ealing Council,http://opendatacommunities.org/id/london-borough-council/ealing,CORPORATE RESOURCES,4,PROPERTY SERVICES,GEN. REP. - FABRIC,1520,,30/08/2018,40820418,863.58,MIDDLESEX FLOORING LIMITED
Ealing Council,http://opendatacommunities.org/id/london-borough-council/ealing,CORPORATE RESOURCES,4,PROPERTY SERVICES,GEN. REP. - FABRIC,1520,,30/08/2018,40820788,314.98,RICHARDSONS OF FELTHAM LTD T/A RICHARDSONS
Ealing Council,http://opendatacommunities.org/id/london-borough-council/ealing,CORPORATE RESOURCES,4,PROPERTY SERVICES,STATION. & CONSUMABLE EQUIP.,3820,,04/09/2018,40821282,440.5,OFFICE DEPOT UK LTD
Ealing Council,http://opendatacommunities.org/id/london-borough-council/ealing,CORPORATE RESOURCES,4,PROPERTY SERVICES,WATER,1140,,24/09/2018,40823928,2659.61,CASTLE WATER LIMITED
Ealing Council,http://opendatacommunities.org/id/london-borough-council/ealing,CORPORATE RESOURCES,4,PROPERTY SERVICES,STATION. & CONSUMABLE EQUIP.,3820,,22/02/2018,40822124,352.4,OFFICE DEPOT UK LTD
Ealing Council,http://opendatacommunities.org/id/london-borough-council/ealing,CORPORATE RESOURCES,4,PROPERTY SERVICES,STATION. & CONSUMABLE EQUIP.,3820,,12/06/2018,40822125,389,OFFICE DEPOT UK LTD
Ealing Council,http://opendatacommunities.org/id/london-borough-council/ealing,CORPORATE RESOURCES,4,PROPERTY SERVICES,STATION. & CONSUMABLE EQUIP.,3820,,17/09/2018,40823150,440.5,OFFICE DEPOT UK LTD
Ealing Council,http://opendatacommunities.org/id/london-borough-council/ealing,CORPORATE RESOURCES,4,PROPERTY SERVICES,STATION. & CONSUMABLE EQUIP.,3820,,12/02/2018,40822123,352.4,OFFICE DEPOT UK LTD
Ealing Council,http://opendatacommunities.org/id/london-borough-council/ealing,CORPORATE RESOURCES,4,PROPERTY SERVICES,STATION. & CONSUMABLE EQUIP.,3820,,11/09/2018,40822793,440.5,OFFICE DEPOT UK LTD
Ealing Council,http://opendatacommunities.org/id/london-borough-council/ealing,CORPORATE RESOURCES,4,PROPERTY SERVICES,FOOD & OTHER PROVISIONS,3000,,18/09/2018,40824088,356.83,BFS GROUP LTD T/A BIDVEST FOOD SERVICE
Ealing Council,http://opendatacommunities.org/id/london-borough-council/ealing,CORPORATE RESOURCES,4,PROPERTY SERVICES,FOOD & OTHER PROVISIONS,3000,,20/09/2018,40824090,295.96,BFS GROUP LTD T/A BIDVEST FOOD SERVICE
Ealing Council,http://opendatacommunities.org/id/london-borough-council/ealing,CORPORATE RESOURCES,4,PROPERTY SERVICES,FOOD & OTHER PROVISIONS,3000,,22/09/2018,40824097,469.78,NIJJAR DAIRY LTD T/A FRESHWAYS
Ealing Council,http://opendatacommunities.org/id/london-borough-council/ealing,CORPORATE RESOURCES,4,PROPERTY SERVICES,FOOD & OTHER PROVISIONS,3000,,24/09/2018,40824105,349.7,COSTA COFFEE LIMITED
Ealing Council,http://opendatacommunities.org/id/london-borough-council/ealing,CORPORATE RESOURCES,4,PROPERTY SERVICES,FOOD & OTHER PROVISIONS,3000,,24/09/2018,40824105,280.15,COSTA COFFEE LIMITED
Ealing Council,http://opendatacommunities.org/id/london-borough-council/ealing,CHILDREN & ADULTS,1,EARLY YEARS CHILDCARE & SAFE,TRAINING MATERIALS,3350,,04/07/2018,40822555,300,Sundry Supplier - Children and Adults
Ealing Council,http://opendatacommunities.org/id/london-borough-council/ealing,CHILDREN & ADULTS,1,EARLY YEARS CHILDCARE & SAFE,WATER,1140,,02/09/2018,40820524,595.6,CASTLE WATER LIMITED
Ealing Council,http://opendatacommunities.org/id/london-borough-council/ealing,CHILDREN & ADULTS,1,EARLY YEARS CHILDCARE & SAFE,CLEANING CONTRACT,1300,,31/08/2018,40820711,492.4,ASHLEY CLEANING SERVICES LIMITED
Ealing Council,http://opendatacommunities.org/id/london-borough-council/ealing,CHILDREN & ADULTS,1,EARLY YEARS CHILDCARE & SAFE,CHILDCARE PROVISION,4690,,09/05/2018,40821984,270.73,REDACTED SENSITIVE SUPPLIER
Ealing Council,http://opendatacommunities.org/id/london-borough-council/ealing,CHILDREN & ADULTS,1,EARLY YEARS CHILDCARE & SAFE,CHILDCARE PROVISION,4690,,11/06/2018,40821985,259.82,REDACTED SENSITIVE SUPPLIER
Ealing Council,http://opendatacommunities.org/id/london-borough-council/ealing,CHILDREN & ADULTS,1,EARLY YEARS CHILDCARE & SAFE,CHILDCARE PROVISION,4690,,05/07/2018,40821986,349.64,REDACTED SENSITIVE SUPPLIER
Ealing Council,http://opendatacommunities.org/id/london-borough-council/ealing,CHILDREN & ADULTS,1,EARLY YEARS CHILDCARE & SAFE,CHILDCARE PROVISION,4690,,07/08/2018,40821987,526.49,REDACTED SENSITIVE SUPPLIER
Ealing Council,http://opendatacommunities.org/id/london-borough-council/ealing,CHILDREN & ADULTS,1,EARLY YEARS CHILDCARE & SAFE,CHILDCARE PROVISION,4690,,30/07/2018,40821891,395,REDACTED SENSITIVE SUPPLIER
Ealing Council,http://opendatacommunities.org/id/london-borough-council/ealing,CHILDREN & ADULTS,1,EARLY YEARS CHILDCARE & SAFE,CHILDCARE PROVISION,4690,,30/07/2018,40821894,875,REDACTED SENSITIVE SUPPLIER
Ealing Council,http://opendatacommunities.org/id/london-borough-council/ealing,CHILDREN & ADULTS,1,PERFORMANCE & TRAINING,SERVICES CONTRACTS AGENCY INTERIM CONSULTANTS ,2970,,10/09/2018,40821831,1897,CHRIS MILLS
Ealing Council,http://opendatacommunities.org/id/london-borough-council/ealing,CHILDREN & ADULTS,1,PERFORMANCE & TRAINING,TRAINING,80,,06/09/2018,40821537,695,THE MEDICINES TRAINING PARTNERSHIP
Ealing Council,http://opendatacommunities.org/id/london-borough-council/ealing,CHILDREN & ADULTS,1,PERFORMANCE & TRAINING,TRAINING,80,,19/09/2018,40824282,1800,ALASDAIR CANT & ASSOCIATES LTD
Ealing Council,http://opendatacommunities.org/id/london-borough-council/ealing,CHILDREN & ADULTS,1,PERFORMANCE & TRAINING,TRAINING,80,,13/09/2018,40822185,265,FIRST RESPONSE TRAINING AND CONSULTANCY SERVICES LTD
Ealing Council,http://opendatacommunities.org/id/london-borough-council/ealing,CHILDREN & ADULTS,1,PERFORMANCE & TRAINING,TRAINING,80,,13/09/2018,40822186,265,FIRST RESPONSE TRAINING AND CONSULTANCY SERVICES LTD
Ealing Council,http://opendatacommunities.org/id/london-borough-council/ealing,CHILDREN & ADULTS,1,PERFORMANCE & TRAINING,TRAINING,80,,26/09/2018,40824263,595,NORMAN MARK TRAINING
Ealing Council,http://opendatacommunities.org/id/london-borough-council/ealing,CHILDREN & ADULTS,1,PERFORMANCE & TRAINING,TRAINING,80,,24/07/2018,40821398,610,BOURNEMOUTH UNIVERSITY
Ealing Council,http://opendatacommunities.org/id/london-borough-council/ealing,ENVIRONMENT & CUSTOMER SERVICES,3,PARKING CONTRIBUTION,REPAIR AND MAINTENANCE,1410,,05/09/2018,40821311,757.96,METRIC GROUP LTD
Ealing Council,http://opendatacommunities.org/id/london-borough-council/ealing,ENVIRONMENT & CUSTOMER SERVICES,3,PARKING CONTRIBUTION,REPAIR AND MAINTENANCE,1410,,05/09/2018,40821315,333.36,METRIC GROUP LTD
Ealing Council,http://opendatacommunities.org/id/london-borough-council/ealing,CAPITAL SCHEMES,K,ENVIRONMENT & LEISURE,CAPITAL - CONTRACT PAYMENTS,7200,,31/08/2018,40821539,25000,Sundry Supplier - Environment & Customer Services
Ealing Council,http://opendatacommunities.org/id/london-borough-council/ealing,CAPITAL SCHEMES,K,ENVIRONMENT & LEISURE,CAPITAL - CONTRACT PAYMENTS,7200,,21/05/2018,40821593,489,Sundry Supplier - Environment & Customer Services
Ealing Council,http://opendatacommunities.org/id/london-borough-council/ealing,CAPITAL SCHEMES,K,ENVIRONMENT & LEISURE,CAPITAL - CONTRACT PAYMENTS,7200,,06/09/2018,40824241,9300,Sundry Supplier - Environment & Customer Services
Ealing Council,http://opendatacommunities.org/id/london-borough-council/ealing,CAPITAL SCHEMES,K,ENVIRONMENT & LEISURE,CAPITAL - CONTRACT PAYMENTS,7200,,20/08/2018,40819132,1785,Cyclehoop Limited
Ealing Council,http://opendatacommunities.org/id/london-borough-council/ealing,CAPITAL SCHEMES,K,ENVIRONMENT & LEISURE,CAPITAL - CONTRACT PAYMENTS,7200,,20/09/2018,40823452,5710,A.J. HAWES AND FAMILY
Ealing Council,http://opendatacommunities.org/id/london-borough-council/ealing,CAPITAL SCHEMES,K,ENVIRONMENT & LEISURE,CAPITAL - CONTRACT PAYMENTS,7200,,28/09/2018,40824581,400,ENTERPRISE MANAGED SERVICES LTD (AMEY PLC)
Ealing Council,http://opendatacommunities.org/id/london-borough-council/ealing,CAPITAL SCHEMES,K,ENVIRONMENT & LEISURE,CAPITAL - CONTRACT PAYMENTS,7200,,28/09/2018,40824584,4069.4,ENTERPRISE MANAGED SERVICES LTD (AMEY PLC)
Ealing Council,http://opendatacommunities.org/id/london-borough-council/ealing,CAPITAL SCHEMES,K,ENVIRONMENT & LEISURE,CAPITAL - CONTRACT PAYMENTS,7200,,10/08/2018,40817588,2265.5,DMA Signs Limited
Ealing Council,http://opendatacommunities.org/id/london-borough-council/ealing,CAPITAL SCHEMES,K,ENVIRONMENT & LEISURE,CAPITAL - CONTRACT PAYMENTS,7200,,10/08/2018,40822314,-952.02,DMA Signs Limited
Ealing Council,http://opendatacommunities.org/id/london-borough-council/ealing,CHILDREN & ADULTS,1,CSAS,SERVICES CONTRACTS AGENCY INTERIM CONSULTANTS ,2970,,11/09/2018,40821904,10350,3BM LTD
Ealing Council,http://opendatacommunities.org/id/london-borough-council/ealing,CHILDREN & ADULTS,1,INTEGRATED COMMISSIONING,GRANTS,5010,,21/08/2018,40824149,15000,EALING MENCAP
Ealing Council,http://opendatacommunities.org/id/london-borough-council/ealing,CHILDREN & ADULTS,1,INTEGRATED COMMISSIONING,GRANTS,5010,,21/09/2018,40823962,37500,HOME-START EALING
Ealing Council,http://opendatacommunities.org/id/london-borough-council/ealing,CHILDREN & ADULTS,1,INTEGRATED COMMISSIONING,GRANTS,5010,,21/09/2018,40824150,56581,CONTACT A FAMILY (SOUTHALL)
Ealing Council,http://opendatacommunities.org/id/london-borough-council/ealing,CHILDREN & ADULTS,1,INTEGRATED COMMISSIONING,GRANTS,5010,,21/09/2018,40824143,15000,EALING COMMUNITY & VOLUNTARY SERVICE
Ealing Council,http://opendatacommunities.org/id/london-borough-council/ealing,CHILDREN & ADULTS,1,INTEGRATED COMMISSIONING,GRANTS,5010,,21/09/2018,40824144,20500,BRENTFORD FC COMMUNITY SPORTS TRUST
Ealing Council,http://opendatacommunities.org/id/london-borough-council/ealing,CHILDREN & ADULTS,1,INTEGRATED COMMISSIONING,GRANTS,5010,,21/09/2018,40824145,18000,HAVELOCK FAMILY CENTRE
Ealing Council,http://opendatacommunities.org/id/london-borough-council/ealing,CHILDREN & ADULTS,1,INTEGRATED COMMISSIONING,GRANTS,5010,,21/09/2018,40824146,36000,SOMALI ADVICE AND DEVELOPMENT CENTRE
Ealing Council,http://opendatacommunities.org/id/london-borough-council/ealing,CHILDREN & ADULTS,1,INTEGRATED COMMISSIONING,GRANTS,5010,,21/09/2018,40824147,39000,VICTIM SUPPORT
Ealing Council,http://opendatacommunities.org/id/london-borough-council/ealing,CHILDREN & ADULTS,1,INTEGRATED COMMISSIONING,GRANTS,5010,,21/09/2018,40824148,18165,EALING MENCAP
Ealing Council,http://opendatacommunities.org/id/london-borough-council/ealing,CHILDREN & ADULTS,1,EALING SERVICE FOR CHILDREN WITH ADDITIONAL NEEDS,RECOUPMENT FURTHER EDUCATION COLLEGES,4269,,03/09/2018,40821621,13883.37,DERWEN COLLEGE
Ealing Council,http://opendatacommunities.org/id/london-borough-council/ealing,CHILDREN & ADULTS,1,EALING SERVICE FOR CHILDREN WITH ADDITIONAL NEEDS,RECOUPMENT SPECIALIST COLLEGES,4268,,01/09/2018,40820722,27080,DONCASTER COLLEGE FOR THE DEAF
Ealing Council,http://opendatacommunities.org/id/london-borough-council/ealing,CHILDREN & ADULTS,1,EALING SERVICE FOR CHILDREN WITH ADDITIONAL NEEDS,RECOUPMENT INDEPENDENT SPECIAL,4266,,22/08/2018,40823019,7494.33,THE GREEN CORRIDOR
Ealing Council,http://opendatacommunities.org/id/london-borough-council/ealing,CAPITAL SCHEMES,K,SCHOOLS SERVICE,CAPITAL - CONTRACT PAYMENTS,7200,,21/09/2018,40824080,278364.75,M P BUILDING LTD
Ealing Council,http://opendatacommunities.org/id/london-borough-council/ealing,CAPITAL SCHEMES,K,SCHOOLS SERVICE,CAPITAL - CONTRACT PAYMENTS,7200,,24/08/2018,40820415,172055.91,M P BUILDING LTD
Ealing Council,http://opendatacommunities.org/id/london-borough-council/ealing,CAPITAL SCHEMES,K,SCHOOLS SERVICE,CAPITAL - CONTRACT PAYMENTS,7200,,01/08/2018,40817085,4200,ASTEC CONSULTANT SERVICES (HS) LIMITED
Ealing Council,http://opendatacommunities.org/id/london-borough-council/ealing,REGENERATION AND HOUSING,2,COMMUNITY SAFETY,PAYMENTS TO CONTRACTORS,4000,,12/08/2018,40823757,9627.11,PARKGUARD LTD
Ealing Council,http://opendatacommunities.org/id/london-borough-council/ealing,REGENERATION AND HOUSING,2,COMMUNITY SAFETY,PAYMENTS TO CONTRACTORS,4000,,05/09/2018,40823851,8190.63,PARKGUARD LTD
Ealing Council,http://opendatacommunities.org/id/london-borough-council/ealing,REGENERATION AND HOUSING,2,COMMUNITY SAFETY,PAYMENTS TO CONTRACTORS,4000,,18/09/2018,40823903,10625,Sundry Supplier - Regeneration & Housing
Ealing Council,http://opendatacommunities.org/id/london-borough-council/ealing,REGENERATION AND HOUSING,2,COMMUNITY SAFETY,PAYMENTS TO CONTRACTORS,4000,,11/09/2018,40821971,975,STANDING TOGETHER AGAINST DOMESTIC VIOLENCE
Ealing Council,http://opendatacommunities.org/id/london-borough-council/ealing,REGENERATION AND HOUSING,2,PROPERTY & REGENERATION,HOSPITALITY/ENTERTAINMENT,3530,,02/08/2018,40821661,6130,Sundry Supplier - Regeneration & Housing
Ealing Council,http://opendatacommunities.org/id/london-borough-council/ealing,REGENERATION AND HOUSING,2,PROPERTY & REGENERATION,PAYMENTS TO CONTRACTORS,4000,,12/09/2018,40822315,5000,Sundry Supplier - Regeneration & Housing
Ealing Council,http://opendatacommunities.org/id/london-borough-council/ealing,REGENERATION AND HOUSING,2,PROPERTY & REGENERATION,PAYMENTS TO CONTRACTORS,4000,,31/08/2018,40820400,3363,Sundry Supplier - Regeneration & Housing
Ealing Council,http://opendatacommunities.org/id/london-borough-council/ealing,REGENERATION AND HOUSING,2,TRANSPORT,EXTERNAL TECHNICAL ADVICE,4060,,03/08/2018,40816305,2839.22,MURRILL CONSTRUCTION LIMITED
Ealing Council,http://opendatacommunities.org/id/london-borough-council/ealing,REGENERATION AND HOUSING,2,HOUSING BUSINESS UNITS,REPAIR AND MAINTENANCE,1410,,20/09/2018,40823646,47176.13,MNM PROPERTY SERVICES LIMITED
Ealing Council,http://opendatacommunities.org/id/london-borough-council/ealing,REGENERATION AND HOUSING,2,HOUSING BUSINESS UNITS,REPAIR AND MAINTENANCE,1410,,20/09/2018,40823657,13014.75,WG WIGGINTON LIMITED
Ealing Council,http://opendatacommunities.org/id/london-borough-council/ealing,REGENERATION AND HOUSING,2,HOUSING BUSINESS UNITS,REPAIR AND MAINTENANCE,1410,,20/09/2018,40823679,38777.84,MEAD BUILDING SERVICES LTD
Ealing Council,http://opendatacommunities.org/id/london-borough-council/ealing,REGENERATION AND HOUSING,2,HOUSING BUSINESS UNITS,REPAIR AND MAINTENANCE,1410,,20/09/2018,40823698,23898.88,ALPHATRACK SYSTEMS LTD
Ealing Council,http://opendatacommunities.org/id/london-borough-council/ealing,REGENERATION AND HOUSING,2,HOUSING BUSINESS UNITS,REPAIR AND MAINTENANCE,1410,,20/09/2018,40823699,28856.34,ALPHATRACK SYSTEMS LTD
Ealing Council,http://opendatacommunities.org/id/london-borough-council/ealing,REGENERATION AND HOUSING,2,HOUSING BUSINESS UNITS,REPAIR AND MAINTENANCE,1410,,20/09/2018,40823746,99335.45,MOUNTJOY LIMITED
Ealing Council,http://opendatacommunities.org/id/london-borough-council/ealing,REGENERATION AND HOUSING,2,HOUSING BUSINESS UNITS,REPAIR AND MAINTENANCE,1410,,25/09/2018,40824512,5108.48,PDERS KEY LIFTS
Ealing Council,http://opendatacommunities.org/id/london-borough-council/ealing,REGENERATION AND HOUSING,2,HOUSING BUSINESS UNITS,REPAIR AND MAINTENANCE,1410,,27/09/2018,40824558,11400.11,T BROWN GROUP LIMITED
Ealing Council,http://opendatacommunities.org/id/london-borough-council/ealing,REGENERATION AND HOUSING,2,HOUSING BUSINESS UNITS,REPAIR AND MAINTENANCE,1410,,07/09/2018,40821535,22823.63,T BROWN GROUP LIMITED
Ealing Council,http://opendatacommunities.org/id/london-borough-council/ealing,REGENERATION AND HOUSING,2,HOUSING BUSINESS UNITS,REPAIR AND MAINTENANCE,1410,,31/08/2018,40820358,108548.14,T BROWN GROUP LIMITED
Ealing Council,http://opendatacommunities.org/id/london-borough-council/ealing,REGENERATION AND HOUSING,2,HOUSING BUSINESS UNITS,REPAIR AND MAINTENANCE,1410,,13/09/2018,40822241,5613.68,MOUNTJOY LIMITED
Ealing Council,http://opendatacommunities.org/id/london-borough-council/ealing,REGENERATION AND HOUSING,2,HOUSING BUSINESS UNITS,REPAIR AND MAINTENANCE,1410,,30/08/2018,40820242,50531.95,MNM PROPERTY SERVICES LIMITED
Ealing Council,http://opendatacommunities.org/id/london-borough-council/ealing,REGENERATION AND HOUSING,2,HOUSING BUSINESS UNITS,REPAIR AND MAINTENANCE,1410,,30/08/2018,40820644,455,OWEN WHITE SOLICITORS
Ealing Council,http://opendatacommunities.org/id/london-borough-council/ealing,REGENERATION AND HOUSING,2,HOUSING BUSINESS UNITS,REPAIR AND MAINTENANCE,1410,,30/08/2018,40820285,1109.09,ALPHATRACK SYSTEMS LTD
Ealing Council,http://opendatacommunities.org/id/london-borough-council/ealing,REGENERATION AND HOUSING,2,HOUSING BUSINESS UNITS,REPAIR AND MAINTENANCE,1410,,14/09/2018,40822403,7685.7,T BROWN GROUP LIMITED
Ealing Council,http://opendatacommunities.org/id/london-borough-council/ealing,REGENERATION AND HOUSING,2,HOUSING BUSINESS UNITS,REPAIR AND MAINTENANCE,1410,,27/09/2018,40824542,97714.74,MNM PROPERTY SERVICES LIMITED
Ealing Council,http://opendatacommunities.org/id/london-borough-council/ealing,REGENERATION AND HOUSING,2,HOUSING  DEMAND,RENTS,1200,,14/09/2018,40822428,14639.75,MR RANJIT BAINS & MRS SUNTOSH BAINS
Ealing Council,http://opendatacommunities.org/id/london-borough-council/ealing,REGENERATION AND HOUSING,2,HOUSING  DEMAND,RENTS,1200,,20/08/2018,40822442,14167.5,MR RANJIT BAINS & MRS SUNTOSH BAINS
Ealing Council,http://opendatacommunities.org/id/london-borough-council/ealing,REGENERATION AND HOUSING,2,HOUSING  DEMAND,BED & BREAKFAST PAYMENTS,5330,,12/08/2018,40820228,798,REDACTED SENSITIVE SUPPLIER
Ealing Council,http://opendatacommunities.org/id/london-borough-council/ealing,REGENERATION AND HOUSING,2,HOUSING  DEMAND,BED & BREAKFAST PAYMENTS,5330,,12/08/2018,40820229,1092,REDACTED SENSITIVE SUPPLIER
Ealing Council,http://opendatacommunities.org/id/london-borough-council/ealing,REGENERATION AND HOUSING,2,HOUSING  DEMAND,BED & BREAKFAST PAYMENTS,5330,,12/08/2018,40820230,840,REDACTED SENSITIVE SUPPLIER
Ealing Council,http://opendatacommunities.org/id/london-borough-council/ealing,REGENERATION AND HOUSING,2,HOUSING  DEMAND,BED & BREAKFAST PAYMENTS,5330,,12/08/2018,40820232,1134,REDACTED SENSITIVE SUPPLIER
Ealing Council,http://opendatacommunities.org/id/london-borough-council/ealing,REGENERATION AND HOUSING,2,HOUSING  DEMAND,BED & BREAKFAST PAYMENTS,5330,,12/08/2018,40820237,840,REDACTED SENSITIVE SUPPLIER
Ealing Council,http://opendatacommunities.org/id/london-borough-council/ealing,REGENERATION AND HOUSING,2,HOUSING  DEMAND,BED & BREAKFAST PAYMENTS,5330,,12/08/2018,40820239,882,REDACTED SENSITIVE SUPPLIER
Ealing Council,http://opendatacommunities.org/id/london-borough-council/ealing,REGENERATION AND HOUSING,2,HOUSING  DEMAND,BED & BREAKFAST PAYMENTS,5330,,29/07/2018,40823036,1236,REDACTED SENSITIVE SUPPLIER
Ealing Council,http://opendatacommunities.org/id/london-borough-council/ealing,REGENERATION AND HOUSING,2,HOUSING  DEMAND,BED & BREAKFAST PAYMENTS,5330,,05/08/2018,40823037,1260,REDACTED SENSITIVE SUPPLIER
Ealing Council,http://opendatacommunities.org/id/london-borough-council/ealing,REGENERATION AND HOUSING,2,HOUSING  DEMAND,BED & BREAKFAST PAYMENTS,5330,,29/07/2018,40822954,672,REDACTED SENSITIVE SUPPLIER
Ealing Council,http://opendatacommunities.org/id/london-borough-council/ealing,REGENERATION AND HOUSING,2,HOUSING  DEMAND,BED & BREAKFAST PAYMENTS,5330,,29/07/2018,40822955,528,REDACTED SENSITIVE SUPPLIER
Ealing Council,http://opendatacommunities.org/id/london-borough-council/ealing,REGENERATION AND HOUSING,2,HOUSING  DEMAND,BED & BREAKFAST PAYMENTS,5330,,19/08/2018,40823031,672,REDACTED SENSITIVE SUPPLIER
Ealing Council,http://opendatacommunities.org/id/london-borough-council/ealing,REGENERATION AND HOUSING,2,HOUSING  DEMAND,BED & BREAKFAST PAYMENTS,5330,,12/08/2018,40823032,1092,REDACTED SENSITIVE SUPPLIER
Ealing Council,http://opendatacommunities.org/id/london-borough-council/ealing,REGENERATION AND HOUSING,2,HOUSING  DEMAND,BED & BREAKFAST PAYMENTS,5330,,26/08/2018,40823033,2100,REDACTED SENSITIVE SUPPLIER
Ealing Council,http://opendatacommunities.org/id/london-borough-council/ealing,REGENERATION AND HOUSING,2,HOUSING  DEMAND,BED & BREAKFAST PAYMENTS,5330,,12/08/2018,40823035,1260,REDACTED SENSITIVE SUPPLIER
Ealing Council,http://opendatacommunities.org/id/london-borough-council/ealing,REGENERATION AND HOUSING,2,HOUSING  DEMAND,BED & BREAKFAST PAYMENTS,5330,,26/08/2018,40822962,798,REDACTED SENSITIVE SUPPLIER
Ealing Council,http://opendatacommunities.org/id/london-borough-council/ealing,REGENERATION AND HOUSING,2,HOUSING  DEMAND,BED & BREAKFAST PAYMENTS,5330,,02/09/2018,40822963,798,REDACTED SENSITIVE SUPPLIER
Ealing Council,http://opendatacommunities.org/id/london-borough-council/ealing,REGENERATION AND HOUSING,2,HOUSING  DEMAND,BED & BREAKFAST PAYMENTS,5330,,02/09/2018,40822964,1092,REDACTED SENSITIVE SUPPLIER
Ealing Council,http://opendatacommunities.org/id/london-borough-council/ealing,REGENERATION AND HOUSING,2,HOUSING  DEMAND,BED & BREAKFAST PAYMENTS,5330,,26/08/2018,40822965,1092,REDACTED SENSITIVE SUPPLIER
Ealing Council,http://opendatacommunities.org/id/london-borough-council/ealing,REGENERATION AND HOUSING,2,HOUSING  DEMAND,BED & BREAKFAST PAYMENTS,5330,,19/08/2018,40822966,1092,REDACTED SENSITIVE SUPPLIER
Ealing Council,http://opendatacommunities.org/id/london-borough-council/ealing,REGENERATION AND HOUSING,2,HOUSING  DEMAND,BED & BREAKFAST PAYMENTS,5330,,19/08/2018,40822950,342,REDACTED SENSITIVE SUPPLIER
Ealing Council,http://opendatacommunities.org/id/london-borough-council/ealing,REGENERATION AND HOUSING,2,HOUSING  DEMAND,BED & BREAKFAST PAYMENTS,5330,,29/07/2018,40823040,1764,REDACTED SENSITIVE SUPPLIER
Ealing Council,http://opendatacommunities.org/id/london-borough-council/ealing,REGENERATION AND HOUSING,2,HOUSING  DEMAND,BED & BREAKFAST PAYMENTS,5330,,12/08/2018,40823041,1764,REDACTED SENSITIVE SUPPLIER
Ealing Council,http://opendatacommunities.org/id/london-borough-council/ealing,REGENERATION AND HOUSING,2,HOUSING  DEMAND,BED & BREAKFAST PAYMENTS,5330,,12/08/2018,40823043,1236,REDACTED SENSITIVE SUPPLIER
Ealing Council,http://opendatacommunities.org/id/london-borough-council/ealing,REGENERATION AND HOUSING,2,HOUSING  DEMAND,BED & BREAKFAST PAYMENTS,5330,,12/08/2018,40822957,714,REDACTED SENSITIVE SUPPLIER
Ealing Council,http://opendatacommunities.org/id/london-borough-council/ealing,REGENERATION AND HOUSING,2,HOUSING  DEMAND,BED & BREAKFAST PAYMENTS,5330,,19/08/2018,40822958,1092,REDACTED SENSITIVE SUPPLIER
Ealing Council,http://opendatacommunities.org/id/london-borough-council/ealing,REGENERATION AND HOUSING,2,HOUSING  DEMAND,BED & BREAKFAST PAYMENTS,5330,,19/08/2018,40822961,798,REDACTED SENSITIVE SUPPLIER
Ealing Council,http://opendatacommunities.org/id/london-borough-council/ealing,REGENERATION AND HOUSING,2,HOUSING  DEMAND,BED & BREAKFAST PAYMENTS,5330,,29/07/2018,40821100,1428,REDACTED SENSITIVE SUPPLIER
Ealing Council,http://opendatacommunities.org/id/london-borough-council/ealing,REGENERATION AND HOUSING,2,HOUSING  DEMAND,BED & BREAKFAST PAYMENTS,5330,,17/06/2018,40821101,1386,REDACTED SENSITIVE SUPPLIER
Ealing Council,http://opendatacommunities.org/id/london-borough-council/ealing,REGENERATION AND HOUSING,2,HOUSING  DEMAND,BED & BREAKFAST PAYMENTS,5330,,10/06/2018,40821102,1386,REDACTED SENSITIVE SUPPLIER
Ealing Council,http://opendatacommunities.org/id/london-borough-council/ealing,REGENERATION AND HOUSING,2,HOUSING  DEMAND,BED & BREAKFAST PAYMENTS,5330,,03/06/2018,40821103,1314,REDACTED SENSITIVE SUPPLIER
Ealing Council,http://opendatacommunities.org/id/london-borough-council/ealing,REGENERATION AND HOUSING,2,HOUSING  DEMAND,BED & BREAKFAST PAYMENTS,5330,,08/07/2018,40821104,1050,REDACTED SENSITIVE SUPPLIER
Ealing Council,http://opendatacommunities.org/id/london-borough-council/ealing,REGENERATION AND HOUSING,2,HOUSING  DEMAND,BED & BREAKFAST PAYMENTS,5330,,05/08/2018,40823039,1716,REDACTED SENSITIVE SUPPLIER
Ealing Council,http://opendatacommunities.org/id/london-borough-council/ealing,REGENERATION AND HOUSING,2,HOUSING  DEMAND,BED & BREAKFAST PAYMENTS,5330,,12/08/2018,40821094,1260,REDACTED SENSITIVE SUPPLIER
Ealing Council,http://opendatacommunities.org/id/london-borough-council/ealing,REGENERATION AND HOUSING,2,HOUSING  DEMAND,BED & BREAKFAST PAYMENTS,5330,,24/06/2018,40821095,1386,REDACTED SENSITIVE SUPPLIER
Ealing Council,http://opendatacommunities.org/id/london-borough-council/ealing,REGENERATION AND HOUSING,2,HOUSING  DEMAND,BED & BREAKFAST PAYMENTS,5330,,01/07/2018,40821096,1314,REDACTED SENSITIVE SUPPLIER
Ealing Council,http://opendatacommunities.org/id/london-borough-council/ealing,REGENERATION AND HOUSING,2,HOUSING  DEMAND,BED & BREAKFAST PAYMENTS,5330,,08/07/2018,40821097,1206,REDACTED SENSITIVE SUPPLIER
Ealing Council,http://opendatacommunities.org/id/london-borough-council/ealing,REGENERATION AND HOUSING,2,HOUSING  DEMAND,BED & BREAKFAST PAYMENTS,5330,,15/07/2018,40821098,1236,REDACTED SENSITIVE SUPPLIER
Ealing Council,http://opendatacommunities.org/id/london-borough-council/ealing,REGENERATION AND HOUSING,2,HOUSING  DEMAND,BED & BREAKFAST PAYMENTS,5330,,22/07/2018,40821099,1176,REDACTED SENSITIVE SUPPLIER
Ealing Council,http://opendatacommunities.org/id/london-borough-council/ealing,REGENERATION AND HOUSING,2,HOUSING  DEMAND,BED & BREAKFAST PAYMENTS,5330,,29/07/2018,40821052,840,REDACTED SENSITIVE SUPPLIER
Ealing Council,http://opendatacommunities.org/id/london-borough-council/ealing,REGENERATION AND HOUSING,2,HOUSING  DEMAND,BED & BREAKFAST PAYMENTS,5330,,05/08/2018,40821053,840,REDACTED SENSITIVE SUPPLIER
Ealing Council,http://opendatacommunities.org/id/london-borough-council/ealing,REGENERATION AND HOUSING,2,HOUSING  DEMAND,BED & BREAKFAST PAYMENTS,5330,,24/06/2018,40821090,1260,REDACTED SENSITIVE SUPPLIER
Ealing Council,http://opendatacommunities.org/id/london-borough-council/ealing,CORPORATE RESOURCES,4,PROPERTY SERVICES,MATERIALS -  CLEANING,3311,,21/09/2018,40823751,1059.26,GREENHAM TRADING LTD
Ealing Council,http://opendatacommunities.org/id/london-borough-council/ealing,CORPORATE RESOURCES,4,PROPERTY SERVICES,MATERIALS -  CLEANING,3311,,11/09/2018,40822127,1031.1,GREENHAM TRADING LTD
Ealing Council,http://opendatacommunities.org/id/london-borough-council/ealing,CORPORATE RESOURCES,4,PROPERTY SERVICES,MATERIALS -  CLEANING,3311,,12/09/2018,40822328,10201.98,INITIAL WASHROOM SOLUTIONS
Ealing Council,http://opendatacommunities.org/id/london-borough-council/ealing,CORPORATE RESOURCES,4,STRATEGIC PROCUREMENT,DIRECT TRANSPORT COSTS,2000,,03/09/2018,40820822,10144.9,REDACTED SENSITIVE SUPPLIER
Ealing Council,http://opendatacommunities.org/id/london-borough-council/ealing,CORPORATE RESOURCES,4,LEGAL SERVICES,LEGAL FEES,2840,,02/08/2018,40820516,400,Sundry Supplier - Corporate Resources
Ealing Council,http://opendatacommunities.org/id/london-borough-council/ealing,CORPORATE RESOURCES,4,LEGAL SERVICES,LEGAL FEES,2840,,31/07/2018,40821746,2638.6,Sundry Supplier - Corporate Resources
Ealing Council,http://opendatacommunities.org/id/london-borough-council/ealing,CORPORATE RESOURCES,4,LEGAL SERVICES,LEGAL FEES,2840,,16/07/2018,40820934,1504.5,Sundry Supplier - Corporate Resources
Ealing Council,http://opendatacommunities.org/id/london-borough-council/ealing,CHIEF EXECUTIVE DIRECTORATE,5,STRATEGY & ENGAGEMENT,LICENCES,2710,,24/09/2018,40824197,549,PURE PROMOTER LTD (TRADING AS PURE360)
Ealing Council,http://opendatacommunities.org/id/london-borough-council/ealing,CHIEF EXECUTIVE DIRECTORATE,5,STRATEGY & ENGAGEMENT,LICENCES,2710,,19/09/2018,40824367,600,PURE PROMOTER LTD (TRADING AS PURE360)
Ealing Council,http://opendatacommunities.org/id/london-borough-council/ealing,CHILDREN & ADULTS,1,SCHOOLS SERVICE DIRECTORATE,COMP OUTSOURCED SERVICES,3220,,27/07/2018,40821649,55500,IMPOWER CONSULTING LTD
Ealing Council,http://opendatacommunities.org/id/london-borough-council/ealing,CHILDREN & ADULTS,1,SCHOOLS SERVICE DIRECTORATE,SERVICES CONTRACTS AGENCY INTERIM CONSULTANTS ,2970,,31/07/2018,40819017,20768,GATENBY SANDERSON LIMITED
Ealing Council,http://opendatacommunities.org/id/london-borough-council/ealing,CHILDREN & ADULTS,1,SCHOOLS SERVICE DIRECTORATE,SERVICES CONTRACTS AGENCY INTERIM CONSULTANTS ,2970,,31/08/2018,40820932,20768,GATENBY SANDERSON LIMITED
Ealing Council,http://opendatacommunities.org/id/london-borough-council/ealing,CAPITAL SCHEMES,K,ENVIRONMENT & LEISURE,CAPITAL - CONTRACT PAYMENTS,7200,,31/08/2018,40820716,36338,ENTERPRISE MANAGED SERVICES LTD (AMEY PLC)
Ealing Council,http://opendatacommunities.org/id/london-borough-council/ealing,CHILDREN & ADULTS,1,PUBLIC HEALTH ADMIN AND MANAGEMENT,HIRE OF HALLS,2810,,29/08/2018,40820986,460,EALING FRIENDS MEETING HOUSE
Ealing Council,http://opendatacommunities.org/id/london-borough-council/ealing,REGENERATION AND HOUSING,2,COMMUNITY SAFETY,PAYMENTS TO CONTRACTORS,4000,,18/03/2017,40824040,360,TRACEY STRATHDEE
Ealing Council,http://opendatacommunities.org/id/london-borough-council/ealing,REGENERATION AND HOUSING,2,COMMUNITY SAFETY,AUDIT FEES,2870,,18/07/2018,40824357,390,SUSAN H LUCKS
Ealing Council,http://opendatacommunities.org/id/london-borough-council/ealing,REGENERATION AND HOUSING,2,PROPERTY & REGENERATION,TRAINING,80,,21/09/2018,40823920,3000,LIVING POTENTIAL CONSULTING LTD
Ealing Council,http://opendatacommunities.org/id/london-borough-council/ealing,REGENERATION AND HOUSING,2,PROPERTY & REGENERATION,STATION. & CONSUMABLE EQUIP.,3820,,17/09/2018,40822782,375,LALITA SCOTT
Ealing Council,http://opendatacommunities.org/id/london-borough-council/ealing,REGENERATION AND HOUSING,2,BUILDING CONTROL,EXTERNAL TECHNICAL ADVICE,4060,,03/09/2018,40820723,1875,DISTRICT SURVEYORS ASSOCN LTD-T/A LABC
Ealing Council,http://opendatacommunities.org/id/london-borough-council/ealing,REGENERATION AND HOUSING,2,BUILDING CONTROL,EXTERNAL TECHNICAL ADVICE,4060,,30/08/2018,40821807,419.44,CITY OF LONDON
Ealing Council,http://opendatacommunities.org/id/london-borough-council/ealing,ENVIRONMENT & CUSTOMER SERVICES,3,LEISURE & PARKS,MISCELLANEOUS,3720,,12/09/2018,40822156,7000,Sundry Supplier - Environment & Customer Services
Ealing Council,http://opendatacommunities.org/id/london-borough-council/ealing,ENVIRONMENT & CUSTOMER SERVICES,3,LEISURE & PARKS,CONFERENCE EXPENSES,3520,,31/07/2018,40823997,2900,US-CREATES LTD
Ealing Council,http://opendatacommunities.org/id/london-borough-council/ealing,CAPITAL SCHEMES,K,E&CS EXECUTIVE DIRECTORATE,CTRL OR B/S INFRASTUCTURE ASSETS,6160,,07/09/2018,40821533,1000,WEST EALING NEIGHBOURS
Ealing Council,http://opendatacommunities.org/id/london-borough-council/ealing,CAPITAL SCHEMES,K,E&CS EXECUTIVE DIRECTORATE,CTRL OR B/S INFRASTUCTURE ASSETS,6160,,28/09/2018,40824586,1589.17,ENTERPRISE MANAGED SERVICES LTD (AMEY PLC)
Ealing Council,http://opendatacommunities.org/id/london-borough-council/ealing,CHILDREN & ADULTS,1,"PLANNING, COMMISSIONING & PARTNERSHIPS",CLEANING CONTRACT,1300,,14/09/2018,40822568,417.43,LAKETHORNE LIMITED
Ealing Council,http://opendatacommunities.org/id/london-borough-council/ealing,CHILDREN & ADULTS,1,EARLY YEARS CHILDCARE & SAFE,TRAINING,80,,07/08/2018,40820417,1125,Sundry Supplier - Children and Adults
Ealing Council,http://opendatacommunities.org/id/london-borough-council/ealing,CHILDREN & ADULTS,1,PERFORMANCE & TRAINING,TRAINING,80,,12/09/2018,40822167,1902.41,COSECTOR LTD - UNIVERSITY OF LONDON
Ealing Council,http://opendatacommunities.org/id/london-borough-council/ealing,CHILDREN & ADULTS,1,SAFEGUARDING & SUPP - BS &A&F,DATA ARCHIVING,3840,,31/08/2018,40820855,804.25,RESTORE PLC
Ealing Council,http://opendatacommunities.org/id/london-borough-council/ealing,CHILDREN & ADULTS,1,SAFEGUARDING & SUPPORT - CIC,SECTION 2(16) PAYROLL TRANSACTIONS,4270,,08/09/2018,40821652,270,BDP SOCIAL CARE LTD
Ealing Council,http://opendatacommunities.org/id/london-borough-council/ealing,CHILDREN & ADULTS,1,SAFEGUARDING & SUPPORT - CIC,SECTION 2(16) PAYROLL TRANSACTIONS,4270,,30/04/2018,40822510,600,PURPLE PROFESSIONAL SERVICES LTD
Ealing Council,http://opendatacommunities.org/id/london-borough-council/ealing,CHILDREN & ADULTS,1,SAFEGUARDING & SUPPORT - CIC,SECTION 2(16) PAYROLL TRANSACTIONS,4270,,29/08/2018,40823450,1980,NORTH HANWELL BAPTIST CHURCH
Ealing Council,http://opendatacommunities.org/id/london-borough-council/ealing,CHILDREN & ADULTS,1,SAFEGUARDING & SUPPORT - CIC,SECTION 2(16) PAYROLL TRANSACTIONS,4270,,17/08/2018,40820550,350,LONDON BOROUGH OF BARNET
Ealing Council,http://opendatacommunities.org/id/london-borough-council/ealing,CHILDREN & ADULTS,1,SAFEGUARDING & SUPPORT - CIC,SECTION 2(16) PAYROLL TRANSACTIONS,4270,,30/05/2018,40805358,600,Sundry Supplier - Children and Adults
Ealing Council,http://opendatacommunities.org/id/london-borough-council/ealing,CHILDREN & ADULTS,1,EALING SERVICE FOR CHILDREN WITH ADDITIONAL NEEDS,TRAINING,80,,07/08/2018,40817568,682.2,Sundry Supplier - Children and Adults
Ealing Council,http://opendatacommunities.org/id/london-borough-council/ealing,CHILDREN & ADULTS,1,EALING SERVICE FOR CHILDREN WITH ADDITIONAL NEEDS,LICENCES,2710,,19/09/2018,40823446,2400,SERVELEC SYNERGY LIMITED
Ealing Council,http://opendatacommunities.org/id/london-borough-council/ealing,CHILDREN & ADULTS,1,EALING SERVICE FOR CHILDREN WITH ADDITIONAL NEEDS,HOME & SCHOOL,2130,,30/06/2018,40823694,19845,CRUISE MINIBUS HIRE
Ealing Council,http://opendatacommunities.org/id/london-borough-council/ealing,CHILDREN & ADULTS,1,EALING SERVICE FOR CHILDREN WITH ADDITIONAL NEEDS,HOME & SCHOOL,2130,,12/10/2017,40819681,-422.63,MANOR WHEELS
Ealing Council,http://opendatacommunities.org/id/london-borough-council/ealing,CHILDREN & ADULTS,1,EALING SERVICE FOR CHILDREN WITH ADDITIONAL NEEDS,PAYMENTS TO CONTRACTORS,4000,,31/07/2018,40816671,40000,RAINMAKER SOLUTIONS LTD
Ealing Council,http://opendatacommunities.org/id/london-borough-council/ealing,CHILDREN & ADULTS,1,EALING SERVICE FOR CHILDREN WITH ADDITIONAL NEEDS,HOME & SCHOOL,2130,,04/07/2018,40817652,450,ESENDEX LIMITED
Ealing Council,http://opendatacommunities.org/id/london-borough-council/ealing,CHILDREN & ADULTS,1,EALING SERVICE FOR CHILDREN WITH ADDITIONAL NEEDS,HOME & SCHOOL,2130,,25/07/2018,40814210,1425,CENTRAL CARS
Ealing Council,http://opendatacommunities.org/id/london-borough-council/ealing,CHILDREN & ADULTS,1,EALING SERVICE FOR CHILDREN WITH ADDITIONAL NEEDS,HOME & SCHOOL,2130,,29/06/2018,40810074,1852.5,CENTRAL CARS
Ealing Council,http://opendatacommunities.org/id/london-borough-council/ealing,CHILDREN & ADULTS,1,EALING SERVICE FOR CHILDREN WITH ADDITIONAL NEEDS,HOME & SCHOOL,2130,,27/06/2018,40810808,7995,SIHOTA COACHES
Ealing Council,http://opendatacommunities.org/id/london-borough-council/ealing,CHILDREN & ADULTS,1,EALING SERVICE FOR CHILDREN WITH ADDITIONAL NEEDS,HOME & SCHOOL,2130,,27/06/2018,40811190,6402.5,SIHOTA COACHES
Ealing Council,http://opendatacommunities.org/id/london-borough-council/ealing,CHILDREN & ADULTS,1,EALING SERVICE FOR CHILDREN WITH ADDITIONAL NEEDS,DIRECT TRANSPORT COSTS,2000,,20/08/2018,40819065,610.72,REDACTED SENSITIVE SUPPLIER
Ealing Council,http://opendatacommunities.org/id/london-borough-council/ealing,CHILDREN & ADULTS,1,EALING SERVICE FOR CHILDREN WITH ADDITIONAL NEEDS,HOME & SCHOOL,2130,,25/07/2018,40820824,9750,PACE TRANSPORT
Ealing Council,http://opendatacommunities.org/id/london-borough-council/ealing,CHILDREN & ADULTS,1,PUBLIC HEALTH ADMIN AND MANAGEMENT,PAYMENTS TO CONTRACTORS,4000,,14/09/2018,40824325,583.28,DEBIGNO LTD - T/A PATHWAY ANALYTICS
Ealing Council,http://opendatacommunities.org/id/london-borough-council/ealing,CAPITAL SCHEMES,K,SCHOOLS SERVICE,CAPITAL - CONTRACT PAYMENTS,7200,,13/09/2018,40822430,68201.25,GEOFFREY OSBORNE LIMITED
Ealing Council,http://opendatacommunities.org/id/london-borough-council/ealing,CAPITAL SCHEMES,K,SCHOOLS SERVICE,CAPITAL - CONTRACT PAYMENTS,7200,,13/09/2018,40822170,490,ASTEC CONSULTANT SERVICES (HS) LIMITED
Ealing Council,http://opendatacommunities.org/id/london-borough-council/ealing,CAPITAL SCHEMES,K,SCHOOLS SERVICE,CAPITAL - CONTRACT PAYMENTS,7200,,07/09/2018,40822657,7373.27,CUTTLE CONSTRUCTION LTD
Ealing Council,http://opendatacommunities.org/id/london-borough-council/ealing,REGENERATION AND HOUSING,2,COMMUNITY SAFETY,PAYMENTS TO CONTRACTORS,4000,,04/09/2018,40820888,21704.26,TYCO INTEGRATED SYSTEMS LTD
Ealing Council,http://opendatacommunities.org/id/london-borough-council/ealing,REGENERATION AND HOUSING,2,COMMUNITY SAFETY,TELEPHONE,3230,,05/07/2018,40821355,-3761.43,BT REDCARE
Ealing Council,http://opendatacommunities.org/id/london-borough-council/ealing,CHILDREN & ADULTS,1,EARLY YEARS CHILDCARE & SAFE,REPAIR AND MAINTENANCE,1410,,22/06/2018,40821544,468.6,THE FA BARTLETT TREE EXPERT CO LTD
Ealing Council,http://opendatacommunities.org/id/london-borough-council/ealing,CHILDREN & ADULTS,1,EARLY YEARS CHILDCARE & SAFE,CLEANING CONTRACT,1300,,31/08/2018,40820714,369.16,ASHLEY CLEANING SERVICES LIMITED
Ealing Council,http://opendatacommunities.org/id/london-borough-council/ealing,CHILDREN & ADULTS,1,EARLY YEARS CHILDCARE & SAFE,REFUSE DISPOSAL,2800,,05/08/2018,40816695,710.81,PHS GROUP LTD
Ealing Council,http://opendatacommunities.org/id/london-borough-council/ealing,CHILDREN & ADULTS,1,EARLY YEARS CHILDCARE & SAFE,CLEANING CONTRACT,1300,,15/08/2018,40821163,1410.17,LAKETHORNE LIMITED
Ealing Council,http://opendatacommunities.org/id/london-borough-council/ealing,CHILDREN & ADULTS,1,EARLY YEARS CHILDCARE & SAFE,CHILDCARE PROVISION,4690,,03/09/2018,40821256,465,REDACTED SENSITIVE SUPPLIER
Ealing Council,http://opendatacommunities.org/id/london-borough-council/ealing,CHILDREN & ADULTS,1,EARLY YEARS CHILDCARE & SAFE,CHILDCARE PROVISION,4690,,03/09/2018,40821257,615,REDACTED SENSITIVE SUPPLIER
Ealing Council,http://opendatacommunities.org/id/london-borough-council/ealing,CHILDREN & ADULTS,1,SAFEGUARDING & SUPP - BS &A&F,SOCIAL SERVICES -INDEPENDENT FOSTERING,4221,,30/08/2018,40820258,29880,REDACTED SENSITIVE SUPPLIER
Ealing Council,http://opendatacommunities.org/id/london-borough-council/ealing,CHILDREN & ADULTS,1,SAFEGUARDING & SUPP - BS &A&F,SOCIAL SERVICES -INTER AGENCY BUDGETS,3563,,05/09/2018,40820969,9900,THE ROYAL BOROUGH OF KENSINGTON & CHELSEA
Ealing Council,http://opendatacommunities.org/id/london-borough-council/ealing,CHILDREN & ADULTS,1,SCHOOLS EFFECTIVENESS,REFRESHMENTS,3010,,10/09/2018,40823087,535.5,ELITE CATERING WEST LONDON LIMITED
Ealing Council,http://opendatacommunities.org/id/london-borough-council/ealing,CHILDREN & ADULTS,1,EALING SERVICE FOR CHILDREN WITH ADDITIONAL NEEDS,CHILDRENS SERVICE -RESPITE CARE SCHEME,4661,,14/09/2018,40823114,5600,REDACTED SENSITIVE SUPPLIER
Ealing Council,http://opendatacommunities.org/id/london-borough-council/ealing,CHILDREN & ADULTS,1,EALING SERVICE FOR CHILDREN WITH ADDITIONAL NEEDS,CHILDRENS SERVICE -RESPITE CARE SCHEME,4661,,14/09/2018,40823117,2800,REDACTED SENSITIVE SUPPLIER
Ealing Council,http://opendatacommunities.org/id/london-borough-council/ealing,CHILDREN & ADULTS,1,EALING SERVICE FOR CHILDREN WITH ADDITIONAL NEEDS,CHILDRENS SERVICE -RESPITE CARE SCHEME,4661,,09/07/2018,40817512,2340,REDACTED SENSITIVE SUPPLIER
Ealing Council,http://opendatacommunities.org/id/london-borough-council/ealing,CHILDREN & ADULTS,1,EALING SERVICE FOR CHILDREN WITH ADDITIONAL NEEDS,CHILDRENS SERVICE -RESPITE CARE SCHEME,4661,,21/09/2018,40823902,441.6,REDACTED SENSITIVE SUPPLIER
Ealing Council,http://opendatacommunities.org/id/london-borough-council/ealing,CHILDREN & ADULTS,1,EALING SERVICE FOR CHILDREN WITH ADDITIONAL NEEDS,CHILDRENS SERVICE -RESPITE CARE SCHEME,4661,,30/04/2018,40816783,1183,REDACTED SENSITIVE SUPPLIER
Ealing Council,http://opendatacommunities.org/id/london-borough-council/ealing,CHILDREN & ADULTS,1,EALING SERVICE FOR CHILDREN WITH ADDITIONAL NEEDS,CHILDRENS SERVICE -RESPITE CARE SCHEME,4661,,15/08/2018,40818332,461.2,REDACTED SENSITIVE SUPPLIER
Ealing Council,http://opendatacommunities.org/id/london-borough-council/ealing,CHILDREN & ADULTS,1,EALING SERVICE FOR CHILDREN WITH ADDITIONAL NEEDS,CHILDRENS SERVICE -RESPITE CARE SCHEME,4661,,02/08/2018,40817452,2800,REDACTED SENSITIVE SUPPLIER
Ealing Council,http://opendatacommunities.org/id/london-borough-council/ealing,CHILDREN & ADULTS,1,EALING SERVICE FOR CHILDREN WITH ADDITIONAL NEEDS,CHILDRENS SERVICE -RESPITE CARE SCHEME,4661,,17/08/2018,40818855,800,REDACTED SENSITIVE SUPPLIER
Ealing Council,http://opendatacommunities.org/id/london-borough-council/ealing,CHILDREN & ADULTS,1,EALING SERVICE FOR CHILDREN WITH ADDITIONAL NEEDS,CHILDRENS SERVICE -RESPITE CARE SCHEME,4661,,17/08/2018,40818866,276,REDACTED SENSITIVE SUPPLIER
Ealing Council,http://opendatacommunities.org/id/london-borough-council/ealing,CHILDREN & ADULTS,1,EALING SERVICE FOR CHILDREN WITH ADDITIONAL NEEDS,CHILDRENS SERVICE -RESPITE CARE SCHEME,4661,,15/08/2018,40819032,805,REDACTED SENSITIVE SUPPLIER
Ealing Council,http://opendatacommunities.org/id/london-borough-council/ealing,CHILDREN & ADULTS,1,EALING SERVICE FOR CHILDREN WITH ADDITIONAL NEEDS,CHILDRENS SERVICE -RESPITE CARE SCHEME,4661,,31/08/2018,40820371,276,REDACTED SENSITIVE SUPPLIER
Ealing Council,http://opendatacommunities.org/id/london-borough-council/ealing,CHILDREN & ADULTS,1,EALING SERVICE FOR CHILDREN WITH ADDITIONAL NEEDS,CHILDRENS SERVICE -RESPITE CARE SCHEME,4661,,16/08/2018,40821829,629.16,REDACTED SENSITIVE SUPPLIER
Ealing Council,http://opendatacommunities.org/id/london-borough-council/ealing,CHILDREN & ADULTS,1,EALING SERVICE FOR CHILDREN WITH ADDITIONAL NEEDS,CHILDRENS SERVICE -RESPITE CARE SCHEME,4661,,06/07/2018,40811332,420,REDACTED SENSITIVE SUPPLIER
Ealing Council,http://opendatacommunities.org/id/london-borough-council/ealing,CHILDREN & ADULTS,1,EALING SERVICE FOR CHILDREN WITH ADDITIONAL NEEDS,CHILDRENS SERVICE -RESPITE CARE SCHEME,4661,,06/07/2018,40811333,305,REDACTED SENSITIVE SUPPLIER
Ealing Council,http://opendatacommunities.org/id/london-borough-council/ealing,CHILDREN & ADULTS,1,EALING SERVICE FOR CHILDREN WITH ADDITIONAL NEEDS,CHILDRENS SERVICE -RESPITE CARE SCHEME,4661,,06/07/2018,40811338,420,REDACTED SENSITIVE SUPPLIER
Ealing Council,http://opendatacommunities.org/id/london-borough-council/ealing,CHILDREN & ADULTS,1,EALING SERVICE FOR CHILDREN WITH ADDITIONAL NEEDS,CHILDRENS SERVICE -RESPITE CARE SCHEME,4661,,20/07/2018,40813521,325,REDACTED SENSITIVE SUPPLIER
Ealing Council,http://opendatacommunities.org/id/london-borough-council/ealing,CHILDREN & ADULTS,1,EALING SERVICE FOR CHILDREN WITH ADDITIONAL NEEDS,CHILDRENS SERVICE -RESPITE CARE SCHEME,4661,,03/08/2018,40816284,325,REDACTED SENSITIVE SUPPLIER
Ealing Council,http://opendatacommunities.org/id/london-borough-council/ealing,CHILDREN & ADULTS,1,EALING SERVICE FOR CHILDREN WITH ADDITIONAL NEEDS,CHILDRENS SERVICE -RESPITE CARE SCHEME,4661,,03/08/2018,40816286,276,REDACTED SENSITIVE SUPPLIER
Ealing Council,http://opendatacommunities.org/id/london-borough-council/ealing,CHILDREN & ADULTS,1,EALING SERVICE FOR CHILDREN WITH ADDITIONAL NEEDS,CHILDRENS SERVICE -RESPITE CARE SCHEME,4661,,13/08/2018,40821612,870,REDACTED SENSITIVE SUPPLIER
Ealing Council,http://opendatacommunities.org/id/london-borough-council/ealing,CHILDREN & ADULTS,1,EALING SERVICE FOR CHILDREN WITH ADDITIONAL NEEDS,CHILDRENS SERVICE -RESPITE CARE SCHEME,4661,,13/08/2018,40821613,568.75,REDACTED SENSITIVE SUPPLIER
Ealing Council,http://opendatacommunities.org/id/london-borough-council/ealing,CHILDREN & ADULTS,1,EALING SERVICE FOR CHILDREN WITH ADDITIONAL NEEDS,CHILDRENS SERVICE -RESPITE CARE SCHEME,4661,,10/09/2018,40821749,560,REDACTED SENSITIVE SUPPLIER
Ealing Council,http://opendatacommunities.org/id/london-borough-council/ealing,CHILDREN & ADULTS,1,EALING SERVICE FOR CHILDREN WITH ADDITIONAL NEEDS,CHILDRENS SERVICE -RESPITE CARE SCHEME,4661,,10/09/2018,40821752,560,REDACTED SENSITIVE SUPPLIER
Ealing Council,http://opendatacommunities.org/id/london-borough-council/ealing,CHILDREN & ADULTS,1,EALING SERVICE FOR CHILDREN WITH ADDITIONAL NEEDS,CHILDRENS SERVICE -RESPITE CARE SCHEME,4661,,10/09/2018,40821810,420,REDACTED SENSITIVE SUPPLIER
Ealing Council,http://opendatacommunities.org/id/london-borough-council/ealing,CHILDREN & ADULTS,1,EALING SERVICE FOR CHILDREN WITH ADDITIONAL NEEDS,CHILDRENS SERVICE -RESPITE CARE SCHEME,4661,,31/08/2018,40821813,2520,REDACTED SENSITIVE SUPPLIER
Ealing Council,http://opendatacommunities.org/id/london-borough-council/ealing,CHILDREN & ADULTS,1,EALING SERVICE FOR CHILDREN WITH ADDITIONAL NEEDS,CHILDRENS SERVICE -RESPITE CARE SCHEME,4661,,09/07/2018,40817168,455,REDACTED SENSITIVE SUPPLIER
Ealing Council,http://opendatacommunities.org/id/london-borough-council/ealing,CHILDREN & ADULTS,1,EALING SERVICE FOR CHILDREN WITH ADDITIONAL NEEDS,CHILDRENS SERVICE -RESPITE CARE SCHEME,4661,,15/08/2018,40818485,529.2,REDACTED SENSITIVE SUPPLIER
Ealing Council,http://opendatacommunities.org/id/london-borough-council/ealing,REGENERATION AND HOUSING,2,PROPERTY & REGENERATION,TRAINING,80,,09/08/2018,40817178,1674.7,WEST THAMES COLLEGE
Ealing Council,http://opendatacommunities.org/id/london-borough-council/ealing,REGENERATION AND HOUSING,2,PROPERTY & REGENERATION,TRAINING,80,,15/08/2018,40818382,895,Sundry Supplier - Regeneration & Housing
Ealing Council,http://opendatacommunities.org/id/london-borough-council/ealing,REGENERATION AND HOUSING,2,PROPERTY & REGENERATION,TRAINING,80,,11/09/2018,40821929,455,GAS LOGIC LTD
Ealing Council,http://opendatacommunities.org/id/london-borough-council/ealing,CAPITAL SCHEMES,K,E&CS EXECUTIVE DIRECTORATE,CAPITAL - CONTRACT PAYMENTS,7200,,25/08/2018,40824234,19500,SPACEHIVE LTD
Ealing Council,http://opendatacommunities.org/id/london-borough-council/ealing,CHILDREN & ADULTS,1,EARLY YEARS CHILDCARE & SAFE,TRAINING,80,,18/07/2018,40814476,1600,THE ANNA FREUD CENTRE
Ealing Council,http://opendatacommunities.org/id/london-borough-council/ealing,CAPITAL SCHEMES,K,CORPORATE RESOURCES,CAPITAL - CONTRACT PAYMENTS,7200,,31/08/2018,40821123,6560,APEX REFRIGERATION & AIR CONDITIONING LTD
Ealing Council,http://opendatacommunities.org/id/london-borough-council/ealing,CAPITAL SCHEMES,K,SCHOOLS SERVICE,CAPITAL - CIS TAX DEDUCTIONS,7250,,10/09/2018,40821741,265,LAPLACE BUILDING SOLUTIONS (SOUTH) LTD
Ealing Council,http://opendatacommunities.org/id/london-borough-council/ealing,CAPITAL SCHEMES,K,SCHOOLS SERVICE,CAPITAL - CONTRACT PAYMENTS,7200,,19/09/2018,40823358,14706,ASR CONSTRUCTION UK LIMITED
Ealing Council,http://opendatacommunities.org/id/london-borough-council/ealing,CHILDREN & ADULTS,1,SCHOOLS EFFECTIVENESS,MINOR EQUIP PURCHASE,3320,,14/09/2018,40822486,297.5,REDACTED SENSITIVE SUPPLIER
Ealing Council,http://opendatacommunities.org/id/london-borough-council/ealing,CHILDREN & ADULTS,1,SCHOOLS EFFECTIVENESS,MINOR EQUIP PURCHASE,3320,,14/09/2018,40822490,297.5,REDACTED SENSITIVE SUPPLIER
Ealing Council,http://opendatacommunities.org/id/london-borough-council/ealing,CHILDREN & ADULTS,1,SCHOOLS EFFECTIVENESS,MINOR EQUIP PURCHASE,3320,,21/08/2018,40819554,664.5,REDACTED SENSITIVE SUPPLIER
Ealing Council,http://opendatacommunities.org/id/london-borough-council/ealing,CHILDREN & ADULTS,1,SCHOOLS EFFECTIVENESS,MINOR EQUIP PURCHASE,3320,,15/08/2018,40818501,412.85,REDACTED SENSITIVE SUPPLIER
Ealing Council,http://opendatacommunities.org/id/london-borough-council/ealing,CHILDREN & ADULTS,1,EALING SERVICE FOR CHILDREN WITH ADDITIONAL NEEDS,SOCIAL SERVICES -INDEPENDENT FOSTERING,4221,,03/09/2018,40820780,3906.08,REDACTED SENSITIVE SUPPLIER
Ealing Council,http://opendatacommunities.org/id/london-borough-council/ealing,CHILDREN & ADULTS,1,EALING SERVICE FOR CHILDREN WITH ADDITIONAL NEEDS,SOCIAL SERVICES -INDEPENDENT FOSTERING,4221,,31/08/2018,40820287,4844.68,REDACTED SENSITIVE SUPPLIER
Ealing Council,http://opendatacommunities.org/id/london-borough-council/ealing,CHILDREN & ADULTS,1,EALING SERVICE FOR CHILDREN WITH ADDITIONAL NEEDS,SOCIAL SERVICES -INDEPENDENT FOSTERING,4221,,01/05/2018,40811867,5646.34,REDACTED SENSITIVE SUPPLIER
Ealing Council,http://opendatacommunities.org/id/london-borough-council/ealing,CHILDREN & ADULTS,1,EALING SERVICE FOR CHILDREN WITH ADDITIONAL NEEDS,SOCIAL SERVICES -INDEPENDENT FOSTERING,4221,,09/05/2018,40801276,5195.91,REDACTED SENSITIVE SUPPLIER
Ealing Council,http://opendatacommunities.org/id/london-borough-council/ealing,CHILDREN & ADULTS,1,EALING SERVICE FOR CHILDREN WITH ADDITIONAL NEEDS,PAYMENTS TO OTHER ESTAB.,4350,,03/09/2018,40823799,4762.37,REDACTIVE SENSITIVE SUPPLIER 
Ealing Council,http://opendatacommunities.org/id/london-borough-council/ealing,CHILDREN & ADULTS,1,SAFEGUARDING & SUPPORT - CIC,SECTION 17,4290,,28/06/2018,40817381,300,REDACTED SENSITIVE SUPPLIER
Ealing Council,http://opendatacommunities.org/id/london-borough-council/ealing,CHILDREN & ADULTS,1,SAFEGUARDING & SUPPORT - CIN,SECTION 17 16-18 YR OLDS ARO,4298,,15/08/2018,40820689,476,SD BUILDERS LIMITED
Ealing Council,http://opendatacommunities.org/id/london-borough-council/ealing,CHILDREN & ADULTS,1,SAFEGUARDING & SUPPORT - CIN,SECTION 17 INTENTIONALLY HOMELESS FROM HOUSING,4299,,15/08/2018,40820684,612,SD BUILDERS LIMITED
Ealing Council,http://opendatacommunities.org/id/london-borough-council/ealing,CHILDREN & ADULTS,1,SAFEGUARDING & SUPPORT - CIN,SECTION 17 INTENTIONALLY HOMELESS FROM HOUSING,4299,,15/08/2018,40820685,918,SD BUILDERS LIMITED
Ealing Council,http://opendatacommunities.org/id/london-borough-council/ealing,CHILDREN & ADULTS,1,SAFEGUARDING & SUPPORT - CIN,SECTION 17 16-18 YR OLDS ARO,4298,,01/09/2018,40822577,392,SD BUILDERS LIMITED
Ealing Council,http://opendatacommunities.org/id/london-borough-council/ealing,CHILDREN & ADULTS,1,SAFEGUARDING & SUPPORT - CIN,SECTION 17 INTENTIONALLY HOMELESS FROM HOUSING,4299,,01/09/2018,40822574,756,SD BUILDERS LIMITED
Ealing Council,http://opendatacommunities.org/id/london-borough-council/ealing,COUNCIL WIDE OTHER,9,BALANCE SHEET,CTRL OR B/S REFUNDS,6056,,28/08/2018,40820879,1005.41,Sundry Supplier - Corporate Resources
Ealing Council,http://opendatacommunities.org/id/london-borough-council/ealing,REGENERATION AND HOUSING,2,HOUSING  DEMAND,FURNITURE,3360,,10/07/2018,40823792,640,KENWAYS FURNITURE
Ealing Council,http://opendatacommunities.org/id/london-borough-council/ealing,REGENERATION AND HOUSING,2,HOUSING  DEMAND,CIS REPAIRS AND MAINTENANCE,1411,,21/08/2018,40819276,940,NS DRYLINING LTD
Ealing Council,http://opendatacommunities.org/id/london-borough-council/ealing,REGENERATION AND HOUSING,2,HOUSING  DEMAND,CIS REPAIRS AND MAINTENANCE,1411,,21/08/2018,40819276,1120,NS DRYLINING LTD
Ealing Council,http://opendatacommunities.org/id/london-borough-council/ealing,REGENERATION AND HOUSING,2,HOUSING  DEMAND,CIS REPAIRS AND MAINTENANCE,1411,,21/08/2018,40819278,500,NS DRYLINING LTD
Ealing Council,http://opendatacommunities.org/id/london-borough-council/ealing,REGENERATION AND HOUSING,2,HOUSING  DEMAND,CIS REPAIRS AND MAINTENANCE,1411,,21/08/2018,40819278,580,NS DRYLINING LTD
Ealing Council,http://opendatacommunities.org/id/london-borough-council/ealing,REGENERATION AND HOUSING,2,HOUSING  DEMAND,CIS REPAIRS AND MAINTENANCE,1411,,21/08/2018,40819437,648,NS DRYLINING LTD
Ealing Council,http://opendatacommunities.org/id/london-borough-council/ealing,REGENERATION AND HOUSING,2,HOUSING  DEMAND,CIS REPAIRS AND MAINTENANCE,1411,,21/08/2018,40819437,900,NS DRYLINING LTD
Ealing Council,http://opendatacommunities.org/id/london-borough-council/ealing,REGENERATION AND HOUSING,2,HRA EXPENDITURE,REPAIR AND MAINTENANCE,1410,,10/09/2018,40821675,760,CLEGHORN LIGHTING LTD
Ealing Council,http://opendatacommunities.org/id/london-borough-council/ealing,CAPITAL SCHEMES,K,HRA,CAPITAL - CONTRACT PAYMENTS,7200,,13/08/2018,40820312,210294.9,LAKEHOUSE CONTRACTS LTD
Ealing Council,http://opendatacommunities.org/id/london-borough-council/ealing,CAPITAL SCHEMES,K,HRA,CAPITAL - CONTRACT PAYMENTS,7200,,31/08/2018,40823635,486.25,EUROPEAN ASBESTOS SERVICES
Ealing Council,http://opendatacommunities.org/id/london-borough-council/ealing,CAPITAL SCHEMES,K,HRA,CAPITAL - CONTRACT PAYMENTS,7200,,31/08/2018,40823640,484.5,EUROPEAN ASBESTOS SERVICES
Ealing Council,http://opendatacommunities.org/id/london-borough-council/ealing,REGENERATION AND HOUSING,2,HOUSING  DEMAND,BED & BREAKFAST PAYMENTS,5330,,17/06/2018,40821091,1260,REDACTED SENSITIVE SUPPLIER
Ealing Council,http://opendatacommunities.org/id/london-borough-council/ealing,REGENERATION AND HOUSING,2,HOUSING  DEMAND,BED & BREAKFAST PAYMENTS,5330,,10/06/2018,40821092,1260,REDACTED SENSITIVE SUPPLIER
Ealing Council,http://opendatacommunities.org/id/london-borough-council/ealing,REGENERATION AND HOUSING,2,HOUSING  DEMAND,BED & BREAKFAST PAYMENTS,5330,,03/06/2018,40821093,1260,REDACTED SENSITIVE SUPPLIER
Ealing Council,http://opendatacommunities.org/id/london-borough-council/ealing,REGENERATION AND HOUSING,2,HOUSING  DEMAND,BED & BREAKFAST PAYMENTS,5330,,29/07/2018,40821084,966,REDACTED SENSITIVE SUPPLIER
Ealing Council,http://opendatacommunities.org/id/london-borough-council/ealing,REGENERATION AND HOUSING,2,HOUSING  DEMAND,BED & BREAKFAST PAYMENTS,5330,,29/07/2018,40821085,1050,REDACTED SENSITIVE SUPPLIER
Ealing Council,http://opendatacommunities.org/id/london-borough-council/ealing,REGENERATION AND HOUSING,2,HOUSING  DEMAND,BED & BREAKFAST PAYMENTS,5330,,05/08/2018,40821086,1050,REDACTED SENSITIVE SUPPLIER
Ealing Council,http://opendatacommunities.org/id/london-borough-council/ealing,REGENERATION AND HOUSING,2,HOUSING  DEMAND,BED & BREAKFAST PAYMENTS,5330,,12/08/2018,40821087,1050,REDACTED SENSITIVE SUPPLIER
Ealing Council,http://opendatacommunities.org/id/london-borough-council/ealing,REGENERATION AND HOUSING,2,HOUSING  DEMAND,BED & BREAKFAST PAYMENTS,5330,,15/07/2018,40821088,1260,REDACTED SENSITIVE SUPPLIER
Ealing Council,http://opendatacommunities.org/id/london-borough-council/ealing,REGENERATION AND HOUSING,2,HOUSING  DEMAND,BED & BREAKFAST PAYMENTS,5330,,01/07/2018,40821089,1200,REDACTED SENSITIVE SUPPLIER
Ealing Council,http://opendatacommunities.org/id/london-borough-council/ealing,REGENERATION AND HOUSING,2,HOUSING  DEMAND,BED & BREAKFAST PAYMENTS,5330,,29/07/2018,40821078,1092,REDACTED SENSITIVE SUPPLIER
Ealing Council,http://opendatacommunities.org/id/london-borough-council/ealing,REGENERATION AND HOUSING,2,HOUSING  DEMAND,BED & BREAKFAST PAYMENTS,5330,,29/07/2018,40821079,798,REDACTED SENSITIVE SUPPLIER
Ealing Council,http://opendatacommunities.org/id/london-borough-council/ealing,REGENERATION AND HOUSING,2,HOUSING  DEMAND,BED & BREAKFAST PAYMENTS,5330,,05/08/2018,40821080,798,REDACTED SENSITIVE SUPPLIER
Ealing Council,http://opendatacommunities.org/id/london-borough-council/ealing,REGENERATION AND HOUSING,2,HOUSING  DEMAND,BED & BREAKFAST PAYMENTS,5330,,29/07/2018,40821081,462,REDACTED SENSITIVE SUPPLIER
Ealing Council,http://opendatacommunities.org/id/london-borough-council/ealing,REGENERATION AND HOUSING,2,HOUSING  DEMAND,BED & BREAKFAST PAYMENTS,5330,,05/08/2018,40821082,678,REDACTED SENSITIVE SUPPLIER
Ealing Council,http://opendatacommunities.org/id/london-borough-council/ealing,REGENERATION AND HOUSING,2,HOUSING  DEMAND,BED & BREAKFAST PAYMENTS,5330,,05/08/2018,40821083,966,REDACTED SENSITIVE SUPPLIER
Ealing Council,http://opendatacommunities.org/id/london-borough-council/ealing,REGENERATION AND HOUSING,2,HOUSING  DEMAND,BED & BREAKFAST PAYMENTS,5330,,29/07/2018,40821072,441,REDACTED SENSITIVE SUPPLIER
Ealing Council,http://opendatacommunities.org/id/london-borough-council/ealing,REGENERATION AND HOUSING,2,HOUSING  DEMAND,BED & BREAKFAST PAYMENTS,5330,,12/08/2018,40821073,1470,REDACTED SENSITIVE SUPPLIER
Ealing Council,http://opendatacommunities.org/id/london-borough-council/ealing,REGENERATION AND HOUSING,2,HOUSING  DEMAND,BED & BREAKFAST PAYMENTS,5330,,29/07/2018,40821074,1140,REDACTED SENSITIVE SUPPLIER
Ealing Council,http://opendatacommunities.org/id/london-borough-council/ealing,REGENERATION AND HOUSING,2,HOUSING  DEMAND,BED & BREAKFAST PAYMENTS,5330,,05/08/2018,40821075,1260,REDACTED SENSITIVE SUPPLIER
Ealing Council,http://opendatacommunities.org/id/london-borough-council/ealing,REGENERATION AND HOUSING,2,HOUSING  DEMAND,BED & BREAKFAST PAYMENTS,5330,,12/08/2018,40821076,1344,REDACTED SENSITIVE SUPPLIER
Ealing Council,http://opendatacommunities.org/id/london-borough-council/ealing,REGENERATION AND HOUSING,2,HOUSING  DEMAND,BED & BREAKFAST PAYMENTS,5330,,05/08/2018,40821077,1344,REDACTED SENSITIVE SUPPLIER
Ealing Council,http://opendatacommunities.org/id/london-borough-council/ealing,REGENERATION AND HOUSING,2,HOUSING  DEMAND,BED & BREAKFAST PAYMENTS,5330,,05/08/2018,40821064,1932,REDACTED SENSITIVE SUPPLIER
Ealing Council,http://opendatacommunities.org/id/london-borough-council/ealing,REGENERATION AND HOUSING,2,HOUSING  DEMAND,BED & BREAKFAST PAYMENTS,5330,,29/07/2018,40821065,1932,REDACTED SENSITIVE SUPPLIER
Ealing Council,http://opendatacommunities.org/id/london-borough-council/ealing,REGENERATION AND HOUSING,2,HOUSING  DEMAND,BED & BREAKFAST PAYMENTS,5330,,05/08/2018,40821066,1596,REDACTED SENSITIVE SUPPLIER
Ealing Council,http://opendatacommunities.org/id/london-borough-council/ealing,REGENERATION AND HOUSING,2,HOUSING  DEMAND,BED & BREAKFAST PAYMENTS,5330,,29/07/2018,40821067,1596,REDACTED SENSITIVE SUPPLIER
Ealing Council,http://opendatacommunities.org/id/london-borough-council/ealing,REGENERATION AND HOUSING,2,HOUSING  DEMAND,BED & BREAKFAST PAYMENTS,5330,,29/07/2018,40821069,1176,REDACTED SENSITIVE SUPPLIER
Ealing Council,http://opendatacommunities.org/id/london-borough-council/ealing,REGENERATION AND HOUSING,2,HOUSING  DEMAND,BED & BREAKFAST PAYMENTS,5330,,05/08/2018,40821071,441,REDACTED SENSITIVE SUPPLIER
Ealing Council,http://opendatacommunities.org/id/london-borough-council/ealing,REGENERATION AND HOUSING,2,HOUSING  DEMAND,BED & BREAKFAST PAYMENTS,5330,,12/08/2018,40821056,1218,REDACTED SENSITIVE SUPPLIER
Ealing Council,http://opendatacommunities.org/id/london-borough-council/ealing,REGENERATION AND HOUSING,2,HOUSING  DEMAND,BED & BREAKFAST PAYMENTS,5330,,05/08/2018,40821057,1110,REDACTED SENSITIVE SUPPLIER
Ealing Council,http://opendatacommunities.org/id/london-borough-council/ealing,REGENERATION AND HOUSING,2,HOUSING  DEMAND,BED & BREAKFAST PAYMENTS,5330,,29/07/2018,40821058,906,REDACTED SENSITIVE SUPPLIER
Ealing Council,http://opendatacommunities.org/id/london-borough-council/ealing,REGENERATION AND HOUSING,2,HOUSING  DEMAND,BED & BREAKFAST PAYMENTS,5330,,12/08/2018,40821059,1638,REDACTED SENSITIVE SUPPLIER
Ealing Council,http://opendatacommunities.org/id/london-borough-council/ealing,REGENERATION AND HOUSING,2,HOUSING  DEMAND,BED & BREAKFAST PAYMENTS,5330,,05/08/2018,40821060,1638,REDACTED SENSITIVE SUPPLIER
Ealing Council,http://opendatacommunities.org/id/london-borough-council/ealing,REGENERATION AND HOUSING,2,HOUSING  DEMAND,BED & BREAKFAST PAYMENTS,5330,,29/07/2018,40821061,1638,REDACTED SENSITIVE SUPPLIER
Ealing Council,http://opendatacommunities.org/id/london-borough-council/ealing,REGENERATION AND HOUSING,2,HOUSING  DEMAND,BED & BREAKFAST PAYMENTS,5330,,30/06/2018,40823168,1825,REDACTED SENSITIVE SUPPLIER
Ealing Council,http://opendatacommunities.org/id/london-borough-council/ealing,REGENERATION AND HOUSING,2,HOUSING  DEMAND,BED & BREAKFAST PAYMENTS,5330,,26/08/2018,40823470,378,REDACTED SENSITIVE SUPPLIER
Ealing Council,http://opendatacommunities.org/id/london-borough-council/ealing,REGENERATION AND HOUSING,2,HOUSING  DEMAND,BED & BREAKFAST PAYMENTS,5330,,02/09/2018,40823471,2310,REDACTED SENSITIVE SUPPLIER
Ealing Council,http://opendatacommunities.org/id/london-borough-council/ealing,REGENERATION AND HOUSING,2,HOUSING  DEMAND,BED & BREAKFAST PAYMENTS,5330,,05/08/2018,40821054,1032,REDACTED SENSITIVE SUPPLIER
Ealing Council,http://opendatacommunities.org/id/london-borough-council/ealing,REGENERATION AND HOUSING,2,HOUSING  DEMAND,BED & BREAKFAST PAYMENTS,5330,,05/08/2018,40821068,1176,REDACTED SENSITIVE SUPPLIER
Ealing Council,http://opendatacommunities.org/id/london-borough-council/ealing,REGENERATION AND HOUSING,2,HOUSING  DEMAND,BED & BREAKFAST PAYMENTS,5330,,29/07/2018,40821055,1176,REDACTED SENSITIVE SUPPLIER
Ealing Council,http://opendatacommunities.org/id/london-borough-council/ealing,REGENERATION AND HOUSING,2,HOUSING  DEMAND,BED & BREAKFAST PAYMENTS,5330,,29/07/2018,40822972,798,REDACTED SENSITIVE SUPPLIER
Ealing Council,http://opendatacommunities.org/id/london-borough-council/ealing,REGENERATION AND HOUSING,2,HOUSING  DEMAND,BED & BREAKFAST PAYMENTS,5330,,05/08/2018,40822973,798,REDACTED SENSITIVE SUPPLIER
Ealing Council,http://opendatacommunities.org/id/london-borough-council/ealing,REGENERATION AND HOUSING,2,HOUSING  DEMAND,BED & BREAKFAST PAYMENTS,5330,,19/08/2018,40822974,798,REDACTED SENSITIVE SUPPLIER
Ealing Council,http://opendatacommunities.org/id/london-borough-council/ealing,REGENERATION AND HOUSING,2,HOUSING  DEMAND,BED & BREAKFAST PAYMENTS,5330,,26/08/2018,40822975,798,REDACTED SENSITIVE SUPPLIER
Ealing Council,http://opendatacommunities.org/id/london-borough-council/ealing,REGENERATION AND HOUSING,2,HOUSING BUSINESS UNITS,REPAIR AND MAINTENANCE,1410,,27/09/2018,40824541,32692.9,NIBLOCK (BUILDERS) LTD
Ealing Council,http://opendatacommunities.org/id/london-borough-council/ealing,REGENERATION AND HOUSING,2,HOUSING BUSINESS UNITS,REPAIR AND MAINTENANCE,1410,,13/09/2018,40822452,10218.21,MEAD BUILDING SERVICES LTD
Ealing Council,http://opendatacommunities.org/id/london-borough-council/ealing,REGENERATION AND HOUSING,2,HOUSING BUSINESS UNITS,REPAIR AND MAINTENANCE,1410,,27/09/2018,40824428,13776.01,MOUNTJOY LIMITED
Ealing Council,http://opendatacommunities.org/id/london-borough-council/ealing,REGENERATION AND HOUSING,2,HOUSING BUSINESS UNITS,REPAIR AND MAINTENANCE,1410,,30/08/2018,40820297,167028.42,T BROWN GROUP LIMITED
Ealing Council,http://opendatacommunities.org/id/london-borough-council/ealing,REGENERATION AND HOUSING,2,HOUSING BUSINESS UNITS,REPAIR AND MAINTENANCE,1410,,30/08/2018,40820342,25805.33,MEAD BUILDING SERVICES LTD
Ealing Council,http://opendatacommunities.org/id/london-borough-council/ealing,REGENERATION AND HOUSING,2,HOUSING BUSINESS UNITS,REPAIR AND MAINTENANCE,1410,,30/08/2018,40820276,1662.01,ALPHATRACK SYSTEMS LTD
Ealing Council,http://opendatacommunities.org/id/london-borough-council/ealing,REGENERATION AND HOUSING,2,HOUSING BUSINESS UNITS,REPAIR AND MAINTENANCE,1410,,30/08/2018,40820246,52734.5,MOUNTJOY LIMITED
Ealing Council,http://opendatacommunities.org/id/london-borough-council/ealing,REGENERATION AND HOUSING,2,HOUSING BUSINESS UNITS,REPAIR AND MAINTENANCE,1410,,13/09/2018,40822223,13440.52,NIBLOCK (BUILDERS) LTD
Ealing Council,http://opendatacommunities.org/id/london-borough-council/ealing,REGENERATION AND HOUSING,2,HOUSING BUSINESS UNITS,REPAIR AND MAINTENANCE,1410,,31/08/2018,40822304,16732.18,OPENVIEW SECURITY SOLUTIONS LIMITED
Ealing Council,http://opendatacommunities.org/id/london-borough-council/ealing,REGENERATION AND HOUSING,2,HOUSING BUSINESS UNITS,REPAIR AND MAINTENANCE,1410,,31/08/2018,40822307,2041.75,OPENVIEW SECURITY SOLUTIONS LIMITED
Ealing Council,http://opendatacommunities.org/id/london-borough-council/ealing,REGENERATION AND HOUSING,2,HOUSING BUSINESS UNITS,REPAIR AND MAINTENANCE,1410,,31/08/2018,40822308,10928.58,OPENVIEW SECURITY SOLUTIONS LIMITED
Ealing Council,http://opendatacommunities.org/id/london-borough-council/ealing,REGENERATION AND HOUSING,2,HOUSING BUSINESS UNITS,REPAIR AND MAINTENANCE,1410,,13/09/2018,40822381,927.75,ALPHATRACK SYSTEMS LTD
Ealing Council,http://opendatacommunities.org/id/london-borough-council/ealing,REGENERATION AND HOUSING,2,HOUSING BUSINESS UNITS,REPAIR AND MAINTENANCE,1410,,14/09/2018,40822404,7121.04,T BROWN GROUP LIMITED
Ealing Council,http://opendatacommunities.org/id/london-borough-council/ealing,REGENERATION AND HOUSING,2,HOUSING BUSINESS UNITS,REPAIR AND MAINTENANCE,1410,,07/09/2018,40821554,24862.83,T BROWN GROUP LIMITED
Ealing Council,http://opendatacommunities.org/id/london-borough-council/ealing,REGENERATION AND HOUSING,2,HOUSING BUSINESS UNITS,REPAIR AND MAINTENANCE,1410,,06/09/2018,40821591,36627.71,MOUNTJOY LIMITED
Ealing Council,http://opendatacommunities.org/id/london-borough-council/ealing,REGENERATION AND HOUSING,2,HOUSING BUSINESS UNITS,REPAIR AND MAINTENANCE,1410,,06/09/2018,40821630,30920.81,MNM PROPERTY SERVICES LIMITED
Ealing Council,http://opendatacommunities.org/id/london-borough-council/ealing,REGENERATION AND HOUSING,2,HOUSING BUSINESS UNITS,REPAIR AND MAINTENANCE,1410,,21/09/2018,40823957,862.5,OWEN WHITE SOLICITORS
Ealing Council,http://opendatacommunities.org/id/london-borough-council/ealing,REGENERATION AND HOUSING,2,HOUSING BUSINESS UNITS,REPAIR AND MAINTENANCE,1410,,21/09/2018,40823957,335,OWEN WHITE SOLICITORS
